Workbook

Sheet Cover
H13: =Name_Model -> FGN 5M Solar Connections Facility - Mini-Grid
A15: =Names!E9 -> [Insert Company Name]
A17: =Names!E10 -> [Insert Project Name, Location]
K20: September 2020

Sheet Guide
A1: Model Guide
A2: =Name_Model -> FGN 5M Solar Connections Facility - Mini-Grid
C4: Dashboard Tab
C6: Area | E6: Hyperlink | G6: Comment
C8: Financing | E8: Tenor | G8: Tenor must be longer than the construction period set in the input tab
E9: Tenor & grace period | G9: This is an annual model so it can only use whole numbers. i.e. no partial year tenors
E10: Geared debt sizing | G10: Means the % of the post grant financing need provided by senior debt
C12: Reserves | E12: Debt Service Reserve Account | G12: This looks at the principal and interest due for the next X years and builds a reserve using available cashflows until that limit is reached
E13: Target MMRA balance | G13: This looks at the maintenance capex expected for the next X years and builds a reserve using available cashflows until that limit is reached
C15: Tax & Depreciation | E15: Tax depreciation toggle | G15: An on/off switch for tax depreciation. When turned on assets will depreciate at the tax depreciation rate for tax calculation purposes only
E16: NOLs periods | G16: The number of net operating loss carry forward years. Determined by the tax authority. Set to 0 for no NOLs
C18: Returns | E18: Returns period | G18: The number of years in which returns will be measured. Any cashflows beyond these will not be included in return outputs
E19: Project IRR & NPV | G19: These are calculated net of grants
C21: Consumer outputs | E21: Monthly ARPU | G21: The USD weighted average revenue per user, adjusted for inflation, over the life of the project
E22: Monthly consumption | G22: Weighted average consumption over the life of the project
C24: Operational outputs | E24: Levelized cost of electricity | G24: Time discounted cost per kWh of electricity calculated as operating costs and capital expenditures over consumption
E25: Levelized revenue | G25: Time discounted revenue per kWh
C28: Inputs Tab
C30: Area | E30: Hyperlink | G30: Comment
C32: Site Profiles | E32: Probability (Active) | G32: Assigning a probability here weights the site development (capex, revenue, opex) by that amount
E33: Sites within each category | G33: For context only. Inputs here do not affect the model
C35: Portfolio Inputs & Initial Capex | E35: Portfolio inputs table headings | G35: Change names directly in heading cells. Names do not affect the model
E36: Project development costs | G36: Split up between dependent & non-dependent for illustrative purposes. Note project development costs included as capex
C38: Construction | E38: Max years | G38: This assigns all capex within the first x years as financeable. Included to allow financing of customer connections for multi years
E39: Build profile | G39: Must enter 1 or leave blank. Only one entry per site
C41: Fees, Tariffs and Charges | E41: Tariffs | G41: Starting tariff (i.e. in year 1)
E42: Tariff review period | G42: The interval at which tariff price can be increased/(decreased)
E43: Growth rate | G43: Annual rate but only reflected in tariff each review period. The change in tariff will compound this growth rate
C45: Number of customers | E45: Penetration rate | G45: The % of the population connected
C48: Consumption | E48: Consumption by tariff | G48: The total for each type of user must equal 100%
C50: Tax and Depreciation | E50: Tax Depreciation | G50: The rate at which assets are depreciated for calculating income tax due in a given year. Not reflected in the income statement
E51: Reinvest flag | G51: Must enter 1 or 0. Do not enter Yes or No
C53: Macro-Economics | E53: General cost inflation (national) | G53: The expected national inflation rate (IMF, etc)
E55: Last update | G55: Input the date at which starting levels (disel cost, FX rates) were updated

Sheet Dashboard
A1: Dashboard
A2: =Name_Model -> FGN 5M Solar Connections Facility - Mini-Grid
C4: Company Information
C6: Company name | D6: =Names!E9 -> [Insert Company Name]
C7: Project | D7: =Names!E8 -> FGN 5M Solar Connections Facility - Mini-Grid
C8: Location | D8: LGA, State, Nigeria
C9: Contact details | D9: =Names!E11 -> 0
C11: Value Drivers | M11: Graphs
C13: Customers | I13: Financing
I14: Grant financing (% initial capex) | J14: % | K14: 0.4239907303
C15: Number of phase 1 users | D15: # | E15: =MAX('Graph calc'!J37:AH37) -> 200 | I15: Debt tenor | J15: years | K15: 7
I16: Grace period | J16: years | K16: 1
I17: Geared debt sizing | J17: % | K17: 0.7360831718
C18: Total Generation Assets | I18: Error check: sufficient cashflows to service debt | K18: =Model!I144 -> 0
C19: Solar PV incl. mounting system | D19: kWp | E19: =SUM(Inputs!$I$40:$I$43) -> 40 | G19: =SUMPRODUCT(Inputs!$E$40:$E$43,Inputs!$I$40:$I$43) -> 0
C20: Diesel generators | D20: kVA | E20: =SUM(Inputs!$L$40:$L$43) -> 0 | G20: =SUMPRODUCT(Inputs!$E$40:$E$43,Inputs!$L$40:$L$43) -> 0 | I20: Reserves
C21: Battery | D21: kWh | E21: =SUM(Inputs!$J$40:$J$43) -> 144 | G21: =SUMPRODUCT(Inputs!$E$40:$E$43,Inputs!$J$40:$J$43) -> 0 | I21: Debt Service Reserve Account (DSRA) | J21: forward debt service | K21: 1
C22: PV inverter | D22: kVA | E22: =SUM(Inputs!$K$40:$K$43) -> 40 | G22: =SUMPRODUCT(Inputs!$E$40:$E$43,Inputs!$K$40:$K$43) -> 0 | I22: Target MMRA Balance | J22: forecast capex | K22: 1
I23: Error check: sufficient cashflows to cover ongoing capex | K23: =Model!$I$121 -> 0
C24: Total Distribution Assets
C25: LV distribution grid | D25: km | E25: =SUM(Inputs!$I$57:$I$60) -> 1.8 | G25: =SUMPRODUCT(Inputs!$E$57:$E$60,Inputs!$I$57:$I$60) -> 0 | I25: Tax & Depreciation
C26: MV distribution grid | D26: km | E26: =SUM(Inputs!$J$57:$J$60) -> 0 | G26: =SUMPRODUCT(Inputs!$E$57:$E$60,Inputs!$J$57:$J$60) -> 0 | I26: Tax depreciation toggle | J26: On or Off | K26: 1
I27: NOLs periods | J27: Years | K27: 5
C29: Outputs
C31: Returns | I31: Consumer
C32: Returns period | D32: years | E32: 25 | I32: Phase 1 monthly ARPU (inflation adjusted) | J32: =CONCATENATE(Inputs!$E$8,("/month")) -> NGN/month | K32: =IF(Inputs!E8="USD", (SUMPRODUCT('Graph calc'!J48:AH48,'Graph calc'!J37:AH37)/SUM('Graph calc'!J37:AH37)),(SUMPRODUCT('Graph calc'!J46:AH46,'Graph calc'!J37:AH37)/SUM('Graph calc'!J37:AH37))) -> 59709.57515
C34: Equity | E34: IRR | G34: Payback | I34: Phase 1 monthly consumption | J34: kWh/month | K34: =SUMPRODUCT('Graph calc'!J65:AH65,'Graph calc'!J37:AH37)/SUM('Graph calc'!J37:AH37) -> 3272.003012
C35: Equity IRR | D35: % | E35: =Model!F192 -> 0.9425541282 | G35: =Model!F194 -> 2
C36: Project IRR | D36: % | E36: =Model!F198 -> 0.6262682259 | I36: Average tariff | J36: =CONCATENATE(Inputs!$E$8,("KWh")) -> NGNKWh | K36: =IF(Inputs!E8="USD", (SUMPRODUCT('Graph calc'!J69:AH69,'Graph calc'!J67:AH67)/SUM('Graph calc'!J67:AH67)), (SUMPRODUCT('Graph calc'!J68:AH68,'Graph calc'!J67:AH67)/SUM('Graph calc'!J67:AH67))) -> 204.1960783
C37: Project NPV | D37: =Inputs!$E$8 -> NGN | E37: =Model!F199 -> 3317956593
C39: Funding | I39: Operational
C40: =CONCATENATE("Sources", " ",Inputs!E8) -> Sources NGN | G40: % | I40: Levelized cost of electricity | J40: =CONCATENATE(Inputs!$E$8,("KWh")) -> NGNKWh | K40: =IF(Inputs!E8="USD",('Graph calc'!F86),('Graph calc'!F80)) -> 4.507442758
C41: Grant | D41: =Inputs!$E$8 -> NGN | E41: =Model!I230 -> 19250000 | G41: =E41/$E$44 -> 0.4239907303 | I41: Levelized revenue | J41: $/kWh | K41: ='Graph calc'!F89 -> 0.1880790706
C42: Senior Debt | D42: =Inputs!$E$8 -> NGN | E42: =Model!I233 -> 19250000 | G42: =E42/$E$44 -> 0.4239907303 | I42: Average operating proft margin | J42: % | K42: =Model!H183 -> 0.9358438255
C43: Equity | D43: =Inputs!$E$8 -> NGN | E43: =Model!I236 -> 6901936 | G43: =E43/$E$44 -> 0.1520185395
C44: Total | D44: =Inputs!$E$8 -> NGN | E44: =Model!I239 -> 45401936 | G44: =E44/$E$44 -> 1
E45: =IF(E44=SUM(E41:E43),0,1) -> 0
I46: Checks
I47: Model balances | K47: =Model!I178 -> 0
I48: One construction trigger/category | K48: =SUM(Inputs!G97:G100) -> 0
I49: Construction trigger within max years | K49: =SUM(Inputs!J102:M102) -> 0
I50: Construction occurs when site is active | K50: =SUM(Inputs!N97:N100) -> 0
I51: Consumption by tariff sums to 100% | K51: =Inputs!E189+SUM(Inputs!I189:K189) -> 0
I52: Positive equity distributions | K52: =Model!I147 -> 0
I53: Sources = uses | K53: =Model!I240 -> 0
I54: Funding required >= zero | K54: =Inputs!G290 -> 0
I55: Senior debt drawn = senior debt limit | K55: =Model!I234 -> 0
I56: Debt tenor>construction period | K56: =IF(K15>Inputs!E97,0,1) -> 0
I57: Debt fully repaid within tenor | K57: =Model!I494 -> 0

Sheet Inputs
A1: Inputs
A2: =Name_Model -> FGN 5M Solar Connections Facility - Mini-Grid
A4: x | C4: Timing
C5: Start
C6: Model Start Date | D6: Date | E6: 2020-11-01
C7: Model Start Year | D7: Date | E7: =YEAR(E6) -> 2020
C8: Model Currency | D8: USD/NGN | E8: NGN
A11: x | C11: Site profiles
C13: Site names & descriptions | D13: Operational
C14: =Names!E13 -> Site 1 | D14: 1
C15: =Names!E14 -> Site 2 | D15: 0
C16: =Names!E15 -> Site 3 | D16: 0
C17: =Names!E16 -> Site 4 | D17: 0
A20: x | C20: Portfolio Inputs
C22: Portfolio | G22: Total/site | I22: Households | J22: Shops | K22: Restaurants | L22: Schools | M22: Religious | N22: Health centers | O22: Public offices | P22: Hotels | Q22: Banks & NGOs
C23: =Names!E13 -> Site 1 | D23: # | G23: =SUM(I23:Q23) -> 200 | I23: 100 | J23: 89 | K23: 5 | M23: 5 | N23: 1 | O23: 0 | P23: 0 | Q23: 0
C24: =Names!E14 -> Site 2 | D24: # | G24: =SUM(I24:Q24) -> 0
C25: =Names!E15 -> Site 3 | D25: # | G25: 0
C26: =Names!E16 -> Site 4 | D26: # | G26: 0
C27: Total | G27: =SUM(G23:G26) -> 200 | I27: =SUM(I23:I26) -> 100 | J27: 89 | K27: 5 | L27: 0 | M27: 5 | N27: 1 | O27: 0 | P27: 0 | Q27: 0
I30: 124000 | J30: 85569 | K30: 192750 | L30: 0 | M30: 80675 | N30: 1500000 | O30: 927000 | P30: Original NGN input
C31: Production Capex Investment Assumptions | G31: Technology: | I31: Solar PV | J31: Battery | K31: Inverters | L31: Diesel Genset | M31: Solar Equip | N31: Installation | O31: Supply costs
C32: Cost Assumptions | G32: Unit: | I32: =IF($E$8="NGN","NGN/kWp","USD/kWp") -> NGN/kWp | J32: =IF($E$8="NGN","NGN/kWh","USD/kWh") -> NGN/kWh | K32: =IF($E$8="NGN","NGN/kVA","USD/kVA") -> NGN/kVA | L32: =IF($E$8="NGN","NGN/kVA","USD/kVA") -> NGN/kVA | M32: =IF($E$8="NGN","NGN/pack","USD/pack") -> NGN/pack | N32: =E8 -> NGN | O32: =E8 -> NGN
C33: =$C$23 -> Site 1 | I33: =IF($E$8="NGN",I30,(I30/$I$314)) -> 124000 | J33: =IF($E$8="NGN",J30,(J30/$I$314)) -> 85569 | K33: 192750 | L33: 0 | M33: 80675 | N33: 1500000 | O33: 927000
C34: =$C$24 -> Site 2
C35: =$C$25 -> Site 3
C36: =$C$26 -> Site 4
G38: Technology: | I38: Solar PV | J38: Battery | K38: Inverters | L38: Diesel Genset | M38: Solar Equip
C39: Sizing Assumptions | G39: Unit: | I39: kWp | J39: kWh | K39: kVA | L39: kVA | M39: Pack
C40: =$C$23 -> Site 1 | D40: # | I40: 40 | J40: 144 | K40: 40 | L40: 0 | M40: 40
C41: =$C$24 -> Site 2 | D41: #
C42: =$C$25 -> Site 3 | D42: #
C43: =$C$26 -> Site 4 | D43: #
C44: Total
I45: 3535000 | K45: 1857450 | L45: 750000 | M45: 555550 | N45: 0 | O45: 2750000 | P45: Original NGN input
C46: Distribution Capex Investment Assumptions | G46: Technology: | I46: LV grid | J46: MV grid | K46: Power house | L46: Fencing | M46: Foundations | N46: Supply costs | O46: Mounting poles
C47: Cost Assumptions | G47: Unit: | I47: =IF($E$8="NGN","NGN/km","USD/km") -> NGN/km | J47: =IF($E$8="NGN","NGN/km","USD/km") -> NGN/km | K47: =$E$8 -> NGN | L47: =$E$8 -> NGN | M47: NGN | N47: NGN | O47: NGN
C48: =$C$23 -> Site 1 | I48: =IF($E$8="NGN",I45,(I45/$I$314)) -> 3535000 | J48: =IF($E$8="NGN",J45,(J45/$I$314)) -> 0 | K48: 1857450 | L48: 750000 | M48: 555550 | N48: 0 | O48: 2750000
C49: =$C$24 -> Site 2
C50: =$C$25 -> Site 3
C51: =$C$26 -> Site 4
C53: Phase 1 customer connection cost | D53: =IF($E$8="NGN","NGN/connection","USD/connection") -> NGN/connection | E53: =IF($E$8="NGN",G53,(G53/$I$314)) -> 31500 | G53: 31500 | I53: Original NGN input
G55: Technology: | I55: LV grid | J55: MV grid
C56: Sizing Assumptions | G56: Unit: | I56: km | J56: km
C57: =$C$23 -> Site 1 | D57: # | I57: 1.8
C58: =$C$24 -> Site 2 | D58: #
C59: =$C$25 -> Site 3 | D59: #
C60: =$C$26 -> Site 4 | D60: #
C61: Total | I61: =SUM(I57:I60) -> 1.8 | J61: =SUM(J57:J60) -> 0
A63: x | C63: Initial Capex
C65: Production Capex Investments | G65: Total | I65: Solar PV | J65: Battery | K65: Inverters | L65: Diesel Genset | M65: Solar Equip | N65: Installation | O65: Supply
C66: =$C$23 -> Site 1 | D66: =IF($E$8="NGN","NGN/site","USD/site") -> NGN/site | G66: =SUM(I66:O66) -> 30645936 | I66: =I40*I33 -> 4960000 | J66: =J40*J33 -> 12321936 | K66: 7710000 | L66: 0 | M66: 3227000 | N66: =N33 -> 1500000 | O66: 927000
C67: =$C$24 -> Site 2 | D67: =IF($E$8="NGN","NGN/site","USD/site") -> NGN/site | G67: =SUM(I67:O67) -> 0 | I67: 0 | J67: 0 | K67: 0 | L67: 0 | M67: 0 | N67: 0 | O67: 0
C68: =$C$25 -> Site 3 | D68: =IF($E$8="NGN","NGN/site","USD/site") -> NGN/site | G68: 0 | I68: 0 | J68: 0 | K68: 0 | L68: 0 | M68: 0 | N68: 0 | O68: 0
C69: =$C$26 -> Site 4 | D69: =IF($E$8="NGN","NGN/site","USD/site") -> NGN/site | G69: 0 | I69: 0 | J69: 0 | K69: 0 | L69: 0 | M69: 0 | N69: 0 | O69: 0
C71: Distribution Capex Investments | G71: Total | I71: LV grid | J71: MV grid | K71: Power house | L71: Fencing | M71: Foundations | N71: Supply | O71: Mounting
C72: =$C$23 -> Site 1 | D72: =IF($E$8="NGN","NGN/site","USD/site") -> NGN/site | G72: =SUM(I72:O72) -> 12276000 | I72: =I57*I48 -> 6363000 | J72: 0 | K72: =K48 -> 1857450 | L72: 750000 | M72: 555550 | N72: 0 | O72: 2750000
C73: =$C$24 -> Site 2 | D73: NGN/site | G73: =SUM(I73:O73) -> 0 | I73: 0 | J73: 0 | K73: 0 | L73: 0 | M73: 0 | N73: 0 | O73: 0
C74: =$C$25 -> Site 3 | D74: NGN/site | G74: 0 | I74: 0 | J74: 0 | K74: 0 | L74: 0 | M74: 0 | N74: 0 | O74: 0
C75: =$C$26 -> Site 4 | D75: NGN/site | G75: 0 | I75: 0 | J75: 0 | K75: 0 | L75: 0 | M75: 0 | N75: 0 | O75: 0
C77: Note customer connection investments within the construction phase are included - see model tab
C79: Project Development costs
C80: Dependent on number of sites | G80: NGN input yr 1
C81: Feasibility study | D81: =$E$8 -> NGN | E81: =IF($E$8="NGN",G81,(G81/$I$314)) -> 150000 | G81: 150000
C82: Environmental Impact Assessment | D82: =$E$8 -> NGN | E82: =IF($E$8="NGN",G82,(G82/$I$314)) -> 1000000 | G82: 1000000
C83: Acquisition of land usage rights | D83: NGN | E83: =IF($E$8="NGN",G83,(G83/$I$314)) -> 50000 | G83: 50000
C84: Set up of village and customer relationship | D84: NGN | E84: =IF($E$8="NGN",G84,(G84/$I$314)) -> 100000 | G84: 100000
C85: Total | D85: NGN | E85: =SUM(E81:E84) -> 1300000
C87: Not dependent on number of sites
C88: Generation / distribution license acquisition | D88: =$E$8 -> NGN | E88: =IF($E$8="NGN",G88,(G88/$I$314)) -> 0 | G88: 0
C89: Acquisition of capital incl. due diligence | D89: NGN | E89: =IF($E$8="NGN",G89,(G89/$I$314)) -> 0 | G89: 0
C90: Company foundation and establishment | D90: NGN | E90: =IF($E$8="NGN",G90,(G90/$I$314)) -> 0 | G90: 0
C91: Total | D91: =$E$8 -> NGN | E91: =SUM(E88:E90) -> 0
A93: x | C93: Construction
C95: Build Profile
C96: Construction year | E96: Max years | G96: Check | I96: =Year -> 2020 | J96: =I96+1 -> 2021 | K96: =J96+1 -> 2022 | L96: 2023 | M96: 2024 | N96: Check
C97: =$C$23 -> Site 1 | D97: 1 or 0 | E97: 1 | G97: =IF(SUM(I97:M97)>1,1,0) -> 0 | I97: 1 | N97: =IF(AND(D14>0,SUM(I97:M97)<1),1,0) -> 0
C98: =$C$24 -> Site 2 | D98: 1 or 0 | G98: =IF(SUM(I98:M98)>1,1,0) -> 0 | N98: =IF(AND(D15>0,SUM(I98:M98)<1),1,0) -> 0
C99: =$C$25 -> Site 3 | D99: 1 or 0 | G99: 0 | N99: =IF(AND(D16>0,SUM(I99:M99)<1),1,0) -> 0
C100: =$C$26 -> Site 4 | D100: 1 or 0 | G100: 0 | N100: =IF(AND(D17>0,SUM(I100:M100)<1),1,0) -> 0
C101: Total | I101: =SUM(I97:I100) -> 1 | J101: =SUM(J97:J100) -> 0 | K101: 0 | L101: 0 | M101: 0
I102: Check | J102: =IF(AND(J101>0,J96-Year+1>$E$97),1,0) -> 0 | K102: =IF(AND(K101>0,K96-Year+1>$E$97),1,0) -> 0 | L102: =IF(AND(L101>0,L96-Year+1>$E$97),1,0) -> 0 | M102: =IF(AND(M101>0,M96-Year+1>$E$97),1,0) -> 0
C104: Operations profile | E104: =$D$13 -> Operational | I104: =$I$307 -> 2020 | J104: =I104+1 -> 2021 | K104: =J104+1 -> 2022 | L104: 2023 | M104: 2024
C105: =$C$23 -> Site 1 | D105: # | E105: =$D$14 -> 1 | I105: =IF($E105=0,0,IF(I97=1,1,IF(H105>0,H105+1,0))) -> 1 | J105: =IF($E105=0,0,IF(J97=1,1,IF(I105>0,I105+1,0))) -> 2 | K105: 3 | L105: 4 | M105: 5
C106: =$C$24 -> Site 2 | D106: # | E106: =$D$15 -> 0 | I106: =IF($E106=0,0,IF(I98=1,1,IF(H106>0,H106+1,0))) -> 0 | J106: 0 | K106: 0 | L106: 0 | M106: 0
C107: =$C$25 -> Site 3 | D107: # | E107: =$D$16 -> 0 | I107: =IF($E107=0,0,IF(I99=1,1,IF(H107>0,H107+1,0))) -> 0 | J107: 0 | K107: 0 | L107: 0 | M107: 0
C108: =$C$26 -> Site 4 | D108: # | E108: =$D$17 -> 0 | I108: =IF($E108=0,0,IF(I100=1,1,IF(H108>0,H108+1,0))) -> 0 | J108: 0 | K108: 0 | L108: 0 | M108: 0
A110: x | C110: Ongoing Capex
C112: Production Capex
C113: Replacement capex sizing | I113: Solar PV | J113: Battery | K113: Inverters | L113: Diesel Genset | M113: Solar Equip
C114: =$C$23 -> Site 1 | D114: % initial capex | I114: 0.05 | J114: 0.3333333333 | K114: 1 | L114: 1 | M114: 1
C115: =$C$24 -> Site 2 | D115: % initial capex
C116: =$C$25 -> Site 3 | D116: % initial capex
C117: =$C$26 -> Site 4 | D117: % initial capex
C119: Investments by site class | I119: Solar PV | J119: Battery | K119: Inverters | L119: Diesel Genset | M119: Solar Equip
C120: =$C$23 -> Site 1 | D120: =$E$8 -> NGN | I120: =I66*I114 -> 248000 | J120: =J66*J114 -> 4107312 | K120: =K66*K114 -> 7710000 | L120: 0 | M120: 3227000
C121: =$C$24 -> Site 2 | D121: =$E$8 -> NGN | I121: =I67*I115 -> 0 | J121: 0 | K121: 0 | L121: 0 | M121: 0
C122: =$C$25 -> Site 3 | D122: NGN | I122: 0 | J122: 0 | K122: 0 | L122: 0 | M122: 0
C123: =$C$26 -> Site 4 | D123: NGN | I123: 0 | J123: 0 | K123: 0 | L123: 0 | M123: 0
C125: Distribution Capex Investment Assumptions
C126: Low Voltage distribution grid [LV grid] | D126: % initial capex | E126: 0
C127: Medium Voltage distribution grid [MV grid] | D127: % initial capex | E127: 0
C128: Power house | D128: % initial capex | E128: 0.05
C129: Fencing | D129: % initial capex | E129: 0.01
C130: Foundations | D130: % initial capex | E130: 0.01
C132: Investments by site class | I132: LV grid | J132: MV grid | K132: Power house | L132: Fencing | M132: Foundations
C133: =$C$23 -> Site 1 | D133: =$E$8 -> NGN | I133: =I72*E$126 -> 0 | J133: =J72*E$127 -> 0 | K133: =K72*E$128 -> 92872.5 | L133: =L72*E$129 -> 7500 | M133: =M72*E$130 -> 5555.5
C134: =$C$24 -> Site 2 | D134: =$E$8 -> NGN | I134: =I73*E$126 -> 0 | J134: =J73*E$127 -> 0 | K134: =K73*E$128 -> 0 | L134: =L73*E$129 -> 0 | M134: =M73*E$130 -> 0
C135: =$C$25 -> Site 3 | D135: NGN | I135: =I74*E$126 -> 0 | J135: =J74*E$127 -> 0 | K135: =K74*E$128 -> 0 | L135: =L74*E$129 -> 0 | M135: =M74*E$130 -> 0
C136: =$C$26 -> Site 4 | D136: NGN | I136: =I75*E$126 -> 0 | J136: =J75*E$127 -> 0 | K136: =K75*E$128 -> 0 | L136: =L75*E$129 -> 0 | M136: =M75*E$130 -> 0
A138: x | C138: Fees, Tariffs and Charges
C140: Connection & Installation Fees | E140: Cost | G140: Initial NGN assumption
C141: Connection fee | D141: =IF($E$8="NGN","NGN/connection","USD/connection") -> NGN/connection | E141: =IF($E$8="NGN",G141,(G141/$I$314)) -> 5000 | G141: 5000
C142: Upfront contribution indoor installation | D142: =IF($E$8="NGN","NGN/connection","USD/connection") -> NGN/connection | E142: =IF($E$8="NGN",G142,(G142/$I$314)) -> 0
C143: Reimbursement of indoor installation | D143: NGN/connection | E143: =IF($E$8="NGN",G143,(G143/$I$314)) -> 0
C145: Tariffs & Charges
C146: Phase 1 tariffs and annual charges | E146: Cost | F146: Initial NGN assumption | G146: Growth Rate | I146: 1 | J146: =I146+1 -> 2 | K146: =J146+1 -> 3 | L146: 4 | M146: 5 | N146: 6 | O146: 7 | P146: 8 | Q146: 9 | R146: 10 | S146: 11 | T146: 12 | U146: 13 | V146: 14 | W146: 15 | X146: 16 | Y146: 17 | Z146: 18 | AA146: 19 | AB146: 20 | AC146: 21 | AD146: 22 | AE146: 23 | AF146: 24 | AG146: 25
C147: Day Tariff | D147: =IF($E$8="NGN","NGN/kWh","USD/kWh") -> NGN/kWh | E147: =IF($E$8="NGN",F147,(F147/$I$314)) -> 180 | F147: 180 | G147: 0.01 | I147: =IF(I$152=1,H147*(1+$G147)^$E$152,E147) -> 180 | J147: =IF(J$152=1,I147*(1+$G147)^$E$152,I147) -> 180 | K147: 180 | L147: 180 | M147: 189.181809 | N147: 189.181809 | O147: 189.181809 | P147: 189.181809 | Q147: 189.181809 | R147: 198.8319826 | S147: 198.8319826 | T147: 198.8319826 | U147: 198.8319826 | V147: 198.8319826 | W147: 208.974412 | X147: 208.974412 | Y147: 208.974412 | Z147: 208.974412 | AA147: 208.974412 | AB147: 219.6342072 | AC147: 219.6342072 | AD147: 219.6342072 | AE147: 219.6342072 | AF147: 219.6342072 | AG147: 230.8377591
C148: Night Tariff | D148: =IF($E$8="NGN","NGN/kWh","USD/kWh") -> NGN/kWh | E148: =IF($E$8="NGN",F148,(F148/$I$314)) -> 180 | F148: 180 | G148: 0.01 | I148: =IF(I$152=1,H148*(1+$G148)^$E$152,E148) -> 180 | J148: =IF(J$152=1,I148*(1+$G148)^$E$152,I148) -> 180 | K148: 180 | L148: 180 | M148: 189.181809 | N148: 189.181809 | O148: 189.181809 | P148: 189.181809 | Q148: 189.181809 | R148: 198.8319826 | S148: 198.8319826 | T148: 198.8319826 | U148: 198.8319826 | V148: 198.8319826 | W148: 208.974412 | X148: 208.974412 | Y148: 208.974412 | Z148: 208.974412 | AA148: 208.974412 | AB148: 219.6342072 | AC148: 219.6342072 | AD148: 219.6342072 | AE148: 219.6342072 | AF148: 219.6342072 | AG148: 230.8377591
C149: Fixed Charge | D149: =IF($E$8="NGN","NGN/customer/year","USD/customer/year") -> NGN/customer/year | E149: =IF($E$8="NGN",F149,(F149/$I$314)) -> 12000 | F149: =1000*12 -> 12000 | G149: 0.01 | I149: =IF(I$152=1,H149*(1+$G149)^$E$152,E149) -> 12000 | J149: =IF(J$152=1,I149*(1+$G149)^$E$152,I149) -> 12000 | K149: 12000 | L149: 12000 | M149: 12612.1206 | N149: 12612.1206 | O149: 12612.1206 | P149: 12612.1206 | Q149: 12612.1206 | R149: 13255.4655 | S149: 13255.4655 | T149: 13255.4655 | U149: 13255.4655 | V149: 13255.4655 | W149: 13931.62746 | X149: 13931.62746 | Y149: 13931.62746 | Z149: 13931.62746 | AA149: 13931.62746 | AB149: 14642.28048 | AC149: 14642.28048 | AD149: 14642.28048 | AE149: 14642.28048 | AF149: 14642.28048 | AG149: 15389.18394
C150: Metering Costs | D150: =IF($E$8="NGN","NGN/customer/year","USD/customer/year") -> NGN/customer/year | E150: =IF($E$8="NGN",F150,(F150/$I$314)) -> 2000 | F150: 2000 | G150: 0.02 | I150: =IF(I$152=1,H150*(1+$G150)^$E$152,E150) -> 2000 | J150: =IF(J$152=1,I150*(1+$G150)^$E$152,I150) -> 2000 | K150: 2000 | L150: 2000 | M150: 2208.161606 | N150: 2208.161606 | O150: 2208.161606 | P150: 2208.161606 | Q150: 2208.161606 | R150: 2437.98884 | S150: 2437.98884 | T150: 2437.98884 | U150: 2437.98884 | V150: 2437.98884 | W150: 2691.736677 | X150: 2691.736677 | Y150: 2691.736677 | Z150: 2691.736677 | AA150: 2691.736677 | AB150: 2971.894792 | AC150: 2971.894792 | AD150: 2971.894792 | AE150: 2971.894792 | AF150: 2971.894792 | AG150: 3281.211989
C152: Tariff review period | D152: Years | E152: 5 | I152: =IF(MOD(I146,$E152)=0,1,0) -> 0 | J152: 0 | K152: 0 | L152: 0 | M152: 1 | N152: 0 | O152: 0 | P152: 0 | Q152: 0 | R152: 1 | S152: 0 | T152: 0 | U152: 0 | V152: 0 | W152: 1 | X152: 0 | Y152: 0 | Z152: 0 | AA152: 0 | AB152: 1 | AC152: 0 | AD152: 0 | AE152: 0 | AF152: 0 | AG152: 1
A154: x | C154: Number of customers
C156: Customers
C157: Penetration Rate (by year of operations) | I157: 1 | J157: =I157+1 -> 2 | K157: =J157+1 -> 3 | L157: 4 | M157: 5 | N157: 6 | O157: 7 | P157: 8 | Q157: 9 | R157: 10 | S157: 11 | T157: 12 | U157: 13 | V157: 14 | W157: 15 | X157: 16 | Y157: 17 | Z157: 18 | AA157: 19 | AB157: 20 | AC157: 21 | AD157: 22 | AE157: 23 | AF157: 24 | AG157: 25
C158: =$C$23 -> Site 1 | D158: % site 1 population | I158: 0.6 | J158: 0.8 | K158: 1 | L158: 1 | M158: 1 | N158: 1 | O158: 1 | P158: 1 | Q158: 1 | R158: 1 | S158: 1 | T158: 1 | U158: 1 | V158: 1 | W158: 1 | X158: 1 | Y158: 1 | Z158: 1 | AA158: 1 | AB158: 1 | AC158: 1 | AD158: 1 | AE158: 1 | AF158: 1 | AG158: 1
C159: =$C$24 -> Site 2 | D159: % site 2 population
C160: =$C$25 -> Site 3 | D160: % site 3 population
C161: =$C$26 -> Site 4 | D161: % site 4 population
C163: Customer connections by site | G163: Population | I163: 1 | J163: =I163+1 -> 2 | K163: =J163+1 -> 3 | L163: 4 | M163: 5 | N163: 6 | O163: 7 | P163: 8 | Q163: 9 | R163: 10 | S163: 11 | T163: 12 | U163: 13 | V163: 14 | W163: 15 | X163: 16 | Y163: 17 | Z163: 18 | AA163: 19 | AB163: 20 | AC163: 21 | AD163: 22 | AE163: 23 | AF163: 24 | AG163: 25
C164: =$C$23 -> Site 1 | D164: # connections | G164: =G23 -> 200 | I164: =I158*$G164 -> 120 | J164: =J158*$G164 -> 160 | K164: 200 | L164: 200 | M164: 200 | N164: 200 | O164: 200 | P164: 200 | Q164: 200 | R164: 200 | S164: 200 | T164: 200 | U164: 200 | V164: 200 | W164: 200 | X164: 200 | Y164: 200 | Z164: 200 | AA164: 200 | AB164: 200 | AC164: 200 | AD164: 200 | AE164: 200 | AF164: 200 | AG164: 200
C165: =$C$24 -> Site 2 | D165: # connections | G165: =G24 -> 0 | I165: =I159*$G165 -> 0 | J165: 0 | K165: 0 | L165: 0 | M165: 0 | N165: 0 | O165: 0 | P165: 0 | Q165: 0 | R165: 0 | S165: 0 | T165: 0 | U165: 0 | V165: 0 | W165: 0 | X165: 0 | Y165: 0 | Z165: 0 | AA165: 0 | AB165: 0 | AC165: 0 | AD165: 0 | AE165: 0 | AF165: 0 | AG165: 0
C166: =$C$25 -> Site 3 | D166: # connections | G166: =G25 -> 0 | I166: =I160*$G166 -> 0 | J166: 0 | K166: 0 | L166: 0 | M166: 0 | N166: 0 | O166: 0 | P166: 0 | Q166: 0 | R166: 0 | S166: 0 | T166: 0 | U166: 0 | V166: 0 | W166: 0 | X166: 0 | Y166: 0 | Z166: 0 | AA166: 0 | AB166: 0 | AC166: 0 | AD166: 0 | AE166: 0 | AF166: 0 | AG166: 0
C167: =$C$26 -> Site 4 | D167: # connections | G167: =G26 -> 0 | I167: =I161*$G167 -> 0 | J167: 0 | K167: 0 | L167: 0 | M167: 0 | N167: 0 | O167: 0 | P167: 0 | Q167: 0 | R167: 0 | S167: 0 | T167: 0 | U167: 0 | V167: 0 | W167: 0 | X167: 0 | Y167: 0 | Z167: 0 | AA167: 0 | AB167: 0 | AC167: 0 | AD167: 0 | AE167: 0 | AF167: 0 | AG167: 0
C169: New customer connections by site | I169: 1 | J169: =I169+1 -> 2 | K169: =J169+1 -> 3 | L169: 4 | M169: 5 | N169: 6 | O169: 7 | P169: 8 | Q169: 9 | R169: 10 | S169: 11 | T169: 12 | U169: 13 | V169: 14 | W169: 15 | X169: 16 | Y169: 17 | Z169: 18 | AA169: 19 | AB169: 20 | AC169: 21 | AD169: 22 | AE169: 23 | AF169: 24 | AG169: 25
C170: =$C$23 -> Site 1 | D170: # connections | I170: =I164-H164 -> 120 | J170: =J164-I164 -> 40 | K170: 40 | L170: 0 | M170: 0 | N170: 0 | O170: 0 | P170: 0 | Q170: 0 | R170: 0 | S170: 0 | T170: 0 | U170: 0 | V170: 0 | W170: 0 | X170: 0 | Y170: 0 | Z170: 0 | AA170: 0 | AB170: 0 | AC170: 0 | AD170: 0 | AE170: 0 | AF170: 0 | AG170: 0
C171: =$C$24 -> Site 2 | D171: # connections | I171: =I165-H165 -> 0 | J171: 0 | K171: 0 | L171: 0 | M171: 0 | N171: 0 | O171: 0 | P171: 0 | Q171: 0 | R171: 0 | S171: 0 | T171: 0 | U171: 0 | V171: 0 | W171: 0 | X171: 0 | Y171: 0 | Z171: 0 | AA171: 0 | AB171: 0 | AC171: 0 | AD171: 0 | AE171: 0 | AF171: 0 | AG171: 0
C172: =$C$25 -> Site 3 | D172: # connections | I172: =I166-H166 -> 0 | J172: 0 | K172: 0 | L172: 0 | M172: 0 | N172: 0 | O172: 0 | P172: 0 | Q172: 0 | R172: 0 | S172: 0 | T172: 0 | U172: 0 | V172: 0 | W172: 0 | X172: 0 | Y172: 0 | Z172: 0 | AA172: 0 | AB172: 0 | AC172: 0 | AD172: 0 | AE172: 0 | AF172: 0 | AG172: 0
C173: =$C$26 -> Site 4 | D173: # connections | I173: =I167-H167 -> 0 | J173: 0 | K173: 0 | L173: 0 | M173: 0 | N173: 0 | O173: 0 | P173: 0 | Q173: 0 | R173: 0 | S173: 0 | T173: 0 | U173: 0 | V173: 0 | W173: 0 | X173: 0 | Y173: 0 | Z173: 0 | AA173: 0 | AB173: 0 | AC173: 0 | AD173: 0 | AE173: 0 | AF173: 0 | AG173: 0
A176: x | C176: Consumption
C178: Customers | E178: Initial | G178: Growth Rate | I178: 1 | J178: =I178+1 -> 2 | K178: =J178+1 -> 3 | L178: 4 | M178: 5 | N178: 6 | O178: 7 | P178: 8 | Q178: 9 | R178: 10 | S178: 11 | T178: 12 | U178: 13 | V178: 14 | W178: 15 | X178: 16 | Y178: 17 | Z178: 18 | AA178: 19 | AB178: 20 | AC178: 21 | AD178: 22 | AE178: 23 | AF178: 24 | AG178: 25
C179: =$C$23 -> Site 1 | D179: kWh/month/customer | E179: 34 | G179: 0.3 | I179: =E179 -> 34 | J179: =I179*(1+$G179) -> 44.2 | K179: =J179*(1+$G179) -> 57.46 | L179: 74.698 | M179: 97.1074 | N179: 126.23962 | O179: 164.111506 | P179: 213.3449578 | Q179: 277.3484451 | R179: 360.5529787 | S179: 468.7188723 | T179: 609.334534 | U179: 792.1348942 | V179: 1029.775362 | W179: 1338.707971 | X179: 1740.320362 | Y179: 2262.416471 | Z179: 2941.141413 | AA179: 3823.483836 | AB179: 4970.528987 | AC179: 6461.687683 | AD179: 8400.193988 | AE179: 10920.25219 | AF179: 14196.32784 | AG179: 18455.22619
C180: =$C$24 -> Site 2 | D180: kWh/month/customer | I180: =E180 -> 0 | J180: =I180*(1+$G180) -> 0 | K180: 0 | L180: 0 | M180: 0 | N180: 0 | O180: 0 | P180: 0 | Q180: 0 | R180: 0 | S180: 0 | T180: 0 | U180: 0 | V180: 0 | W180: 0 | X180: 0 | Y180: 0 | Z180: 0 | AA180: 0 | AB180: 0 | AC180: 0 | AD180: 0 | AE180: 0 | AF180: 0 | AG180: 0
C181: =$C$25 -> Site 3 | D181: kWh/month/customer | I181: 0 | J181: =I181*(1+$G181) -> 0 | K181: 0 | L181: 0 | M181: 0 | N181: 0 | O181: 0 | P181: 0 | Q181: 0 | R181: 0 | S181: 0 | T181: 0 | U181: 0 | V181: 0 | W181: 0 | X181: 0 | Y181: 0 | Z181: 0 | AA181: 0 | AB181: 0 | AC181: 0 | AD181: 0 | AE181: 0 | AF181: 0 | AG181: 0
C182: =$C$26 -> Site 4 | D182: kWh/month/customer | I182: 0 | J182: =I182*(1+$G182) -> 0 | K182: 0 | L182: 0 | M182: 0 | N182: 0 | O182: 0 | P182: 0 | Q182: 0 | R182: 0 | S182: 0 | T182: 0 | U182: 0 | V182: 0 | W182: 0 | X182: 0 | Y182: 0 | Z182: 0 | AA182: 0 | AB182: 0 | AC182: 0 | AD182: 0 | AE182: 0 | AF182: 0 | AG182: 0
C185: Consumption by tariff | E185: Phase 1
C187: Day Tariff | D187: % consumption | E187: 0.55
C188: Night Tariff | D188: % consumption | E188: 0.45
D189: Check | E189: =IF(SUM(E187:E188)=1,0,1) -> 0
A191: x | C191: Operations
C193: Technical performance
C194: Technical uptime | D194: % | E194: 0.95
C195: Collection rate | D195: % | E195: 0.98
C196: Percentage of sales from prodution | D196: % | E196: =E194*E195 -> 0.931
C198: Overhead costs
C199: Annual costs | G199: Original NGN input
C200: Salary Managing Director | D200: =IF($E$8="NGN","NGN/year","USD/year") -> NGN/year | E200: =IF($E$8="NGN",G200,(G200/$I$314)) -> 0 | G200: 0
C201: Management and technical staff | D201: =IF($E$8="NGN","NGN/year","USD/year") -> NGN/year | E201: 0 | G201: 0
C202: Rural marketing | D202: NGN/year | E202: 50000 | G202: 50000
C203: Accounting | D203: NGN/year | E203: 150000 | G203: 150000
C204: Transportation and travel | D204: NGN/year | E204: 200000 | G204: 200000
C205: Office costs | D205: NGN/year | E205: 50000 | G205: 50000
C206: Consultancy cost and fees | D206: NGN/year | E206: 250000 | G206: 250000
C207: Company insurance | D207: NGN/year | E207: 180000 | G207: 180000
C208: Miscellaneous | D208: NGN/year | E208: 50000 | G208: 50000
C210: One time costs
C211: Vehicle | D211: =E8 -> NGN | E211: =IF($E$8="NGN",G211,(G211/$I$314)) -> 1500000 | G211: 1500000
C213: Operational costs | I213: 120000 | J213: 100000 | K213: 240000 | L213: 180000 | M213: 50000 | N213: Original NGN input
C214: Site dependent (year 1 basis) | I214: S&M | J214: Local ops | K214: Guards | L214: Insurance | M214: Marketing
C215: =$C$23 -> Site 1 | D215: =IF($E$8="NGN","NGN/year","USD/year") -> NGN/year | I215: =IF($E$8="NGN",I213,(I213/$I$314)) -> 120000 | J215: =IF($E$8="NGN",J213,(J213/$I$314)) -> 100000 | K215: 240000 | L215: 180000 | M215: 50000
C216: =$C$24 -> Site 2 | D216: NGN/year
C217: =$C$25 -> Site 3 | D217: NGN/year
C218: =$C$26 -> Site 4 | D218: NGN/year
C220: Site independent
C221: Metering License | D221: % monthly payment | E221: 0.0002
C222: Vendors | D222: % monthly payment | E222: 0.0006
C223: Mobile payment fee | D223: % monthly payment | E223: 0.0002
C225: Diesel consumption | I225: 1 | J225: =I225+1 -> 2 | K225: =J225+1 -> 3 | L225: =K225+1 -> 4 | M225: =L225+1 -> 5 | N225: =M225+1 -> 6 | O225: =N225+1 -> 7 | P225: =O225+1 -> 8 | Q225: =P225+1 -> 9 | R225: =Q225+1 -> 10 | S225: =R225+1 -> 11 | T225: =S225+1 -> 12 | U225: =T225+1 -> 13 | V225: =U225+1 -> 14 | W225: =V225+1 -> 15 | X225: =W225+1 -> 16 | Y225: =X225+1 -> 17 | Z225: =Y225+1 -> 18 | AA225: =Z225+1 -> 19 | AB225: =AA225+1 -> 20 | AC225: =AB225+1 -> 21 | AD225: =AC225+1 -> 22 | AE225: =AD225+1 -> 23 | AF225: =AE225+1 -> 24 | AG225: =AF225+1 -> 25
C226: =$C$23 -> Site 1 | D226: L/year | I226: 0 | J226: 0 | K226: 0 | L226: 0 | M226: 0 | N226: 0 | O226: 0 | P226: 0 | Q226: 0 | R226: 0 | S226: 0 | T226: 0 | U226: 0 | V226: 0 | W226: 0 | X226: 0 | Y226: 0 | Z226: 0 | AA226: 0 | AB226: 0 | AC226: 0 | AD226: 0 | AE226: 0 | AF226: 0 | AG226: 0
C227: =$C$24 -> Site 2 | D227: L/year
C228: =$C$25 -> Site 3 | D228: L/year
C229: =$C$26 -> Site 4 | D229: L/year
A232: x | C232: Tax and Depreciation
C234: Tax | G234: Notes
C235: Income tax | D235: % | E235: 0.3 | G235: % of EBT
C237: Capex grant
C238: Grant financing (% initial capex) | D238: % | E238: =Dashboard!K14 -> 0.4239907303
C239: Initial capex amount to depreciate | D239: % | E239: =1-E238 -> 0.5760092697
I241: Assumptions are not validated - seek local tax advice
C242: Depreciation of generation assets | E242: Accounting Depreciation | I242: Tax Depreciation
C243: Initial capex depreciation | E243: Asset life | G243: SL Deprec | I243: Asset life | J243: SL Deprec
C244: Solar PV (incl. mounting system) | D244: years | E244: 25 | G244: =1/E244 -> 0.04 | I244: 10 | J244: =1/I244 -> 0.1
C245: Battery (incl. rack) | D245: years | E245: 8 | G245: =1/E245 -> 0.125 | I245: 10 | J245: =1/I245 -> 0.1
C246: Inverters (battery and PV) or charge controller | D246: years | E246: 15 | G246: 0.06666666667 | I246: 10 | J246: 0.1
C247: Diesel genset incl tank | D247: years | E247: 25 | G247: 0.04 | I247: 10 | J247: 0.1
C248: Solar equipment incl. protection, monitoring syst., cable kit | D248: years | E248: 15 | G248: 0.06666666667 | I248: 10 | J248: 0.1
C249: Installation costs | D249: years | E249: 25 | G249: 0.04 | I249: 10 | J249: 0.1
C250: Supply costs | D250: years | E250: 25 | G250: 0.04 | I250: 10 | J250: 0.1
C252: Ongoing capex flag | E252: Reinvest? | G252: Reinvest year
C253: Solar PV (incl. mounting system) | D253: Yes [1] or No [0] | E253: 1 | G253: =IF(E253=1,E244,"") -> 25
... 51 more rows

Sheet Model
A1: Model
A2: =Name_Model -> FGN 5M Solar Connections Facility - Mini-Grid
J3: =YEAR(J4) -> 2020 | K3: =J3+1 -> 2021 | L3: =K3+1 -> 2022 | M3: 2023 | N3: 2024 | O3: 2025 | P3: 2026 | Q3: 2027 | R3: 2028 | S3: 2029 | T3: 2030 | U3: 2031 | V3: 2032 | W3: 2033 | X3: 2034 | Y3: 2035 | Z3: 2036 | AA3: 2037 | AB3: 2038 | AC3: 2039 | AD3: 2040 | AE3: 2041 | AF3: 2042 | AG3: 2043 | AH3: 2044
C4: Period Start | D4: Date | J4: =Inputs!E6 -> 2020-11-01 | K4: =J5+1 -> 2021-11-01 | L4: 2022-11-01 | M4: 2023-11-01 | N4: 2024-11-01 | O4: 2025-11-01 | P4: 2026-11-01 | Q4: 2027-11-01 | R4: 2028-11-01 | S4: 2029-11-01 | T4: 2030-11-01 | U4: 2031-11-01 | V4: 2032-11-01 | W4: 2033-11-01 | X4: 2034-11-01 | Y4: 2035-11-01 | Z4: 2036-11-01 | AA4: =Z5+1 -> 2037-11-01 | AB4: =AA5+1 -> 2038-11-01 | AC4: 2039-11-01 | AD4: 2040-11-01 | AE4: 2041-11-01 | AF4: 2042-11-01 | AG4: 2043-11-01 | AH4: 2044-11-01
C5: Period End | D5: Date | I5: =J4 -> 2020-11-01 | J5: =EOMONTH(J4,11) -> 2021-10-31 | K5: =EOMONTH(K4,11) -> 2022-10-31 | L5: 2023-10-31 | M5: 2024-10-31 | N5: 2025-10-31 | O5: 2026-10-31 | P5: 2027-10-31 | Q5: 2028-10-31 | R5: 2029-10-31 | S5: 2030-10-31 | T5: 2031-10-31 | U5: 2032-10-31 | V5: 2033-10-31 | W5: 2034-10-31 | X5: 2035-10-31 | Y5: 2036-10-31 | Z5: 2037-10-31 | AA5: 2038-10-31 | AB5: 2039-10-31 | AC5: 2040-10-31 | AD5: 2041-10-31 | AE5: 2042-10-31 | AF5: 2043-10-31 | AG5: 2044-10-31 | AH5: 2045-10-31
C6: General cost inflation (national rate) | J6: =Inputs!I308 -> 1 | K6: =Inputs!J308 -> 1.13 | L6: =Inputs!K308 -> 1.2769 | M6: =Inputs!L308 -> 1.442897 | N6: =Inputs!M308 -> 1.63047361 | O6: =Inputs!N308 -> 1.842435179 | P6: =Inputs!O308 -> 2.081951753 | Q6: =Inputs!P308 -> 2.35260548 | R6: =Inputs!Q308 -> 2.658444193 | S6: =Inputs!R308 -> 3.004041938 | T6: =Inputs!S308 -> 3.39456739 | U6: =Inputs!T308 -> 3.835861151 | V6: =Inputs!U308 -> 4.3345231 | W6: =Inputs!V308 -> 4.898011103 | X6: =Inputs!W308 -> 5.534752547 | Y6: =Inputs!X308 -> 6.254270378 | Z6: =Inputs!Y308 -> 7.067325527 | AA6: =Inputs!Z308 -> 7.986077845 | AB6: =Inputs!AA308 -> 9.024267965 | AC6: =Inputs!AB308 -> 10.1974228 | AD6: =Inputs!AC308 -> 11.52308776 | AE6: =Inputs!AD308 -> 13.02108917 | AF6: =Inputs!AE308 -> 14.71383077 | AG6: =Inputs!AF308 -> 16.62662877 | AH6: =Inputs!AG308 -> 18.78809051
C8: Construction flag & operations year
C9: Construction period | D9: Flag | E9: =Inputs!E97 -> 1 | F9: =Inputs!$D$13 -> Operational | J9: =IF(J3>$J$3-1+$E$9,0,1) -> 1 | K9: 0 | L9: 0 | M9: 0 | N9: 0 | O9: 0 | P9: 0 | Q9: 0 | R9: 0 | S9: 0 | T9: 0 | U9: 0 | V9: 0 | W9: 0 | X9: 0 | Y9: 0 | Z9: 0 | AA9: 0 | AB9: 0 | AC9: 0 | AD9: 0 | AE9: 0 | AF9: 0 | AG9: 0 | AH9: 0
C10: =Inputs!$C$23 -> Site 1 | D10: # | F10: 1 | J10: =Inputs!I105 -> 1 | K10: =Inputs!J105 -> 2 | L10: =Inputs!K105 -> 3 | M10: =Inputs!L105 -> 4 | N10: =Inputs!M105 -> 5 | O10: =IF(N10>0,N10+1,0) -> 6 | P10: =IF(O10>0,O10+1,0) -> 7 | Q10: 8 | R10: 9 | S10: 10 | T10: 11 | U10: 12 | V10: 13 | W10: 14 | X10: 15 | Y10: 16 | Z10: 17 | AA10: 18 | AB10: 19 | AC10: 20 | AD10: 21 | AE10: 22 | AF10: 23 | AG10: 24 | AH10: 25
C11: =Inputs!$C$24 -> Site 2 | D11: # | F11: 0 | J11: =Inputs!I106 -> 0 | K11: =Inputs!J106 -> 0 | L11: =Inputs!K106 -> 0 | M11: =Inputs!L106 -> 0 | N11: =Inputs!M106 -> 0 | O11: =IF(N11>0,N11+1,0) -> 0 | P11: 0 | Q11: 0 | R11: 0 | S11: 0 | T11: 0 | U11: 0 | V11: 0 | W11: 0 | X11: 0 | Y11: 0 | Z11: 0 | AA11: 0 | AB11: 0 | AC11: 0 | AD11: 0 | AE11: 0 | AF11: 0 | AG11: 0 | AH11: 0
C12: =Inputs!$C$25 -> Site 3 | D12: # | F12: =Inputs!D16 -> 0 | J12: =Inputs!I107 -> 0 | K12: =Inputs!J107 -> 0 | L12: =Inputs!K107 -> 0 | M12: =Inputs!L107 -> 0 | N12: =Inputs!M107 -> 0 | O12: =IF(N12>0,N12+1,0) -> 0 | P12: 0 | Q12: 0 | R12: 0 | S12: 0 | T12: 0 | U12: 0 | V12: 0 | W12: 0 | X12: 0 | Y12: 0 | Z12: 0 | AA12: 0 | AB12: 0 | AC12: 0 | AD12: 0 | AE12: 0 | AF12: 0 | AG12: 0 | AH12: 0
C13: =Inputs!$C$26 -> Site 4 | D13: # | F13: =Inputs!D17 -> 0 | J13: =Inputs!I108 -> 0 | K13: =Inputs!J108 -> 0 | L13: =Inputs!K108 -> 0 | M13: =Inputs!L108 -> 0 | N13: =Inputs!M108 -> 0 | O13: =IF(N13>0,N13+1,0) -> 0 | P13: 0 | Q13: 0 | R13: 0 | S13: 0 | T13: 0 | U13: 0 | V13: 0 | W13: 0 | X13: 0 | Y13: 0 | Z13: 0 | AA13: 0 | AB13: 0 | AC13: 0 | AD13: 0 | AE13: 0 | AF13: 0 | AG13: 0 | AH13: 0
A15: x | C15: Income Statement
C17: Revenue
C18: Phase 1 Tariff | D18: =Inputs!$E$8 -> NGN | J18: =J262 -> 8204716.8 | K18: 14221509.12 | L18: 23109952.32 | M18: 30042938.02 | N18: 41048058.73 | O18: 53362476.34 | P18: 69371219.25 | Q18: 90182585.02 | R18: 117237360.5 | S18: 160182937.4 | T18: 208237818.6 | U18: 270709164.2 | V18: 351921913.5 | W18: 457498487.5 | X18: 625086160.8 | Y18: 812612009 | Z18: 1056395612 | AA18: 1373314295 | AB18: 1785308584 | AC18: 2439290443 | AD18: 3171077576 | AE18: 4122400849 | AF18: 5359121104 | AG18: 6966857435 | AH18: 9518908337
C19: Phase 1 Connection & Installation Fees | D19: =Inputs!$E$8 -> NGN | J19: =J286 -> 600000 | K19: =K286 -> 226000 | L19: =L286 -> 255380 | M19: 0 | N19: 0 | O19: 0 | P19: 0 | Q19: 0 | R19: 0 | S19: 0 | T19: 0 | U19: 0 | V19: 0 | W19: 0 | X19: 0 | Y19: 0 | Z19: 0 | AA19: 0 | AB19: 0 | AC19: 0 | AD19: 0 | AE19: 0 | AF19: 0 | AG19: 0 | AH19: 0
C20: Phase 1 Charges | D20: =Inputs!$E$8 -> NGN | J20: =J303 -> 1680000 | K20: =K303 -> 2240000 | L20: 2800000 | M20: 2800000 | N20: 2964056.442 | O20: 2964056.442 | P20: 2964056.442 | Q20: 2964056.442 | R20: 2964056.442 | S20: 3138690.869 | T20: 3138690.869 | U20: 3138690.869 | V20: 3138690.869 | W20: 3138690.869 | X20: 3324672.828 | Y20: 3324672.828 | Z20: 3324672.828 | AA20: 3324672.828 | AB20: 3324672.828 | AC20: 3522835.054 | AD20: 3522835.054 | AE20: 3522835.054 | AF20: 3522835.054 | AG20: 3522835.054 | AH20: 3734079.186
C21: Total revenue | D21: =Inputs!$E$8 -> NGN | J21: =SUM(J18:J20) -> 10484716.8 | K21: 16687509.12 | L21: 26165332.32 | M21: 32842938.02 | N21: 44012115.17 | O21: 56326532.79 | P21: 72335275.69 | Q21: 93146641.46 | R21: 120201417 | S21: 163321628.3 | T21: 211376509.5 | U21: 273847855.1 | V21: 355060604.4 | W21: 460637178.4 | X21: 628410833.6 | Y21: 815936681.9 | Z21: 1059720285 | AA21: 1376638968 | AB21: 1788633257 | AC21: 2442813278 | AD21: 3174600411 | AE21: 4125923684 | AF21: 5362643939 | AG21: 6970380271 | AH21: 9522642416
C23: Operating costs
C24: Site Operational Costs (total)
C25: Diesel Fuel | D25: =Inputs!$E$8 -> NGN | J25: =J37+J45+J53+J61 -> 0 | K25: 0 | L25: 0 | M25: 0 | N25: 0 | O25: 0 | P25: 0 | Q25: 0 | R25: 0 | S25: 0 | T25: 0 | U25: 0 | V25: 0 | W25: 0 | X25: 0 | Y25: 0 | Z25: 0 | AA25: 0 | AB25: 0 | AC25: 0 | AD25: 0 | AE25: 0 | AF25: 0 | AG25: 0 | AH25: 0
C26: Service & Maintenance | D26: =Inputs!$E$8 -> NGN | J26: =J38+J46+J54+J62 -> 120000 | K26: 135600 | L26: 153228 | M26: 173147.64 | N26: 195656.8332 | O26: 221092.2215 | P26: 249834.2103 | Q26: 282312.6577 | R26: 319013.3031 | S26: 360485.0326 | T26: 407348.0868 | U26: 460303.3381 | V26: 520142.772 | W26: 587761.3324 | X26: 664170.3056 | Y26: 750512.4453 | Z26: 848079.0632 | AA26: 958329.3414 | AB26: 1082912.156 | AC26: 1223690.736 | AD26: 1382770.532 | AE26: 1562530.701 | AF26: 1765659.692 | AG26: 1995195.452 | AH26: 2254570.861
C27: Local operational management | D27: =Inputs!$E$8 -> NGN | J27: =J39+J47+J55+J63 -> 100000 | K27: 113000 | L27: 127690 | M27: 144289.7 | N27: 163047.361 | O27: 184243.5179 | P27: 208195.1753 | Q27: 235260.548 | R27: 265844.4193 | S27: 300404.1938 | T27: 339456.739 | U27: 383586.1151 | V27: 433452.31 | W27: 489801.1103 | X27: 553475.2547 | Y27: 625427.0378 | Z27: 706732.5527 | AA27: 798607.7845 | AB27: 902426.7965 | AC27: 1019742.28 | AD27: 1152308.776 | AE27: 1302108.917 | AF27: 1471383.077 | AG27: 1662662.877 | AH27: 1878809.051
C28: Guards | D28: =Inputs!$E$8 -> NGN | J28: =J40+J48+J56+J64 -> 240000 | K28: 271200 | L28: 306456 | M28: 346295.28 | N28: 391313.6664 | O28: 442184.443 | P28: 499668.4206 | Q28: 564625.3153 | R28: 638026.6063 | S28: 720970.0651 | T28: 814696.1736 | U28: 920606.6761 | V28: 1040285.544 | W28: 1175522.665 | X28: 1328340.611 | Y28: 1501024.891 | Z28: 1696158.126 | AA28: 1916658.683 | AB28: 2165824.312 | AC28: 2447381.472 | AD28: 2765541.064 | AE28: 3125061.402 | AF28: 3531319.384 | AG28: 3990390.904 | AH28: 4509141.721
C29: Insurance | D29: =Inputs!$E$8 -> NGN | J29: =J41+J49+J57+J65 -> 180000 | K29: 203400 | L29: 229842 | M29: 259721.46 | N29: 293485.2498 | O29: 331638.3323 | P29: 374751.3155 | Q29: 423468.9865 | R29: 478519.9547 | S29: 540727.5488 | T29: 611022.1302 | U29: 690455.0071 | V29: 780214.158 | W29: 881641.9986 | X29: 996255.4584 | Y29: 1125768.668 | Z29: 1272118.595 | AA29: 1437494.012 | AB29: 1624368.234 | AC29: 1835536.104 | AD29: 2074155.798 | AE29: 2343796.051 | AF29: 2648489.538 | AG29: 2992793.178 | AH29: 3381856.291
C30: Miscellaneous | D30: =Inputs!$E$8 -> NGN | J30: =J42+J50+J58+J66 -> 50000 | K30: 56500 | L30: 63845 | M30: 72144.85 | N30: 81523.6805 | O30: 92121.75896 | P30: 104097.5876 | Q30: 117630.274 | R30: 132922.2096 | S30: 150202.0969 | T30: 169728.3695 | U30: 191793.0575 | V30: 216726.155 | W30: 244900.5552 | X30: 276737.6273 | Y30: 312713.5189 | Z30: 353366.2763 | AA30: 399303.8923 | AB30: 451213.3983 | AC30: 509871.14 | AD30: 576154.3882 | AE30: 651054.4587 | AF30: 735691.5383 | AG30: 831331.4383 | AH30: 939404.5253
C31: Metering License | D31: =Inputs!$E$8 -> NGN | F31: =Inputs!$E$221 -> 0.0002 | J31: =$F31*J$18 -> 1640.94336 | K31: =$F31*K$18 -> 2844.301824 | L31: 4621.990464 | M31: 6008.587603 | N31: 8209.611745 | O31: 10672.49527 | P31: 13874.24385 | Q31: 18036.517 | R31: 23447.47211 | S31: 32036.58748 | T31: 41647.56373 | U31: 54141.83284 | V31: 70384.3827 | W31: 91499.69751 | X31: 125017.2322 | Y31: 162522.4018 | Z31: 211279.1224 | AA31: 274662.8591 | AB31: 357061.7168 | AC31: 487858.0887 | AD31: 634215.5153 | AE31: 824480.1699 | AF31: 1071824.221 | AG31: 1393371.487 | AH31: 1903781.667
C32: Vendors | D32: =Inputs!$E$8 -> NGN | F32: =Inputs!$E$222 -> 0.0006 | J32: =$F32*J$18 -> 4922.83008 | K32: 8532.905472 | L32: 13865.97139 | M32: 18025.76281 | N32: 24628.83524 | O32: 32017.48581 | P32: 41622.73155 | Q32: 54109.55101 | R32: 70342.41632 | S32: 96109.76245 | T32: 124942.6912 | U32: 162425.4985 | V32: 211153.1481 | W32: 274499.0925 | X32: 375051.6965 | Y32: 487567.2054 | Z32: 633837.3671 | AA32: 823988.5772 | AB32: 1071185.15 | AC32: 1463574.266 | AD32: 1902646.546 | AE32: 2473440.51 | AF32: 3215472.663 | AG32: 4180114.461 | AH32: 5711345.002
C33: Mobile payment fee | D33: =Inputs!$E$8 -> NGN | F33: =Inputs!$E$223 -> 0.0002 | J33: =$F33*J$18 -> 1640.94336 | K33: 2844.301824 | L33: 4621.990464 | M33: 6008.587603 | N33: 8209.611745 | O33: 10672.49527 | P33: 13874.24385 | Q33: 18036.517 | R33: 23447.47211 | S33: 32036.58748 | T33: 41647.56373 | U33: 54141.83284 | V33: 70384.3827 | W33: 91499.69751 | X33: 125017.2322 | Y33: 162522.4018 | Z33: 211279.1224 | AA33: 274662.8591 | AB33: 357061.7168 | AC33: 487858.0887 | AD33: 634215.5153 | AE33: 824480.1699 | AF33: 1071824.221 | AG33: 1393371.487 | AH33: 1903781.667
C34: Total | D34: =Inputs!$E$8 -> NGN | J34: =SUM(J25:J33) -> 698204.7168 | K34: 793921.5091 | L34: 904170.9523 | M34: 1025641.868 | N34: 1166074.85 | O34: 1324642.75 | P34: 1505917.929 | Q34: 1713480.367 | R34: 1951563.854 | S34: 2232971.875 | T34: 2550489.318 | U34: 2917453.358 | V34: 3342742.853 | W34: 3837126.149 | X34: 4444065.418 | Y34: 5128058.57 | Z34: 5932850.225 | AA34: 6883708.009 | AB34: 8012053.48 | AC34: 9475512.176 | AD34: 11122008.13 | AE34: 13106952.38 | AF34: 15511664.33 | AG34: 18439231.28 | AH34: 22482690.79
C36: =Names!$E$13 -> Site 1 | F36: =Inputs!$D$13 -> Operational | I36: Active flag: | J36: =IF(J$10>0,1,0) -> 1 | K36: =IF(K$10>0,1,0) -> 1 | L36: 1 | M36: 1 | N36: 1 | O36: 1 | P36: 1 | Q36: 1 | R36: 1 | S36: 1 | T36: 1 | U36: 1 | V36: 1 | W36: 1 | X36: 1 | Y36: 1 | Z36: 1 | AA36: 1 | AB36: 1 | AC36: 1 | AD36: 1 | AE36: 1 | AF36: 1 | AG36: 1 | AH36: 1
C37: Diesel Fuel | D37: =Inputs!$E$8 -> NGN | F37: =$F$10 -> 1 | J37: =INDEX(Inputs!$H$226:$AG$226,,Model!J10+1)*Inputs!I$309*$F37 -> 0 | K37: =INDEX(Inputs!$H$226:$AG$226,,Model!K10+1)*Inputs!J$309*$F37 -> 0 | L37: =INDEX(Inputs!$H$226:$AG$226,,Model!L10+1)*Inputs!K$309*$F37 -> 0 | M37: =INDEX(Inputs!$H$226:$AG$226,,Model!M10+1)*Inputs!L$309*$F37 -> 0 | N37: =INDEX(Inputs!$H$226:$AG$226,,Model!N10+1)*Inputs!M$309*$F37 -> 0 | O37: =INDEX(Inputs!$H$226:$AG$226,,Model!O10+1)*Inputs!N$309*$F37 -> 0 | P37: =INDEX(Inputs!$H$226:$AG$226,,Model!P10+1)*Inputs!O$309*$F37 -> 0 | Q37: =INDEX(Inputs!$H$226:$AG$226,,Model!Q10+1)*Inputs!P$309*$F37 -> 0 | R37: =INDEX(Inputs!$H$226:$AG$226,,Model!R10+1)*Inputs!Q$309*$F37 -> 0 | S37: =INDEX(Inputs!$H$226:$AG$226,,Model!S10+1)*Inputs!R$309*$F37 -> 0 | T37: =INDEX(Inputs!$H$226:$AG$226,,Model!T10+1)*Inputs!S$309*$F37 -> 0 | U37: =INDEX(Inputs!$H$226:$AG$226,,Model!U10+1)*Inputs!T$309*$F37 -> 0 | V37: =INDEX(Inputs!$H$226:$AG$226,,Model!V10+1)*Inputs!U$309*$F37 -> 0 | W37: =INDEX(Inputs!$H$226:$AG$226,,Model!W10+1)*Inputs!V$309*$F37 -> 0 | X37: =INDEX(Inputs!$H$226:$AG$226,,Model!X10+1)*Inputs!W$309*$F37 -> 0 | Y37: =INDEX(Inputs!$H$226:$AG$226,,Model!Y10+1)*Inputs!X$309*$F37 -> 0 | Z37: =INDEX(Inputs!$H$226:$AG$226,,Model!Z10+1)*Inputs!Y$309*$F37 -> 0 | AA37: =INDEX(Inputs!$H$226:$AG$226,,Model!AA10+1)*Inputs!Z$309*$F37 -> 0 | AB37: =INDEX(Inputs!$H$226:$AG$226,,Model!AB10+1)*Inputs!AA$309*$F37 -> 0 | AC37: =INDEX(Inputs!$H$226:$AG$226,,Model!AC10+1)*Inputs!AB$309*$F37 -> 0 | AD37: =INDEX(Inputs!$H$226:$AG$226,,Model!AD10+1)*Inputs!AC$309*$F37 -> 0 | AE37: =INDEX(Inputs!$H$226:$AG$226,,Model!AE10+1)*Inputs!AD$309*$F37 -> 0 | AF37: =INDEX(Inputs!$H$226:$AG$226,,Model!AF10+1)*Inputs!AE$309*$F37 -> 0 | AG37: =INDEX(Inputs!$H$226:$AG$226,,Model!AG10+1)*Inputs!AF$309*$F37 -> 0 | AH37: =INDEX(Inputs!$H$226:$AG$226,,Model!AH10+1)*Inputs!AG$309*$F37 -> 0
C38: Service & Maintenance | D38: =Inputs!$E$8 -> NGN | J38: =J$36*Inputs!$I215*J$6*$F$37 -> 120000 | K38: =K$36*Inputs!$I215*K$6*$F$37 -> 135600 | L38: =L$36*Inputs!$I215*L$6*$F$37 -> 153228 | M38: =M$36*Inputs!$I215*M$6*$F$37 -> 173147.64 | N38: =N$36*Inputs!$I215*N$6*$F$37 -> 195656.8332 | O38: =O$36*Inputs!$I215*O$6*$F$37 -> 221092.2215 | P38: =P$36*Inputs!$I215*P$6*$F$37 -> 249834.2103 | Q38: =Q$36*Inputs!$I215*Q$6*$F$37 -> 282312.6577 | R38: =R$36*Inputs!$I215*R$6*$F$37 -> 319013.3031 | S38: =S$36*Inputs!$I215*S$6*$F$37 -> 360485.0326 | T38: =T$36*Inputs!$I215*T$6*$F$37 -> 407348.0868 | U38: =U$36*Inputs!$I215*U$6*$F$37 -> 460303.3381 | V38: =V$36*Inputs!$I215*V$6*$F$37 -> 520142.772 | W38: =W$36*Inputs!$I215*W$6*$F$37 -> 587761.3324 | X38: =X$36*Inputs!$I215*X$6*$F$37 -> 664170.3056 | Y38: =Y$36*Inputs!$I215*Y$6*$F$37 -> 750512.4453 | Z38: =Z$36*Inputs!$I215*Z$6*$F$37 -> 848079.0632 | AA38: =AA$36*Inputs!$I215*AA$6*$F$37 -> 958329.3414 | AB38: =AB$36*Inputs!$I215*AB$6*$F$37 -> 1082912.156 | AC38: =AC$36*Inputs!$I215*AC$6*$F$37 -> 1223690.736 | AD38: =AD$36*Inputs!$I215*AD$6*$F$37 -> 1382770.532 | AE38: =AE$36*Inputs!$I215*AE$6*$F$37 -> 1562530.701 | AF38: =AF$36*Inputs!$I215*AF$6*$F$37 -> 1765659.692 | AG38: =AG$36*Inputs!$I215*AG$6*$F$37 -> 1995195.452 | AH38: =AH$36*Inputs!$I215*AH$6*$F$37 -> 2254570.861
C39: Local operational management | D39: =Inputs!$E$8 -> NGN | J39: =J$36*Inputs!$J215*J$6*$F$37 -> 100000 | K39: =K$36*Inputs!$J215*K$6*$F$37 -> 113000 | L39: =L$36*Inputs!$J215*L$6*$F$37 -> 127690 | M39: =M$36*Inputs!$J215*M$6*$F$37 -> 144289.7 | N39: =N$36*Inputs!$J215*N$6*$F$37 -> 163047.361 | O39: =O$36*Inputs!$J215*O$6*$F$37 -> 184243.5179 | P39: =P$36*Inputs!$J215*P$6*$F$37 -> 208195.1753 | Q39: =Q$36*Inputs!$J215*Q$6*$F$37 -> 235260.548 | R39: =R$36*Inputs!$J215*R$6*$F$37 -> 265844.4193 | S39: =S$36*Inputs!$J215*S$6*$F$37 -> 300404.1938 | T39: =T$36*Inputs!$J215*T$6*$F$37 -> 339456.739 | U39: =U$36*Inputs!$J215*U$6*$F$37 -> 383586.1151 | V39: =V$36*Inputs!$J215*V$6*$F$37 -> 433452.31 | W39: =W$36*Inputs!$J215*W$6*$F$37 -> 489801.1103 | X39: =X$36*Inputs!$J215*X$6*$F$37 -> 553475.2547 | Y39: =Y$36*Inputs!$J215*Y$6*$F$37 -> 625427.0378 | Z39: =Z$36*Inputs!$J215*Z$6*$F$37 -> 706732.5527 | AA39: =AA$36*Inputs!$J215*AA$6*$F$37 -> 798607.7845 | AB39: =AB$36*Inputs!$J215*AB$6*$F$37 -> 902426.7965 | AC39: =AC$36*Inputs!$J215*AC$6*$F$37 -> 1019742.28 | AD39: =AD$36*Inputs!$J215*AD$6*$F$37 -> 1152308.776 | AE39: =AE$36*Inputs!$J215*AE$6*$F$37 -> 1302108.917 | AF39: =AF$36*Inputs!$J215*AF$6*$F$37 -> 1471383.077 | AG39: =AG$36*Inputs!$J215*AG$6*$F$37 -> 1662662.877 | AH39: =AH$36*Inputs!$J215*AH$6*$F$37 -> 1878809.051
C40: Guards | D40: =Inputs!$E$8 -> NGN | J40: =J$36*Inputs!$K215*J$6*$F$37 -> 240000 | K40: =K$36*Inputs!$K215*K$6*$F$37 -> 271200 | L40: =L$36*Inputs!$K215*L$6*$F$37 -> 306456 | M40: =M$36*Inputs!$K215*M$6*$F$37 -> 346295.28 | N40: =N$36*Inputs!$K215*N$6*$F$37 -> 391313.6664 | O40: =O$36*Inputs!$K215*O$6*$F$37 -> 442184.443 | P40: =P$36*Inputs!$K215*P$6*$F$37 -> 499668.4206 | Q40: =Q$36*Inputs!$K215*Q$6*$F$37 -> 564625.3153 | R40: =R$36*Inputs!$K215*R$6*$F$37 -> 638026.6063 | S40: =S$36*Inputs!$K215*S$6*$F$37 -> 720970.0651 | T40: =T$36*Inputs!$K215*T$6*$F$37 -> 814696.1736 | U40: =U$36*Inputs!$K215*U$6*$F$37 -> 920606.6761 | V40: =V$36*Inputs!$K215*V$6*$F$37 -> 1040285.544 | W40: =W$36*Inputs!$K215*W$6*$F$37 -> 1175522.665 | X40: =X$36*Inputs!$K215*X$6*$F$37 -> 1328340.611 | Y40: =Y$36*Inputs!$K215*Y$6*$F$37 -> 1501024.891 | Z40: =Z$36*Inputs!$K215*Z$6*$F$37 -> 1696158.126 | AA40: =AA$36*Inputs!$K215*AA$6*$F$37 -> 1916658.683 | AB40: =AB$36*Inputs!$K215*AB$6*$F$37 -> 2165824.312 | AC40: =AC$36*Inputs!$K215*AC$6*$F$37 -> 2447381.472 | AD40: =AD$36*Inputs!$K215*AD$6*$F$37 -> 2765541.064 | AE40: =AE$36*Inputs!$K215*AE$6*$F$37 -> 3125061.402 | AF40: =AF$36*Inputs!$K215*AF$6*$F$37 -> 3531319.384 | AG40: =AG$36*Inputs!$K215*AG$6*$F$37 -> 3990390.904 | AH40: =AH$36*Inputs!$K215*AH$6*$F$37 -> 4509141.721
C41: Insurance | D41: =Inputs!$E$8 -> NGN | J41: =J$36*Inputs!$L215*Model!J$6*$F$37 -> 180000 | K41: =K$36*Inputs!$L215*Model!K$6*$F$37 -> 203400 | L41: =L$36*Inputs!$L215*Model!L$6*$F$37 -> 229842 | M41: =M$36*Inputs!$L215*Model!M$6*$F$37 -> 259721.46 | N41: =N$36*Inputs!$L215*Model!N$6*$F$37 -> 293485.2498 | O41: =O$36*Inputs!$L215*Model!O$6*$F$37 -> 331638.3323 | P41: =P$36*Inputs!$L215*Model!P$6*$F$37 -> 374751.3155 | Q41: =Q$36*Inputs!$L215*Model!Q$6*$F$37 -> 423468.9865 | R41: =R$36*Inputs!$L215*Model!R$6*$F$37 -> 478519.9547 | S41: =S$36*Inputs!$L215*Model!S$6*$F$37 -> 540727.5488 | T41: =T$36*Inputs!$L215*Model!T$6*$F$37 -> 611022.1302 | U41: =U$36*Inputs!$L215*Model!U$6*$F$37 -> 690455.0071 | V41: =V$36*Inputs!$L215*Model!V$6*$F$37 -> 780214.158 | W41: =W$36*Inputs!$L215*Model!W$6*$F$37 -> 881641.9986 | X41: =X$36*Inputs!$L215*Model!X$6*$F$37 -> 996255.4584 | Y41: =Y$36*Inputs!$L215*Model!Y$6*$F$37 -> 1125768.668 | Z41: =Z$36*Inputs!$L215*Model!Z$6*$F$37 -> 1272118.595 | AA41: =AA$36*Inputs!$L215*Model!AA$6*$F$37 -> 1437494.012 | AB41: =AB$36*Inputs!$L215*Model!AB$6*$F$37 -> 1624368.234 | AC41: =AC$36*Inputs!$L215*Model!AC$6*$F$37 -> 1835536.104 | AD41: =AD$36*Inputs!$L215*Model!AD$6*$F$37 -> 2074155.798 | AE41: =AE$36*Inputs!$L215*Model!AE$6*$F$37 -> 2343796.051 | AF41: =AF$36*Inputs!$L215*Model!AF$6*$F$37 -> 2648489.538 | AG41: =AG$36*Inputs!$L215*Model!AG$6*$F$37 -> 2992793.178 | AH41: =AH$36*Inputs!$L215*Model!AH$6*$F$37 -> 3381856.291
C42: Miscellaneous | D42: =Inputs!$E$8 -> NGN | J42: =J$36*Inputs!$M215*Model!J$6*$F$37 -> 50000 | K42: =K$36*Inputs!$M215*Model!K$6*$F$37 -> 56500 | L42: =L$36*Inputs!$M215*Model!L$6*$F$37 -> 63845 | M42: =M$36*Inputs!$M215*Model!M$6*$F$37 -> 72144.85 | N42: =N$36*Inputs!$M215*Model!N$6*$F$37 -> 81523.6805 | O42: =O$36*Inputs!$M215*Model!O$6*$F$37 -> 92121.75896 | P42: =P$36*Inputs!$M215*Model!P$6*$F$37 -> 104097.5876 | Q42: =Q$36*Inputs!$M215*Model!Q$6*$F$37 -> 117630.274 | R42: =R$36*Inputs!$M215*Model!R$6*$F$37 -> 132922.2096 | S42: =S$36*Inputs!$M215*Model!S$6*$F$37 -> 150202.0969 | T42: =T$36*Inputs!$M215*Model!T$6*$F$37 -> 169728.3695 | U42: =U$36*Inputs!$M215*Model!U$6*$F$37 -> 191793.0575 | V42: =V$36*Inputs!$M215*Model!V$6*$F$37 -> 216726.155 | W42: =W$36*Inputs!$M215*Model!W$6*$F$37 -> 244900.5552 | X42: =X$36*Inputs!$M215*Model!X$6*$F$37 -> 276737.6273 | Y42: =Y$36*Inputs!$M215*Model!Y$6*$F$37 -> 312713.5189 | Z42: =Z$36*Inputs!$M215*Model!Z$6*$F$37 -> 353366.2763 | AA42: =AA$36*Inputs!$M215*Model!AA$6*$F$37 -> 399303.8923 | AB42: =AB$36*Inputs!$M215*Model!AB$6*$F$37 -> 451213.3983 | AC42: =AC$36*Inputs!$M215*Model!AC$6*$F$37 -> 509871.14 | AD42: =AD$36*Inputs!$M215*Model!AD$6*$F$37 -> 576154.3882 | AE42: =AE$36*Inputs!$M215*Model!AE$6*$F$37 -> 651054.4587 | AF42: =AF$36*Inputs!$M215*Model!AF$6*$F$37 -> 735691.5383 | AG42: =AG$36*Inputs!$M215*Model!AG$6*$F$37 -> 831331.4383 | AH42: =AH$36*Inputs!$M215*Model!AH$6*$F$37 -> 939404.5253
C44: =Names!$E$14 -> Site 2 | F44: =Inputs!$D$13 -> Operational | I44: Active flag: | J44: =IF(J$11>0,1,0) -> 0 | K44: =IF(K$11>0,1,0) -> 0 | L44: 0 | M44: 0 | N44: 0 | O44: 0 | P44: 0 | Q44: 0 | R44: 0 | S44: 0 | T44: 0 | U44: 0 | V44: 0 | W44: 0 | X44: 0 | Y44: 0 | Z44: 0 | AA44: 0 | AB44: 0 | AC44: 0 | AD44: 0 | AE44: 0 | AF44: 0 | AG44: 0 | AH44: 0
C45: Diesel Fuel | D45: =Inputs!$E$8 -> NGN | F45: =$F$11 -> 0 | J45: =INDEX(Inputs!$H$227:$AG$227,,Model!J11+1)*Inputs!I$309*$F45 -> 0 | K45: =INDEX(Inputs!$H$227:$AG$227,,Model!K11+1)*Inputs!J$309*$F45 -> 0 | L45: =INDEX(Inputs!$H$227:$AG$227,,Model!L11+1)*Inputs!K$309*$F45 -> 0 | M45: =INDEX(Inputs!$H$227:$AG$227,,Model!M11+1)*Inputs!L$309*$F45 -> 0 | N45: =INDEX(Inputs!$H$227:$AG$227,,Model!N11+1)*Inputs!M$309*$F45 -> 0 | O45: =INDEX(Inputs!$H$227:$AG$227,,Model!O11+1)*Inputs!N$309*$F45 -> 0 | P45: =INDEX(Inputs!$H$227:$AG$227,,Model!P11+1)*Inputs!O$309*$F45 -> 0 | Q45: =INDEX(Inputs!$H$227:$AG$227,,Model!Q11+1)*Inputs!P$309*$F45 -> 0 | R45: =INDEX(Inputs!$H$227:$AG$227,,Model!R11+1)*Inputs!Q$309*$F45 -> 0 | S45: =INDEX(Inputs!$H$227:$AG$227,,Model!S11+1)*Inputs!R$309*$F45 -> 0 | T45: =INDEX(Inputs!$H$227:$AG$227,,Model!T11+1)*Inputs!S$309*$F45 -> 0 | U45: =INDEX(Inputs!$H$227:$AG$227,,Model!U11+1)*Inputs!T$309*$F45 -> 0 | V45: =INDEX(Inputs!$H$227:$AG$227,,Model!V11+1)*Inputs!U$309*$F45 -> 0 | W45: =INDEX(Inputs!$H$227:$AG$227,,Model!W11+1)*Inputs!V$309*$F45 -> 0 | X45: =INDEX(Inputs!$H$227:$AG$227,,Model!X11+1)*Inputs!W$309*$F45 -> 0 | Y45: =INDEX(Inputs!$H$227:$AG$227,,Model!Y11+1)*Inputs!X$309*$F45 -> 0 | Z45: =INDEX(Inputs!$H$227:$AG$227,,Model!Z11+1)*Inputs!Y$309*$F45 -> 0 | AA45: =INDEX(Inputs!$H$227:$AG$227,,Model!AA11+1)*Inputs!Z$309*$F45 -> 0 | AB45: =INDEX(Inputs!$H$227:$AG$227,,Model!AB11+1)*Inputs!AA$309*$F45 -> 0 | AC45: =INDEX(Inputs!$H$227:$AG$227,,Model!AC11+1)*Inputs!AB$309*$F45 -> 0 | AD45: =INDEX(Inputs!$H$227:$AG$227,,Model!AD11+1)*Inputs!AC$309*$F45 -> 0 | AE45: =INDEX(Inputs!$H$227:$AG$227,,Model!AE11+1)*Inputs!AD$309*$F45 -> 0 | AF45: =INDEX(Inputs!$H$227:$AG$227,,Model!AF11+1)*Inputs!AE$309*$F45 -> 0 | AG45: =INDEX(Inputs!$H$227:$AG$227,,Model!AG11+1)*Inputs!AF$309*$F45 -> 0 | AH45: =INDEX(Inputs!$H$227:$AG$227,,Model!AH11+1)*Inputs!AG$309*$F45 -> 0
C46: Service & Maintenance | D46: =Inputs!$E$8 -> NGN | J46: =J$44*Inputs!$I216*J$6*$F$45 -> 0 | K46: =K$44*Inputs!$I216*K$6*$F$45 -> 0 | L46: =L$44*Inputs!$I216*L$6*$F$45 -> 0 | M46: =M$44*Inputs!$I216*M$6*$F$45 -> 0 | N46: =N$44*Inputs!$I216*N$6*$F$45 -> 0 | O46: =O$44*Inputs!$I216*O$6*$F$45 -> 0 | P46: =P$44*Inputs!$I216*P$6*$F$45 -> 0 | Q46: =Q$44*Inputs!$I216*Q$6*$F$45 -> 0 | R46: =R$44*Inputs!$I216*R$6*$F$45 -> 0 | S46: =S$44*Inputs!$I216*S$6*$F$45 -> 0 | T46: =T$44*Inputs!$I216*T$6*$F$45 -> 0 | U46: =U$44*Inputs!$I216*U$6*$F$45 -> 0 | V46: =V$44*Inputs!$I216*V$6*$F$45 -> 0 | W46: =W$44*Inputs!$I216*W$6*$F$45 -> 0 | X46: =X$44*Inputs!$I216*X$6*$F$45 -> 0 | Y46: =Y$44*Inputs!$I216*Y$6*$F$45 -> 0 | Z46: =Z$44*Inputs!$I216*Z$6*$F$45 -> 0 | AA46: =AA$44*Inputs!$I216*AA$6*$F$45 -> 0 | AB46: =AB$44*Inputs!$I216*AB$6*$F$45 -> 0 | AC46: =AC$44*Inputs!$I216*AC$6*$F$45 -> 0 | AD46: =AD$44*Inputs!$I216*AD$6*$F$45 -> 0 | AE46: =AE$44*Inputs!$I216*AE$6*$F$45 -> 0 | AF46: =AF$44*Inputs!$I216*AF$6*$F$45 -> 0 | AG46: =AG$44*Inputs!$I216*AG$6*$F$45 -> 0 | AH46: =AH$44*Inputs!$I216*AH$6*$F$45 -> 0
C47: Local operational management | D47: =Inputs!$E$8 -> NGN | J47: =J$44*Inputs!$J216*J$6*$F$45 -> 0 | K47: =K$44*Inputs!$J216*K$6*$F$45 -> 0 | L47: =L$44*Inputs!$J216*L$6*$F$45 -> 0 | M47: =M$44*Inputs!$J216*M$6*$F$45 -> 0 | N47: =N$44*Inputs!$J216*N$6*$F$45 -> 0 | O47: =O$44*Inputs!$J216*O$6*$F$45 -> 0 | P47: =P$44*Inputs!$J216*P$6*$F$45 -> 0 | Q47: =Q$44*Inputs!$J216*Q$6*$F$45 -> 0 | R47: =R$44*Inputs!$J216*R$6*$F$45 -> 0 | S47: =S$44*Inputs!$J216*S$6*$F$45 -> 0 | T47: =T$44*Inputs!$J216*T$6*$F$45 -> 0 | U47: =U$44*Inputs!$J216*U$6*$F$45 -> 0 | V47: =V$44*Inputs!$J216*V$6*$F$45 -> 0 | W47: =W$44*Inputs!$J216*W$6*$F$45 -> 0 | X47: =X$44*Inputs!$J216*X$6*$F$45 -> 0 | Y47: =Y$44*Inputs!$J216*Y$6*$F$45 -> 0 | Z47: =Z$44*Inputs!$J216*Z$6*$F$45 -> 0 | AA47: =AA$44*Inputs!$J216*AA$6*$F$45 -> 0 | AB47: =AB$44*Inputs!$J216*AB$6*$F$45 -> 0 | AC47: =AC$44*Inputs!$J216*AC$6*$F$45 -> 0 | AD47: =AD$44*Inputs!$J216*AD$6*$F$45 -> 0 | AE47: =AE$44*Inputs!$J216*AE$6*$F$45 -> 0 | AF47: =AF$44*Inputs!$J216*AF$6*$F$45 -> 0 | AG47: =AG$44*Inputs!$J216*AG$6*$F$45 -> 0 | AH47: =AH$44*Inputs!$J216*AH$6*$F$45 -> 0
C48: Guards | D48: =Inputs!$E$8 -> NGN | J48: =J$44*Inputs!$K216*J$6*$F$45 -> 0 | K48: =K$44*Inputs!$K216*K$6*$F$45 -> 0 | L48: =L$44*Inputs!$K216*L$6*$F$45 -> 0 | M48: =M$44*Inputs!$K216*M$6*$F$45 -> 0 | N48: =N$44*Inputs!$K216*N$6*$F$45 -> 0 | O48: =O$44*Inputs!$K216*O$6*$F$45 -> 0 | P48: =P$44*Inputs!$K216*P$6*$F$45 -> 0 | Q48: =Q$44*Inputs!$K216*Q$6*$F$45 -> 0 | R48: =R$44*Inputs!$K216*R$6*$F$45 -> 0 | S48: =S$44*Inputs!$K216*S$6*$F$45 -> 0 | T48: =T$44*Inputs!$K216*T$6*$F$45 -> 0 | U48: =U$44*Inputs!$K216*U$6*$F$45 -> 0 | V48: =V$44*Inputs!$K216*V$6*$F$45 -> 0 | W48: =W$44*Inputs!$K216*W$6*$F$45 -> 0 | X48: =X$44*Inputs!$K216*X$6*$F$45 -> 0 | Y48: =Y$44*Inputs!$K216*Y$6*$F$45 -> 0 | Z48: =Z$44*Inputs!$K216*Z$6*$F$45 -> 0 | AA48: =AA$44*Inputs!$K216*AA$6*$F$45 -> 0 | AB48: =AB$44*Inputs!$K216*AB$6*$F$45 -> 0 | AC48: =AC$44*Inputs!$K216*AC$6*$F$45 -> 0 | AD48: =AD$44*Inputs!$K216*AD$6*$F$45 -> 0 | AE48: =AE$44*Inputs!$K216*AE$6*$F$45 -> 0 | AF48: =AF$44*Inputs!$K216*AF$6*$F$45 -> 0 | AG48: =AG$44*Inputs!$K216*AG$6*$F$45 -> 0 | AH48: =AH$44*Inputs!$K216*AH$6*$F$45 -> 0
C49: Insurance | D49: =Inputs!$E$8 -> NGN | J49: =J$44*Inputs!$L216*Model!J$6*$F$45 -> 0 | K49: =K$44*Inputs!$L216*Model!K$6*$F$45 -> 0 | L49: =L$44*Inputs!$L216*Model!L$6*$F$45 -> 0 | M49: =M$44*Inputs!$L216*Model!M$6*$F$45 -> 0 | N49: =N$44*Inputs!$L216*Model!N$6*$F$45 -> 0 | O49: =O$44*Inputs!$L216*Model!O$6*$F$45 -> 0 | P49: =P$44*Inputs!$L216*Model!P$6*$F$45 -> 0 | Q49: =Q$44*Inputs!$L216*Model!Q$6*$F$45 -> 0 | R49: =R$44*Inputs!$L216*Model!R$6*$F$45 -> 0 | S49: =S$44*Inputs!$L216*Model!S$6*$F$45 -> 0 | T49: =T$44*Inputs!$L216*Model!T$6*$F$45 -> 0 | U49: =U$44*Inputs!$L216*Model!U$6*$F$45 -> 0 | V49: =V$44*Inputs!$L216*Model!V$6*$F$45 -> 0 | W49: =W$44*Inputs!$L216*Model!W$6*$F$45 -> 0 | X49: =X$44*Inputs!$L216*Model!X$6*$F$45 -> 0 | Y49: =Y$44*Inputs!$L216*Model!Y$6*$F$45 -> 0 | Z49: =Z$44*Inputs!$L216*Model!Z$6*$F$45 -> 0 | AA49: =AA$44*Inputs!$L216*Model!AA$6*$F$45 -> 0 | AB49: =AB$44*Inputs!$L216*Model!AB$6*$F$45 -> 0 | AC49: =AC$44*Inputs!$L216*Model!AC$6*$F$45 -> 0 | AD49: =AD$44*Inputs!$L216*Model!AD$6*$F$45 -> 0 | AE49: =AE$44*Inputs!$L216*Model!AE$6*$F$45 -> 0 | AF49: =AF$44*Inputs!$L216*Model!AF$6*$F$45 -> 0 | AG49: =AG$44*Inputs!$L216*Model!AG$6*$F$45 -> 0 | AH49: =AH$44*Inputs!$L216*Model!AH$6*$F$45 -> 0
C50: Miscellaneous | D50: =Inputs!$E$8 -> NGN | J50: =J$44*Inputs!$M216*Model!J$6*$F$45 -> 0 | K50: =K$44*Inputs!$M216*Model!K$6*$F$45 -> 0 | L50: =L$44*Inputs!$M216*Model!L$6*$F$45 -> 0 | M50: =M$44*Inputs!$M216*Model!M$6*$F$45 -> 0 | N50: =N$44*Inputs!$M216*Model!N$6*$F$45 -> 0 | O50: =O$44*Inputs!$M216*Model!O$6*$F$45 -> 0 | P50: =P$44*Inputs!$M216*Model!P$6*$F$45 -> 0 | Q50: =Q$44*Inputs!$M216*Model!Q$6*$F$45 -> 0 | R50: =R$44*Inputs!$M216*Model!R$6*$F$45 -> 0 | S50: =S$44*Inputs!$M216*Model!S$6*$F$45 -> 0 | T50: =T$44*Inputs!$M216*Model!T$6*$F$45 -> 0 | U50: =U$44*Inputs!$M216*Model!U$6*$F$45 -> 0 | V50: =V$44*Inputs!$M216*Model!V$6*$F$45 -> 0 | W50: =W$44*Inputs!$M216*Model!W$6*$F$45 -> 0 | X50: =X$44*Inputs!$M216*Model!X$6*$F$45 -> 0 | Y50: =Y$44*Inputs!$M216*Model!Y$6*$F$45 -> 0 | Z50: =Z$44*Inputs!$M216*Model!Z$6*$F$45 -> 0 | AA50: =AA$44*Inputs!$M216*Model!AA$6*$F$45 -> 0 | AB50: =AB$44*Inputs!$M216*Model!AB$6*$F$45 -> 0 | AC50: =AC$44*Inputs!$M216*Model!AC$6*$F$45 -> 0 | AD50: =AD$44*Inputs!$M216*Model!AD$6*$F$45 -> 0 | AE50: =AE$44*Inputs!$M216*Model!AE$6*$F$45 -> 0 | AF50: =AF$44*Inputs!$M216*Model!AF$6*$F$45 -> 0 | AG50: =AG$44*Inputs!$M216*Model!AG$6*$F$45 -> 0 | AH50: =AH$44*Inputs!$M216*Model!AH$6*$F$45 -> 0
C52: =Names!$E$15 -> Site 3 | F52: =Inputs!$D$13 -> Operational | I52: Active flag: | J52: =IF(J$12>0,1,0) -> 0 | K52: =IF(K$12>0,1,0) -> 0 | L52: 0 | M52: 0 | N52: 0 | O52: 0 | P52: 0 | Q52: 0 | R52: 0 | S52: 0 | T52: 0 | U52: 0 | V52: 0 | W52: 0 | X52: 0 | Y52: 0 | Z52: 0 | AA52: 0 | AB52: 0 | AC52: 0 | AD52: 0 | AE52: 0 | AF52: 0 | AG52: 0 | AH52: 0
C53: Diesel Fuel | D53: =Inputs!$E$8 -> NGN | F53: =$F$12 -> 0 | J53: =INDEX(Inputs!$H$228:$AG$228,,Model!J12+1)*Inputs!I$309*$F53 -> 0 | K53: =INDEX(Inputs!$H$228:$AG$228,,Model!K12+1)*Inputs!J$309*$F53 -> 0 | L53: =INDEX(Inputs!$H$228:$AG$228,,Model!L12+1)*Inputs!K$309*$F53 -> 0 | M53: =INDEX(Inputs!$H$228:$AG$228,,Model!M12+1)*Inputs!L$309*$F53 -> 0 | N53: =INDEX(Inputs!$H$228:$AG$228,,Model!N12+1)*Inputs!M$309*$F53 -> 0 | O53: =INDEX(Inputs!$H$228:$AG$228,,Model!O12+1)*Inputs!N$309*$F53 -> 0 | P53: =INDEX(Inputs!$H$228:$AG$228,,Model!P12+1)*Inputs!O$309*$F53 -> 0 | Q53: =INDEX(Inputs!$H$228:$AG$228,,Model!Q12+1)*Inputs!P$309*$F53 -> 0 | R53: =INDEX(Inputs!$H$228:$AG$228,,Model!R12+1)*Inputs!Q$309*$F53 -> 0 | S53: =INDEX(Inputs!$H$228:$AG$228,,Model!S12+1)*Inputs!R$309*$F53 -> 0 | T53: =INDEX(Inputs!$H$228:$AG$228,,Model!T12+1)*Inputs!S$309*$F53 -> 0 | U53: =INDEX(Inputs!$H$228:$AG$228,,Model!U12+1)*Inputs!T$309*$F53 -> 0 | V53: =INDEX(Inputs!$H$228:$AG$228,,Model!V12+1)*Inputs!U$309*$F53 -> 0 | W53: =INDEX(Inputs!$H$228:$AG$228,,Model!W12+1)*Inputs!V$309*$F53 -> 0 | X53: =INDEX(Inputs!$H$228:$AG$228,,Model!X12+1)*Inputs!W$309*$F53 -> 0 | Y53: =INDEX(Inputs!$H$228:$AG$228,,Model!Y12+1)*Inputs!X$309*$F53 -> 0 | Z53: =INDEX(Inputs!$H$228:$AG$228,,Model!Z12+1)*Inputs!Y$309*$F53 -> 0 | AA53: =INDEX(Inputs!$H$228:$AG$228,,Model!AA12+1)*Inputs!Z$309*$F53 -> 0 | AB53: =INDEX(Inputs!$H$228:$AG$228,,Model!AB12+1)*Inputs!AA$309*$F53 -> 0 | AC53: =INDEX(Inputs!$H$228:$AG$228,,Model!AC12+1)*Inputs!AB$309*$F53 -> 0 | AD53: =INDEX(Inputs!$H$228:$AG$228,,Model!AD12+1)*Inputs!AC$309*$F53 -> 0 | AE53: =INDEX(Inputs!$H$228:$AG$228,,Model!AE12+1)*Inputs!AD$309*$F53 -> 0 | AF53: =INDEX(Inputs!$H$228:$AG$228,,Model!AF12+1)*Inputs!AE$309*$F53 -> 0 | AG53: =INDEX(Inputs!$H$228:$AG$228,,Model!AG12+1)*Inputs!AF$309*$F53 -> 0 | AH53: =INDEX(Inputs!$H$228:$AG$228,,Model!AH12+1)*Inputs!AG$309*$F53 -> 0
C54: Service & Maintenance | D54: =Inputs!$E$8 -> NGN | J54: =J$52*Inputs!$I217*J$6*$F$53 -> 0 | K54: =K$52*Inputs!$I217*K$6*$F$53 -> 0 | L54: =L$52*Inputs!$I217*L$6*$F$53 -> 0 | M54: =M$52*Inputs!$I217*M$6*$F$53 -> 0 | N54: =N$52*Inputs!$I217*N$6*$F$53 -> 0 | O54: =O$52*Inputs!$I217*O$6*$F$53 -> 0 | P54: =P$52*Inputs!$I217*P$6*$F$53 -> 0 | Q54: =Q$52*Inputs!$I217*Q$6*$F$53 -> 0 | R54: =R$52*Inputs!$I217*R$6*$F$53 -> 0 | S54: =S$52*Inputs!$I217*S$6*$F$53 -> 0 | T54: =T$52*Inputs!$I217*T$6*$F$53 -> 0 | U54: =U$52*Inputs!$I217*U$6*$F$53 -> 0 | V54: =V$52*Inputs!$I217*V$6*$F$53 -> 0 | W54: =W$52*Inputs!$I217*W$6*$F$53 -> 0 | X54: =X$52*Inputs!$I217*X$6*$F$53 -> 0 | Y54: =Y$52*Inputs!$I217*Y$6*$F$53 -> 0 | Z54: =Z$52*Inputs!$I217*Z$6*$F$53 -> 0 | AA54: =AA$52*Inputs!$I217*AA$6*$F$53 -> 0 | AB54: =AB$52*Inputs!$I217*AB$6*$F$53 -> 0 | AC54: =AC$52*Inputs!$I217*AC$6*$F$53 -> 0 | AD54: =AD$52*Inputs!$I217*AD$6*$F$53 -> 0 | AE54: =AE$52*Inputs!$I217*AE$6*$F$53 -> 0 | AF54: =AF$52*Inputs!$I217*AF$6*$F$53 -> 0 | AG54: =AG$52*Inputs!$I217*AG$6*$F$53 -> 0 | AH54: =AH$52*Inputs!$I217*AH$6*$F$53 -> 0
C55: Local operational management | D55: =Inputs!$E$8 -> NGN | J55: =J$52*Inputs!$J217*J$6*$F$53 -> 0 | K55: =K$52*Inputs!$J217*K$6*$F$53 -> 0 | L55: =L$52*Inputs!$J217*L$6*$F$53 -> 0 | M55: =M$52*Inputs!$J217*M$6*$F$53 -> 0 | N55: =N$52*Inputs!$J217*N$6*$F$53 -> 0 | O55: =O$52*Inputs!$J217*O$6*$F$53 -> 0 | P55: =P$52*Inputs!$J217*P$6*$F$53 -> 0 | Q55: =Q$52*Inputs!$J217*Q$6*$F$53 -> 0 | R55: =R$52*Inputs!$J217*R$6*$F$53 -> 0 | S55: =S$52*Inputs!$J217*S$6*$F$53 -> 0 | T55: =T$52*Inputs!$J217*T$6*$F$53 -> 0 | U55: =U$52*Inputs!$J217*U$6*$F$53 -> 0 | V55: =V$52*Inputs!$J217*V$6*$F$53 -> 0 | W55: =W$52*Inputs!$J217*W$6*$F$53 -> 0 | X55: =X$52*Inputs!$J217*X$6*$F$53 -> 0 | Y55: =Y$52*Inputs!$J217*Y$6*$F$53 -> 0 | Z55: =Z$52*Inputs!$J217*Z$6*$F$53 -> 0 | AA55: =AA$52*Inputs!$J217*AA$6*$F$53 -> 0 | AB55: =AB$52*Inputs!$J217*AB$6*$F$53 -> 0 | AC55: =AC$52*Inputs!$J217*AC$6*$F$53 -> 0 | AD55: =AD$52*Inputs!$J217*AD$6*$F$53 -> 0 | AE55: =AE$52*Inputs!$J217*AE$6*$F$53 -> 0 | AF55: =AF$52*Inputs!$J217*AF$6*$F$53 -> 0 | AG55: =AG$52*Inputs!$J217*AG$6*$F$53 -> 0 | AH55: =AH$52*Inputs!$J217*AH$6*$F$53 -> 0
C56: Guards | D56: =Inputs!$E$8 -> NGN | J56: =J$52*Inputs!$K217*J$6*$F$53 -> 0 | K56: =K$52*Inputs!$K217*K$6*$F$53 -> 0 | L56: =L$52*Inputs!$K217*L$6*$F$53 -> 0 | M56: =M$52*Inputs!$K217*M$6*$F$53 -> 0 | N56: =N$52*Inputs!$K217*N$6*$F$53 -> 0 | O56: =O$52*Inputs!$K217*O$6*$F$53 -> 0 | P56: =P$52*Inputs!$K217*P$6*$F$53 -> 0 | Q56: =Q$52*Inputs!$K217*Q$6*$F$53 -> 0 | R56: =R$52*Inputs!$K217*R$6*$F$53 -> 0 | S56: =S$52*Inputs!$K217*S$6*$F$53 -> 0 | T56: =T$52*Inputs!$K217*T$6*$F$53 -> 0 | U56: =U$52*Inputs!$K217*U$6*$F$53 -> 0 | V56: =V$52*Inputs!$K217*V$6*$F$53 -> 0 | W56: =W$52*Inputs!$K217*W$6*$F$53 -> 0 | X56: =X$52*Inputs!$K217*X$6*$F$53 -> 0 | Y56: =Y$52*Inputs!$K217*Y$6*$F$53 -> 0 | Z56: =Z$52*Inputs!$K217*Z$6*$F$53 -> 0 | AA56: =AA$52*Inputs!$K217*AA$6*$F$53 -> 0 | AB56: =AB$52*Inputs!$K217*AB$6*$F$53 -> 0 | AC56: =AC$52*Inputs!$K217*AC$6*$F$53 -> 0 | AD56: =AD$52*Inputs!$K217*AD$6*$F$53 -> 0 | AE56: =AE$52*Inputs!$K217*AE$6*$F$53 -> 0 | AF56: =AF$52*Inputs!$K217*AF$6*$F$53 -> 0 | AG56: =AG$52*Inputs!$K217*AG$6*$F$53 -> 0 | AH56: =AH$52*Inputs!$K217*AH$6*$F$53 -> 0
C57: Insurance | D57: =Inputs!$E$8 -> NGN | J57: =J$52*Inputs!$L217*Model!J$6*$F$53 -> 0 | K57: =K$52*Inputs!$L217*Model!K$6*$F$53 -> 0 | L57: =L$52*Inputs!$L217*Model!L$6*$F$53 -> 0 | M57: =M$52*Inputs!$L217*Model!M$6*$F$53 -> 0 | N57: =N$52*Inputs!$L217*Model!N$6*$F$53 -> 0 | O57: =O$52*Inputs!$L217*Model!O$6*$F$53 -> 0 | P57: =P$52*Inputs!$L217*Model!P$6*$F$53 -> 0 | Q57: =Q$52*Inputs!$L217*Model!Q$6*$F$53 -> 0 | R57: =R$52*Inputs!$L217*Model!R$6*$F$53 -> 0 | S57: =S$52*Inputs!$L217*Model!S$6*$F$53 -> 0 | T57: =T$52*Inputs!$L217*Model!T$6*$F$53 -> 0 | U57: =U$52*Inputs!$L217*Model!U$6*$F$53 -> 0 | V57: =V$52*Inputs!$L217*Model!V$6*$F$53 -> 0 | W57: =W$52*Inputs!$L217*Model!W$6*$F$53 -> 0 | X57: =X$52*Inputs!$L217*Model!X$6*$F$53 -> 0 | Y57: =Y$52*Inputs!$L217*Model!Y$6*$F$53 -> 0 | Z57: =Z$52*Inputs!$L217*Model!Z$6*$F$53 -> 0 | AA57: =AA$52*Inputs!$L217*Model!AA$6*$F$53 -> 0 | AB57: =AB$52*Inputs!$L217*Model!AB$6*$F$53 -> 0 | AC57: =AC$52*Inputs!$L217*Model!AC$6*$F$53 -> 0 | AD57: =AD$52*Inputs!$L217*Model!AD$6*$F$53 -> 0 | AE57: =AE$52*Inputs!$L217*Model!AE$6*$F$53 -> 0 | AF57: =AF$52*Inputs!$L217*Model!AF$6*$F$53 -> 0 | AG57: =AG$52*Inputs!$L217*Model!AG$6*$F$53 -> 0 | AH57: =AH$52*Inputs!$L217*Model!AH$6*$F$53 -> 0
C58: Miscellaneous | D58: =Inputs!$E$8 -> NGN | J58: =J$52*Inputs!$M217*Model!J$6*$F$53 -> 0 | K58: =K$52*Inputs!$M217*Model!K$6*$F$53 -> 0 | L58: =L$52*Inputs!$M217*Model!L$6*$F$53 -> 0 | M58: =M$52*Inputs!$M217*Model!M$6*$F$53 -> 0 | N58: =N$52*Inputs!$M217*Model!N$6*$F$53 -> 0 | O58: =O$52*Inputs!$M217*Model!O$6*$F$53 -> 0 | P58: =P$52*Inputs!$M217*Model!P$6*$F$53 -> 0 | Q58: =Q$52*Inputs!$M217*Model!Q$6*$F$53 -> 0 | R58: =R$52*Inputs!$M217*Model!R$6*$F$53 -> 0 | S58: =S$52*Inputs!$M217*Model!S$6*$F$53 -> 0 | T58: =T$52*Inputs!$M217*Model!T$6*$F$53 -> 0 | U58: =U$52*Inputs!$M217*Model!U$6*$F$53 -> 0 | V58: =V$52*Inputs!$M217*Model!V$6*$F$53 -> 0 | W58: =W$52*Inputs!$M217*Model!W$6*$F$53 -> 0 | X58: =X$52*Inputs!$M217*Model!X$6*$F$53 -> 0 | Y58: =Y$52*Inputs!$M217*Model!Y$6*$F$53 -> 0 | Z58: =Z$52*Inputs!$M217*Model!Z$6*$F$53 -> 0 | AA58: =AA$52*Inputs!$M217*Model!AA$6*$F$53 -> 0 | AB58: =AB$52*Inputs!$M217*Model!AB$6*$F$53 -> 0 | AC58: =AC$52*Inputs!$M217*Model!AC$6*$F$53 -> 0 | AD58: =AD$52*Inputs!$M217*Model!AD$6*$F$53 -> 0 | AE58: =AE$52*Inputs!$M217*Model!AE$6*$F$53 -> 0 | AF58: =AF$52*Inputs!$M217*Model!AF$6*$F$53 -> 0 | AG58: =AG$52*Inputs!$M217*Model!AG$6*$F$53 -> 0 | AH58: =AH$52*Inputs!$M217*Model!AH$6*$F$53 -> 0
C60: =Names!$E$16 -> Site 4 | F60: =Inputs!$D$13 -> Operational | I60: Active flag: | J60: =IF(J$13>0,1,0) -> 0 | K60: =IF(K$13>0,1,0) -> 0 | L60: 0 | M60: 0 | N60: 0 | O60: 0 | P60: 0 | Q60: 0 | R60: 0 | S60: 0 | T60: 0 | U60: 0 | V60: 0 | W60: 0 | X60: 0 | Y60: 0 | Z60: 0 | AA60: 0 | AB60: 0 | AC60: 0 | AD60: 0 | AE60: 0 | AF60: 0 | AG60: 0 | AH60: 0
C61: Diesel Fuel | D61: =Inputs!$E$8 -> NGN | F61: =$F$13 -> 0 | J61: =INDEX(Inputs!$H$229:$AG$229,,Model!J13+1)*Inputs!I$309*$F61 -> 0 | K61: =INDEX(Inputs!$H$229:$AG$229,,Model!K13+1)*Inputs!J$309*$F61 -> 0 | L61: =INDEX(Inputs!$H$229:$AG$229,,Model!L13+1)*Inputs!K$309*$F61 -> 0 | M61: =INDEX(Inputs!$H$229:$AG$229,,Model!M13+1)*Inputs!L$309*$F61 -> 0 | N61: =INDEX(Inputs!$H$229:$AG$229,,Model!N13+1)*Inputs!M$309*$F61 -> 0 | O61: =INDEX(Inputs!$H$229:$AG$229,,Model!O13+1)*Inputs!N$309*$F61 -> 0 | P61: =INDEX(Inputs!$H$229:$AG$229,,Model!P13+1)*Inputs!O$309*$F61 -> 0 | Q61: =INDEX(Inputs!$H$229:$AG$229,,Model!Q13+1)*Inputs!P$309*$F61 -> 0 | R61: =INDEX(Inputs!$H$229:$AG$229,,Model!R13+1)*Inputs!Q$309*$F61 -> 0 | S61: =INDEX(Inputs!$H$229:$AG$229,,Model!S13+1)*Inputs!R$309*$F61 -> 0 | T61: =INDEX(Inputs!$H$229:$AG$229,,Model!T13+1)*Inputs!S$309*$F61 -> 0 | U61: =INDEX(Inputs!$H$229:$AG$229,,Model!U13+1)*Inputs!T$309*$F61 -> 0 | V61: =INDEX(Inputs!$H$229:$AG$229,,Model!V13+1)*Inputs!U$309*$F61 -> 0 | W61: =INDEX(Inputs!$H$229:$AG$229,,Model!W13+1)*Inputs!V$309*$F61 -> 0 | X61: =INDEX(Inputs!$H$229:$AG$229,,Model!X13+1)*Inputs!W$309*$F61 -> 0 | Y61: =INDEX(Inputs!$H$229:$AG$229,,Model!Y13+1)*Inputs!X$309*$F61 -> 0 | Z61: =INDEX(Inputs!$H$229:$AG$229,,Model!Z13+1)*Inputs!Y$309*$F61 -> 0 | AA61: =INDEX(Inputs!$H$229:$AG$229,,Model!AA13+1)*Inputs!Z$309*$F61 -> 0 | AB61: =INDEX(Inputs!$H$229:$AG$229,,Model!AB13+1)*Inputs!AA$309*$F61 -> 0 | AC61: =INDEX(Inputs!$H$229:$AG$229,,Model!AC13+1)*Inputs!AB$309*$F61 -> 0 | AD61: =INDEX(Inputs!$H$229:$AG$229,,Model!AD13+1)*Inputs!AC$309*$F61 -> 0 | AE61: =INDEX(Inputs!$H$229:$AG$229,,Model!AE13+1)*Inputs!AD$309*$F61 -> 0 | AF61: =INDEX(Inputs!$H$229:$AG$229,,Model!AF13+1)*Inputs!AE$309*$F61 -> 0 | AG61: =INDEX(Inputs!$H$229:$AG$229,,Model!AG13+1)*Inputs!AF$309*$F61 -> 0 | AH61: =INDEX(Inputs!$H$229:$AG$229,,Model!AH13+1)*Inputs!AG$309*$F61 -> 0
C62: Service & Maintenance | D62: =Inputs!$E$8 -> NGN | J62: =J$60*Inputs!$I218*J$6*$F$61 -> 0 | K62: =K$60*Inputs!$I218*K$6*$F$61 -> 0 | L62: =L$60*Inputs!$I218*L$6*$F$61 -> 0 | M62: =M$60*Inputs!$I218*M$6*$F$61 -> 0 | N62: =N$60*Inputs!$I218*N$6*$F$61 -> 0 | O62: =O$60*Inputs!$I218*O$6*$F$61 -> 0 | P62: =P$60*Inputs!$I218*P$6*$F$61 -> 0 | Q62: =Q$60*Inputs!$I218*Q$6*$F$61 -> 0 | R62: =R$60*Inputs!$I218*R$6*$F$61 -> 0 | S62: =S$60*Inputs!$I218*S$6*$F$61 -> 0 | T62: =T$60*Inputs!$I218*T$6*$F$61 -> 0 | U62: =U$60*Inputs!$I218*U$6*$F$61 -> 0 | V62: =V$60*Inputs!$I218*V$6*$F$61 -> 0 | W62: =W$60*Inputs!$I218*W$6*$F$61 -> 0 | X62: =X$60*Inputs!$I218*X$6*$F$61 -> 0 | Y62: =Y$60*Inputs!$I218*Y$6*$F$61 -> 0 | Z62: =Z$60*Inputs!$I218*Z$6*$F$61 -> 0 | AA62: =AA$60*Inputs!$I218*AA$6*$F$61 -> 0 | AB62: =AB$60*Inputs!$I218*AB$6*$F$61 -> 0 | AC62: =AC$60*Inputs!$I218*AC$6*$F$61 -> 0 | AD62: =AD$60*Inputs!$I218*AD$6*$F$61 -> 0 | AE62: =AE$60*Inputs!$I218*AE$6*$F$61 -> 0 | AF62: =AF$60*Inputs!$I218*AF$6*$F$61 -> 0 | AG62: =AG$60*Inputs!$I218*AG$6*$F$61 -> 0 | AH62: =AH$60*Inputs!$I218*AH$6*$F$61 -> 0
C63: Local operational management | D63: =Inputs!$E$8 -> NGN | J63: =J$60*Inputs!$J218*J$6*$F$61 -> 0 | K63: =K$60*Inputs!$J218*K$6*$F$61 -> 0 | L63: =L$60*Inputs!$J218*L$6*$F$61 -> 0 | M63: =M$60*Inputs!$J218*M$6*$F$61 -> 0 | N63: =N$60*Inputs!$J218*N$6*$F$61 -> 0 | O63: =O$60*Inputs!$J218*O$6*$F$61 -> 0 | P63: =P$60*Inputs!$J218*P$6*$F$61 -> 0 | Q63: =Q$60*Inputs!$J218*Q$6*$F$61 -> 0 | R63: =R$60*Inputs!$J218*R$6*$F$61 -> 0 | S63: =S$60*Inputs!$J218*S$6*$F$61 -> 0 | T63: =T$60*Inputs!$J218*T$6*$F$61 -> 0 | U63: =U$60*Inputs!$J218*U$6*$F$61 -> 0 | V63: =V$60*Inputs!$J218*V$6*$F$61 -> 0 | W63: =W$60*Inputs!$J218*W$6*$F$61 -> 0 | X63: =X$60*Inputs!$J218*X$6*$F$61 -> 0 | Y63: =Y$60*Inputs!$J218*Y$6*$F$61 -> 0 | Z63: =Z$60*Inputs!$J218*Z$6*$F$61 -> 0 | AA63: =AA$60*Inputs!$J218*AA$6*$F$61 -> 0 | AB63: =AB$60*Inputs!$J218*AB$6*$F$61 -> 0 | AC63: =AC$60*Inputs!$J218*AC$6*$F$61 -> 0 | AD63: =AD$60*Inputs!$J218*AD$6*$F$61 -> 0 | AE63: =AE$60*Inputs!$J218*AE$6*$F$61 -> 0 | AF63: =AF$60*Inputs!$J218*AF$6*$F$61 -> 0 | AG63: =AG$60*Inputs!$J218*AG$6*$F$61 -> 0 | AH63: =AH$60*Inputs!$J218*AH$6*$F$61 -> 0
C64: Guards | D64: =Inputs!$E$8 -> NGN | J64: =J$60*Inputs!$K218*J$6*$F$61 -> 0 | K64: =K$60*Inputs!$K218*K$6*$F$61 -> 0 | L64: =L$60*Inputs!$K218*L$6*$F$61 -> 0 | M64: =M$60*Inputs!$K218*M$6*$F$61 -> 0 | N64: =N$60*Inputs!$K218*N$6*$F$61 -> 0 | O64: =O$60*Inputs!$K218*O$6*$F$61 -> 0 | P64: =P$60*Inputs!$K218*P$6*$F$61 -> 0 | Q64: =Q$60*Inputs!$K218*Q$6*$F$61 -> 0 | R64: =R$60*Inputs!$K218*R$6*$F$61 -> 0 | S64: =S$60*Inputs!$K218*S$6*$F$61 -> 0 | T64: =T$60*Inputs!$K218*T$6*$F$61 -> 0 | U64: =U$60*Inputs!$K218*U$6*$F$61 -> 0 | V64: =V$60*Inputs!$K218*V$6*$F$61 -> 0 | W64: =W$60*Inputs!$K218*W$6*$F$61 -> 0 | X64: =X$60*Inputs!$K218*X$6*$F$61 -> 0 | Y64: =Y$60*Inputs!$K218*Y$6*$F$61 -> 0 | Z64: =Z$60*Inputs!$K218*Z$6*$F$61 -> 0 | AA64: =AA$60*Inputs!$K218*AA$6*$F$61 -> 0 | AB64: =AB$60*Inputs!$K218*AB$6*$F$61 -> 0 | AC64: =AC$60*Inputs!$K218*AC$6*$F$61 -> 0 | AD64: =AD$60*Inputs!$K218*AD$6*$F$61 -> 0 | AE64: =AE$60*Inputs!$K218*AE$6*$F$61 -> 0 | AF64: =AF$60*Inputs!$K218*AF$6*$F$61 -> 0 | AG64: =AG$60*Inputs!$K218*AG$6*$F$61 -> 0 | AH64: =AH$60*Inputs!$K218*AH$6*$F$61 -> 0
C65: Insurance | D65: =Inputs!$E$8 -> NGN | J65: =J$60*Inputs!$L218*Model!J$6*$F$61 -> 0 | K65: =Inputs!$L218*Model!K$6*$F$61 -> 0 | L65: =Inputs!$L218*Model!L$6*$F$61 -> 0 | M65: =Inputs!$L218*Model!M$6*$F$61 -> 0 | N65: =Inputs!$L218*Model!N$6*$F$61 -> 0 | O65: =Inputs!$L218*Model!O$6*$F$61 -> 0 | P65: =Inputs!$L218*Model!P$6*$F$61 -> 0 | Q65: =Inputs!$L218*Model!Q$6*$F$61 -> 0 | R65: =Inputs!$L218*Model!R$6*$F$61 -> 0 | S65: =Inputs!$L218*Model!S$6*$F$61 -> 0 | T65: =Inputs!$L218*Model!T$6*$F$61 -> 0 | U65: =Inputs!$L218*Model!U$6*$F$61 -> 0 | V65: =Inputs!$L218*Model!V$6*$F$61 -> 0 | W65: =Inputs!$L218*Model!W$6*$F$61 -> 0 | X65: =Inputs!$L218*Model!X$6*$F$61 -> 0 | Y65: =Inputs!$L218*Model!Y$6*$F$61 -> 0 | Z65: =Inputs!$L218*Model!Z$6*$F$61 -> 0 | AA65: =Inputs!$L218*Model!AA$6*$F$61 -> 0 | AB65: =Inputs!$L218*Model!AB$6*$F$61 -> 0 | AC65: =Inputs!$L218*Model!AC$6*$F$61 -> 0 | AD65: =Inputs!$L218*Model!AD$6*$F$61 -> 0 | AE65: =Inputs!$L218*Model!AE$6*$F$61 -> 0 | AF65: =Inputs!$L218*Model!AF$6*$F$61 -> 0 | AG65: =Inputs!$L218*Model!AG$6*$F$61 -> 0 | AH65: =Inputs!$L218*Model!AH$6*$F$61 -> 0
C66: Miscellaneous | D66: =Inputs!$E$8 -> NGN | J66: =J$60*Inputs!$M218*Model!J$6*$F$61 -> 0 | K66: =Inputs!$M218*Model!K$6*$F$61 -> 0 | L66: =Inputs!$M218*Model!L$6*$F$61 -> 0 | M66: =Inputs!$M218*Model!M$6*$F$61 -> 0 | N66: =Inputs!$M218*Model!N$6*$F$61 -> 0 | O66: =Inputs!$M218*Model!O$6*$F$61 -> 0 | P66: =Inputs!$M218*Model!P$6*$F$61 -> 0 | Q66: =Inputs!$M218*Model!Q$6*$F$61 -> 0 | R66: =Inputs!$M218*Model!R$6*$F$61 -> 0 | S66: =Inputs!$M218*Model!S$6*$F$61 -> 0 | T66: =Inputs!$M218*Model!T$6*$F$61 -> 0 | U66: =Inputs!$M218*Model!U$6*$F$61 -> 0 | V66: =Inputs!$M218*Model!V$6*$F$61 -> 0 | W66: =Inputs!$M218*Model!W$6*$F$61 -> 0 | X66: =Inputs!$M218*Model!X$6*$F$61 -> 0 | Y66: =Inputs!$M218*Model!Y$6*$F$61 -> 0 | Z66: =Inputs!$M218*Model!Z$6*$F$61 -> 0 | AA66: =Inputs!$M218*Model!AA$6*$F$61 -> 0 | AB66: =Inputs!$M218*Model!AB$6*$F$61 -> 0 | AC66: =Inputs!$M218*Model!AC$6*$F$61 -> 0 | AD66: =Inputs!$M218*Model!AD$6*$F$61 -> 0 | AE66: =Inputs!$M218*Model!AE$6*$F$61 -> 0 | AF66: =Inputs!$M218*Model!AF$6*$F$61 -> 0 | AG66: =Inputs!$M218*Model!AG$6*$F$61 -> 0 | AH66: =Inputs!$M218*Model!AH$6*$F$61 -> 0
C68: Overhead Costs
C69: Salary Managing Director | D69: =Inputs!$E$8 -> NGN | J69: =Inputs!$E200*J$6 -> 0 | K69: =Inputs!$E200*K$6 -> 0 | L69: =Inputs!$E200*L$6 -> 0 | M69: =Inputs!$E200*M$6 -> 0 | N69: =Inputs!$E200*N$6 -> 0 | O69: =Inputs!$E200*O$6 -> 0 | P69: =Inputs!$E200*P$6 -> 0 | Q69: =Inputs!$E200*Q$6 -> 0 | R69: =Inputs!$E200*R$6 -> 0 | S69: =Inputs!$E200*S$6 -> 0 | T69: =Inputs!$E200*T$6 -> 0 | U69: =Inputs!$E200*U$6 -> 0 | V69: =Inputs!$E200*V$6 -> 0 | W69: =Inputs!$E200*W$6 -> 0 | X69: =Inputs!$E200*X$6 -> 0 | Y69: =Inputs!$E200*Y$6 -> 0 | Z69: =Inputs!$E200*Z$6 -> 0 | AA69: =Inputs!$E200*AA$6 -> 0 | AB69: =Inputs!$E200*AB$6 -> 0 | AC69: =Inputs!$E200*AC$6 -> 0 | AD69: =Inputs!$E200*AD$6 -> 0 | AE69: =Inputs!$E200*AE$6 -> 0 | AF69: =Inputs!$E200*AF$6 -> 0 | AG69: =Inputs!$E200*AG$6 -> 0 | AH69: =Inputs!$E200*AH$6 -> 0
C70: Management and technical staff | D70: =Inputs!$E$8 -> NGN | J70: =Inputs!$E201*J$6 -> 0 | K70: =Inputs!$E201*K$6 -> 0 | L70: =Inputs!$E201*L$6 -> 0 | M70: =Inputs!$E201*M$6 -> 0 | N70: =Inputs!$E201*N$6 -> 0 | O70: =Inputs!$E201*O$6 -> 0 | P70: =Inputs!$E201*P$6 -> 0 | Q70: =Inputs!$E201*Q$6 -> 0 | R70: =Inputs!$E201*R$6 -> 0 | S70: =Inputs!$E201*S$6 -> 0 | T70: =Inputs!$E201*T$6 -> 0 | U70: =Inputs!$E201*U$6 -> 0 | V70: =Inputs!$E201*V$6 -> 0 | W70: =Inputs!$E201*W$6 -> 0 | X70: =Inputs!$E201*X$6 -> 0 | Y70: =Inputs!$E201*Y$6 -> 0 | Z70: =Inputs!$E201*Z$6 -> 0 | AA70: =Inputs!$E201*AA$6 -> 0 | AB70: =Inputs!$E201*AB$6 -> 0 | AC70: =Inputs!$E201*AC$6 -> 0 | AD70: =Inputs!$E201*AD$6 -> 0 | AE70: =Inputs!$E201*AE$6 -> 0 | AF70: =Inputs!$E201*AF$6 -> 0 | AG70: =Inputs!$E201*AG$6 -> 0 | AH70: =Inputs!$E201*AH$6 -> 0
C71: Rural marketing | D71: =Inputs!$E$8 -> NGN | J71: =Inputs!$E202*J$6 -> 50000 | K71: =Inputs!$E202*K$6 -> 56500 | L71: =Inputs!$E202*L$6 -> 63845 | M71: =Inputs!$E202*M$6 -> 72144.85 | N71: =Inputs!$E202*N$6 -> 81523.6805 | O71: =Inputs!$E202*O$6 -> 92121.75896 | P71: =Inputs!$E202*P$6 -> 104097.5876 | Q71: =Inputs!$E202*Q$6 -> 117630.274 | R71: =Inputs!$E202*R$6 -> 132922.2096 | S71: =Inputs!$E202*S$6 -> 150202.0969 | T71: =Inputs!$E202*T$6 -> 169728.3695 | U71: =Inputs!$E202*U$6 -> 191793.0575 | V71: =Inputs!$E202*V$6 -> 216726.155 | W71: =Inputs!$E202*W$6 -> 244900.5552 | X71: =Inputs!$E202*X$6 -> 276737.6273 | Y71: =Inputs!$E202*Y$6 -> 312713.5189 | Z71: =Inputs!$E202*Z$6 -> 353366.2763 | AA71: =Inputs!$E202*AA$6 -> 399303.8923 | AB71: =Inputs!$E202*AB$6 -> 451213.3983 | AC71: =Inputs!$E202*AC$6 -> 509871.14 | AD71: =Inputs!$E202*AD$6 -> 576154.3882 | AE71: =Inputs!$E202*AE$6 -> 651054.4587 | AF71: =Inputs!$E202*AF$6 -> 735691.5383 | AG71: =Inputs!$E202*AG$6 -> 831331.4383 | AH71: =Inputs!$E202*AH$6 -> 939404.5253
C72: Accounting | D72: =Inputs!$E$8 -> NGN | J72: =Inputs!$E203*J$6 -> 150000 | K72: =Inputs!$E203*K$6 -> 169500 | L72: =Inputs!$E203*L$6 -> 191535 | M72: =Inputs!$E203*M$6 -> 216434.55 | N72: =Inputs!$E203*N$6 -> 244571.0415 | O72: =Inputs!$E203*O$6 -> 276365.2769 | P72: =Inputs!$E203*P$6 -> 312292.7629 | Q72: =Inputs!$E203*Q$6 -> 352890.8221 | R72: =Inputs!$E203*R$6 -> 398766.6289 | S72: =Inputs!$E203*S$6 -> 450606.2907 | T72: =Inputs!$E203*T$6 -> 509185.1085 | U72: =Inputs!$E203*U$6 -> 575379.1726 | V72: =Inputs!$E203*V$6 -> 650178.465 | W72: =Inputs!$E203*W$6 -> 734701.6655 | X72: =Inputs!$E203*X$6 -> 830212.882 | Y72: =Inputs!$E203*Y$6 -> 938140.5567 | Z72: =Inputs!$E203*Z$6 -> 1060098.829 | AA72: =Inputs!$E203*AA$6 -> 1197911.677 | AB72: =Inputs!$E203*AB$6 -> 1353640.195 | AC72: =Inputs!$E203*AC$6 -> 1529613.42 | AD72: =Inputs!$E203*AD$6 -> 1728463.165 | AE72: =Inputs!$E203*AE$6 -> 1953163.376 | AF72: =Inputs!$E203*AF$6 -> 2207074.615 | AG72: =Inputs!$E203*AG$6 -> 2493994.315 | AH72: =Inputs!$E203*AH$6 -> 2818213.576
C73: Transportation and travel | D73: =Inputs!$E$8 -> NGN | J73: =Inputs!$E204*J$6 -> 200000 | K73: =Inputs!$E204*K$6 -> 226000 | L73: =Inputs!$E204*L$6 -> 255380 | M73: =Inputs!$E204*M$6 -> 288579.4 | N73: =Inputs!$E204*N$6 -> 326094.722 | O73: =Inputs!$E204*O$6 -> 368487.0359 | P73: =Inputs!$E204*P$6 -> 416390.3505 | Q73: =Inputs!$E204*Q$6 -> 470521.0961 | R73: =Inputs!$E204*R$6 -> 531688.8386 | S73: =Inputs!$E204*S$6 -> 600808.3876 | T73: =Inputs!$E204*T$6 -> 678913.478 | U73: =Inputs!$E204*U$6 -> 767172.2301 | V73: =Inputs!$E204*V$6 -> 866904.62 | W73: =Inputs!$E204*W$6 -> 979602.2206 | X73: =Inputs!$E204*X$6 -> 1106950.509 | Y73: =Inputs!$E204*Y$6 -> 1250854.076 | Z73: =Inputs!$E204*Z$6 -> 1413465.105 | AA73: =Inputs!$E204*AA$6 -> 1597215.569 | AB73: =Inputs!$E204*AB$6 -> 1804853.593 | AC73: =Inputs!$E204*AC$6 -> 2039484.56 | AD73: =Inputs!$E204*AD$6 -> 2304617.553 | AE73: =Inputs!$E204*AE$6 -> 2604217.835 | AF73: =Inputs!$E204*AF$6 -> 2942766.153 | AG73: =Inputs!$E204*AG$6 -> 3325325.753 | AH73: =Inputs!$E204*AH$6 -> 3757618.101
C74: Office costs | D74: =Inputs!$E$8 -> NGN | J74: =Inputs!$E205*J$6 -> 50000 | K74: =Inputs!$E205*K$6 -> 56500 | L74: =Inputs!$E205*L$6 -> 63845 | M74: =Inputs!$E205*M$6 -> 72144.85 | N74: =Inputs!$E205*N$6 -> 81523.6805 | O74: =Inputs!$E205*O$6 -> 92121.75896 | P74: =Inputs!$E205*P$6 -> 104097.5876 | Q74: =Inputs!$E205*Q$6 -> 117630.274 | R74: =Inputs!$E205*R$6 -> 132922.2096 | S74: =Inputs!$E205*S$6 -> 150202.0969 | T74: =Inputs!$E205*T$6 -> 169728.3695 | U74: =Inputs!$E205*U$6 -> 191793.0575 | V74: =Inputs!$E205*V$6 -> 216726.155 | W74: =Inputs!$E205*W$6 -> 244900.5552 | X74: =Inputs!$E205*X$6 -> 276737.6273 | Y74: =Inputs!$E205*Y$6 -> 312713.5189 | Z74: =Inputs!$E205*Z$6 -> 353366.2763 | AA74: =Inputs!$E205*AA$6 -> 399303.8923 | AB74: =Inputs!$E205*AB$6 -> 451213.3983 | AC74: =Inputs!$E205*AC$6 -> 509871.14 | AD74: =Inputs!$E205*AD$6 -> 576154.3882 | AE74: =Inputs!$E205*AE$6 -> 651054.4587 | AF74: =Inputs!$E205*AF$6 -> 735691.5383 | AG74: =Inputs!$E205*AG$6 -> 831331.4383 | AH74: =Inputs!$E205*AH$6 -> 939404.5253
C75: Consultancy cost and fees | D75: =Inputs!$E$8 -> NGN | J75: =Inputs!$E206*J$6 -> 250000 | K75: =Inputs!$E206*K$6 -> 282500 | L75: =Inputs!$E206*L$6 -> 319225 | M75: =Inputs!$E206*M$6 -> 360724.25 | N75: =Inputs!$E206*N$6 -> 407618.4025 | O75: =Inputs!$E206*O$6 -> 460608.7948 | P75: =Inputs!$E206*P$6 -> 520487.9382 | Q75: =Inputs!$E206*Q$6 -> 588151.3701 | R75: =Inputs!$E206*R$6 -> 664611.0482 | S75: =Inputs!$E206*S$6 -> 751010.4845 | T75: =Inputs!$E206*T$6 -> 848641.8475 | U75: =Inputs!$E206*U$6 -> 958965.2877 | V75: =Inputs!$E206*V$6 -> 1083630.775 | W75: =Inputs!$E206*W$6 -> 1224502.776 | X75: =Inputs!$E206*X$6 -> 1383688.137 | Y75: =Inputs!$E206*Y$6 -> 1563567.594 | Z75: =Inputs!$E206*Z$6 -> 1766831.382 | AA75: =Inputs!$E206*AA$6 -> 1996519.461 | AB75: =Inputs!$E206*AB$6 -> 2256066.991 | AC75: =Inputs!$E206*AC$6 -> 2549355.7 | AD75: =Inputs!$E206*AD$6 -> 2880771.941 | AE75: =Inputs!$E206*AE$6 -> 3255272.294 | AF75: =Inputs!$E206*AF$6 -> 3678457.692 | AG75: =Inputs!$E206*AG$6 -> 4156657.192 | AH75: =Inputs!$E206*AH$6 -> 4697022.627
C76: Company insurance | D76: =Inputs!$E$8 -> NGN | J76: =Inputs!$E207*J$6 -> 180000 | K76: =Inputs!$E207*K$6 -> 203400 | L76: =Inputs!$E207*L$6 -> 229842 | M76: =Inputs!$E207*M$6 -> 259721.46 | N76: =Inputs!$E207*N$6 -> 293485.2498 | O76: =Inputs!$E207*O$6 -> 331638.3323 | P76: =Inputs!$E207*P$6 -> 374751.3155 | Q76: =Inputs!$E207*Q$6 -> 423468.9865 | R76: =Inputs!$E207*R$6 -> 478519.9547 | S76: =Inputs!$E207*S$6 -> 540727.5488 | T76: =Inputs!$E207*T$6 -> 611022.1302 | U76: =Inputs!$E207*U$6 -> 690455.0071 | V76: =Inputs!$E207*V$6 -> 780214.158 | W76: =Inputs!$E207*W$6 -> 881641.9986 | X76: =Inputs!$E207*X$6 -> 996255.4584 | Y76: =Inputs!$E207*Y$6 -> 1125768.668 | Z76: =Inputs!$E207*Z$6 -> 1272118.595 | AA76: =Inputs!$E207*AA$6 -> 1437494.012 | AB76: =Inputs!$E207*AB$6 -> 1624368.234 | AC76: =Inputs!$E207*AC$6 -> 1835536.104 | AD76: =Inputs!$E207*AD$6 -> 2074155.798 | AE76: =Inputs!$E207*AE$6 -> 2343796.051 | AF76: =Inputs!$E207*AF$6 -> 2648489.538 | AG76: =Inputs!$E207*AG$6 -> 2992793.178 | AH76: =Inputs!$E207*AH$6 -> 3381856.291
C77: Miscellaneous | D77: =Inputs!$E$8 -> NGN | J77: =Inputs!$E208*J$6 -> 50000 | K77: =Inputs!$E208*K$6 -> 56500 | L77: =Inputs!$E208*L$6 -> 63845 | M77: =Inputs!$E208*M$6 -> 72144.85 | N77: =Inputs!$E208*N$6 -> 81523.6805 | O77: =Inputs!$E208*O$6 -> 92121.75896 | P77: =Inputs!$E208*P$6 -> 104097.5876 | Q77: =Inputs!$E208*Q$6 -> 117630.274 | R77: =Inputs!$E208*R$6 -> 132922.2096 | S77: =Inputs!$E208*S$6 -> 150202.0969 | T77: =Inputs!$E208*T$6 -> 169728.3695 | U77: =Inputs!$E208*U$6 -> 191793.0575 | V77: =Inputs!$E208*V$6 -> 216726.155 | W77: =Inputs!$E208*W$6 -> 244900.5552 | X77: =Inputs!$E208*X$6 -> 276737.6273 | Y77: =Inputs!$E208*Y$6 -> 312713.5189 | Z77: =Inputs!$E208*Z$6 -> 353366.2763 | AA77: =Inputs!$E208*AA$6 -> 399303.8923 | AB77: =Inputs!$E208*AB$6 -> 451213.3983 | AC77: =Inputs!$E208*AC$6 -> 509871.14 | AD77: =Inputs!$E208*AD$6 -> 576154.3882 | AE77: =Inputs!$E208*AE$6 -> 651054.4587 | AF77: =Inputs!$E208*AF$6 -> 735691.5383 | AG77: =Inputs!$E208*AG$6 -> 831331.4383 | AH77: =Inputs!$E208*AH$6 -> 939404.5253
C78: Vehicle | D78: =Inputs!$E$8 -> NGN | J78: =Inputs!E211 -> 1500000
C79: Total | D79: =Inputs!$E$8 -> NGN | J79: =SUM(J69:J78) -> 2430000 | K79: =SUM(K69:K78) -> 1050900 | L79: 1187517 | M79: 1341894.21 | N79: 1516340.457 | O79: 1713464.717 | P79: 1936215.13 | Q79: 2187923.097 | R79: 2472353.099 | S79: 2793759.002 | T79: 3156947.673 | U79: 3567350.87 | V79: 4031106.483 | W79: 4555150.326 | X79: 5147319.868 | Y79: 5816471.451 | Z79: 6572612.74 | AA79: 7427052.396 | AB79: 8392569.208 | AC79: 9483603.205 | AD79: 10716471.62 | AE79: 12109612.93 | AF79: 13683862.61 | AG79: 15462764.75 | AH79: 17472924.17
C81: EBITDA | D81: =Inputs!$E$8 -> NGN | J81: =J21-J34-J79 -> 7356512.083 | K81: =K21-K34-K79 -> 14842687.61 | L81: 24073644.37 | M81: 30475401.94 | N81: 41329699.86 | O81: 53288425.32 | P81: 68893142.63 | Q81: 89245238 | R81: 115777500 | S81: 158294897.4 | T81: 205669072.5 | U81: 267363050.9 | V81: 347686755 | W81: 452244901.9 | X81: 618819448.3 | Y81: 804992151.8 | Z81: 1047214822 | AA81: 1362328208 | AB81: 1772228634 | AC81: 2423854163 | AD81: 3152761932 | AE81: 4100707119 | AF81: 5333448412 | AG81: 6936478274 | AH81: 9482686801
C83: Depreciation | D83: =Inputs!$E$8 -> NGN | J83: =J345+J388 -> 1836926.586 | K83: 1836926.586 | L83: 1836926.586 | M83: 1836926.586 | N83: 1836926.586 | O83: 1836926.586 | P83: 1836926.586 | Q83: 2350340.586 | R83: 1463146.916 | S83: 1463146.916 | T83: 1463146.916 | U83: 1463146.916 | V83: 1463146.916 | W83: 1463146.916 | X83: 2198971.749 | Y83: 1165442.499 | Z83: 1165442.499 | AA83: 1165442.499 | AB83: 1165442.499 | AC83: 1165442.499 | AD83: 982185.15 | AE83: 982185.15 | AF83: 982185.15 | AG83: 982185.15 | AH83: 992327.37
C85: EBIT | D85: =Inputs!$E$8 -> NGN | J85: =J81-J83 -> 5519585.497 | K85: =K81-K83 -> 13005761.03 | L85: 22236717.78 | M85: 28638475.35 | N85: 39492773.28 | O85: 51451498.73 | P85: 67056216.04 | Q85: 86894897.41 | R85: 114314353.1 | S85: 156831750.5 | T85: 204205925.6 | U85: 265899903.9 | V85: 346223608.1 | W85: 450781755 | X85: 616620476.6 | Y85: 803826709.3 | Z85: 1046049379 | AA85: 1361162765 | AB85: 1771063192 | AC85: 2422688721 | AD85: 3151779747 | AE85: 4099724934 | AF85: 5332466227 | AG85: 6935496089 | AH85: 9481694474
C87: Interest Expense | D87: =Inputs!$E$8 -> NGN | J87: =-(IF(Inputs!$E$8="NGN",J499,J498)) -> 1155000 | K87: =-(IF(Inputs!$E$8="NGN",K499,K498)) -> 1212750 | L87: =-(IF(Inputs!$E$8="NGN",L499,L498)) -> 1018710 | M87: =-(IF(Inputs!$E$8="NGN",M499,M498)) -> 802234.125 | N87: =-(IF(Inputs!$E$8="NGN",N499,N498)) -> 561563.8875 | O87: =-(IF(Inputs!$E$8="NGN",O499,O498)) -> 294821.0409 | P87: =-(IF(Inputs!$E$8="NGN",P499,P498)) -> 0 | Q87: =-(IF(Inputs!$E$8="NGN",Q499,Q498)) -> 0 | R87: =-(IF(Inputs!$E$8="NGN",R499,R498)) -> 0 | S87: =-(IF(Inputs!$E$8="NGN",S499,S498)) -> 0 | T87: =-(IF(Inputs!$E$8="NGN",T499,T498)) -> 0 | U87: =-(IF(Inputs!$E$8="NGN",U499,U498)) -> 0 | V87: =-(IF(Inputs!$E$8="NGN",V499,V498)) -> 0 | W87: =-(IF(Inputs!$E$8="NGN",W499,W498)) -> 0 | X87: =-(IF(Inputs!$E$8="NGN",X499,X498)) -> 0 | Y87: =-(IF(Inputs!$E$8="NGN",Y499,Y498)) -> 0 | Z87: =-(IF(Inputs!$E$8="NGN",Z499,Z498)) -> 0 | AA87: =-(IF(Inputs!$E$8="NGN",AA499,AA498)) -> 0 | AB87: =-(IF(Inputs!$E$8="NGN",AB499,AB498)) -> 0 | AC87: =-(IF(Inputs!$E$8="NGN",AC499,AC498)) -> 0 | AD87: =-(IF(Inputs!$E$8="NGN",AD499,AD498)) -> 0 | AE87: =-(IF(Inputs!$E$8="NGN",AE499,AE498)) -> 0 | AF87: =-(IF(Inputs!$E$8="NGN",AF499,AF498)) -> 0 | AG87: =-(IF(Inputs!$E$8="NGN",AG499,AG498)) -> 0 | AH87: =-(IF(Inputs!$E$8="NGN",AH499,AH498)) -> 0
C88: FX (profit)/loss | D88: =Inputs!$E$8 -> NGN | J88: =IF(Inputs!$E$8="NGN", J495, 0) -> 962500 | K88: =IF(Inputs!$E$8="NGN", K495, 0) -> 1010625 | L88: =IF(Inputs!$E$8="NGN", L495, 0) -> 848925 | M88: =IF(Inputs!$E$8="NGN", M495, 0) -> 668528.4375 | N88: =IF(Inputs!$E$8="NGN", N495, 0) -> 467969.9062 | O88: =IF(Inputs!$E$8="NGN", O495, 0) -> 245684.2008 | P88: =IF(Inputs!$E$8="NGN", P495, 0) -> 0 | Q88: =IF(Inputs!$E$8="NGN", Q495, 0) -> 0 | R88: =IF(Inputs!$E$8="NGN", R495, 0) -> 0 | S88: =IF(Inputs!$E$8="NGN", S495, 0) -> 0 | T88: =IF(Inputs!$E$8="NGN", T495, 0) -> 0 | U88: =IF(Inputs!$E$8="NGN", U495, 0) -> 0 | V88: =IF(Inputs!$E$8="NGN", V495, 0) -> 0 | W88: =IF(Inputs!$E$8="NGN", W495, 0) -> 0 | X88: =IF(Inputs!$E$8="NGN", X495, 0) -> 0 | Y88: =IF(Inputs!$E$8="NGN", Y495, 0) -> 0 | Z88: =IF(Inputs!$E$8="NGN", Z495, 0) -> 0 | AA88: =IF(Inputs!$E$8="NGN", AA495, 0) -> 0 | AB88: =IF(Inputs!$E$8="NGN", AB495, 0) -> 0 | AC88: =IF(Inputs!$E$8="NGN", AC495, 0) -> 0 | AD88: =IF(Inputs!$E$8="NGN", AD495, 0) -> 0 | AE88: =IF(Inputs!$E$8="NGN", AE495, 0) -> 0 | AF88: =IF(Inputs!$E$8="NGN", AF495, 0) -> 0 | AG88: =IF(Inputs!$E$8="NGN", AG495, 0) -> 0 | AH88: =IF(Inputs!$E$8="NGN", AH495, 0) -> 0
C90: EBT | D90: =Inputs!$E$8 -> NGN | J90: =J85-SUM(J87:J88) -> 3402085.497 | K90: 10782386.03 | L90: 20369082.78 | M90: 27167712.79 | N90: 38463239.48 | O90: 50910993.49 | P90: 67056216.04 | Q90: 86894897.41 | R90: 114314353.1 | S90: 156831750.5 | T90: 204205925.6 | U90: 265899903.9 | V90: 346223608.1 | W90: 450781755 | X90: 616620476.6 | Y90: 803826709.3 | Z90: 1046049379 | AA90: 1361162765 | AB90: 1771063192 | AC90: 2422688721 | AD90: 3151779747 | AE90: 4099724934 | AF90: 5332466227 | AG90: 6935496089 | AH90: 9481694474
C92: Income tax payable | D92: =Inputs!$E$8 -> NGN | F92: =Inputs!$E$235 -> 0.3 | J92: =MAX(0,J90*$F$92) -> 1020625.649 | K92: =MAX(0,K90*$F$92) -> 3234715.808 | L92: 6110724.835 | M92: 8150313.837 | N92: 11538971.84 | O92: 15273298.05 | P92: 20116864.81 | Q92: 26068469.22 | R92: 34294305.93 | S92: 47049525.15 | T92: 61261777.68 | U92: 79769971.18 | V92: 103867082.4 | W92: 135234526.5 | X92: 184986143 | Y92: 241148012.8 | Z92: 313814813.7 | AA92: 408348829.6 | AB92: 531318957.5 | AC92: 726806616.2 | AD92: 945533924 | AE92: 1229917480 | AF92: 1599739868 | AG92: 2080648827 | AH92: 2844508342
C94: Net Income | D94: =Inputs!$E$8 -> NGN | J94: =J90-SUM(J92:J92) -> 2381459.848 | K94: 7547670.218 | L94: 14258357.95 | M94: 19017398.95 | N94: 26924267.64 | O94: 35637695.44 | P94: 46939351.23 | Q94: 60826428.19 | R94: 80020047.17 | S94: 109782225.3 | T94: 142944147.9 | U94: 186129932.8 | V94: 242356525.7 | W94: 315547228.5 | X94: 431634333.6 | Y94: 562678696.5 | Z94: 732234565.4 | AA94: 952813935.6 | AB94: 1239744234 | AC94: 1695882104 | AD94: 2206245823 | AE94: 2869807454 | AF94: 3732726359 | AG94: 4854847263 | AH94: 6637186132
A96: x | C96: Cash flow statement
C98: Income tax paid | D98: =Inputs!$E$8 -> NGN | J98: =J559 -> 830000.6346 | K98: =K559 -> 3044090.793 | L98: 5920099.82 | M98: 7959688.822 | N98: 11348346.83 | O98: 15082673.03 | P98: 19926239.8 | Q98: 25908649.05 | R98: 33868327.65 | S98: 46623546.87 | T98: 61577502.39 | U98: 80085695.9 | V98: 104182807.1 | W98: 135550251.2 | X98: 185191494 | Y98: 241043305 | Z98: 313710105.9 | AA98: 408367341.1 | AB98: 531337469 | AC98: 726825127.8 | AD98: 945497458.3 | AE98: 1229881015 | AF98: 1599703403 | AG98: 2080612361 | AH98: 2844798434
C99: Operating cash flows | D99: =Inputs!$E$8 -> NGN | J99: =J81-J98 -> 6526511.449 | K99: =K81-K98 -> 11798596.82 | L99: 18153544.55 | M99: 22515713.12 | N99: 29981353.03 | O99: 38205752.29 | P99: 48966902.83 | Q99: 63336588.95 | R99: 81909172.36 | S99: 111671350.5 | T99: 144091570.1 | U99: 187277355 | V99: 243503947.9 | W99: 316694650.7 | X99: 433627954.4 | Y99: 563948846.8 | Z99: 733504715.7 | AA99: 953960866.6 | AB99: 1240891165 | AC99: 1697029035 | AD99: 2207264473 | AE99: 2870826105 | AF99: 3733745010 | AG99: 4855865913 | AH99: 6637888367
C101: Initial funding
C102: Senior debt | D102: =Inputs!$E$8 -> NGN | J102: =J233 -> 19250000 | K102: 0 | L102: 0 | M102: 0 | N102: 0 | O102: 0 | P102: 0 | Q102: 0 | R102: 0 | S102: 0 | T102: 0 | U102: 0 | V102: 0 | W102: 0 | X102: 0 | Y102: 0 | Z102: 0 | AA102: 0 | AB102: 0 | AC102: 0 | AD102: 0 | AE102: 0 | AF102: 0 | AG102: 0 | AH102: 0
C103: Grants | D103: =Inputs!$E$8 -> NGN | H103: x | J103: =J230 -> 19250000 | K103: =K230 -> 0 | L103: 0 | M103: 0 | N103: 0 | O103: 0 | P103: 0 | Q103: 0 | R103: 0 | S103: 0 | T103: 0 | U103: 0 | V103: 0 | W103: 0 | X103: 0 | Y103: 0 | Z103: 0 | AA103: 0 | AB103: 0 | AC103: 0 | AD103: 0 | AE103: 0 | AF103: 0 | AG103: 0 | AH103: 0
C104: Equity | D104: =Inputs!$E$8 -> NGN | H104: x | J104: =J236 -> 6901936 | K104: 0 | L104: 0 | M104: 0 | N104: 0 | O104: 0 | P104: 0 | Q104: 0 | R104: 0 | S104: 0 | T104: 0 | U104: 0 | V104: 0 | W104: 0 | X104: 0 | Y104: 0 | Z104: 0 | AA104: 0 | AB104: 0 | AC104: 0 | AD104: 0 | AE104: 0 | AF104: 0 | AG104: 0 | AH104: 0
C105: Total initial funding | D105: =Inputs!$E$8 -> NGN | J105: =SUM(J102:J104) -> 45401936 | K105: 0 | L105: 0 | M105: 0 | N105: 0 | O105: 0 | P105: 0 | Q105: 0 | R105: 0 | S105: 0 | T105: 0 | U105: 0 | V105: 0 | W105: 0 | X105: 0 | Y105: 0 | Z105: 0 | AA105: 0 | AB105: 0 | AC105: 0 | AD105: 0 | AE105: 0 | AF105: 0 | AG105: 0 | AH105: 0
C107: Cashflow available for investments | D107: =Inputs!$E$8 -> NGN | J107: =J99+J105 -> 51928447.45 | K107: 11798596.82 | L107: 18153544.55 | M107: 22515713.12 | N107: 29981353.03 | O107: 38205752.29 | P107: 48966902.83 | Q107: 63336588.95 | R107: 81909172.36 | S107: 111671350.5 | T107: 144091570.1 | U107: 187277355 | V107: 243503947.9 | W107: 316694650.7 | X107: 433627954.4 | Y107: 563948846.8 | Z107: 733504715.7 | AA107: 953960866.6 | AB107: 1240891165 | AC107: 1697029035 | AD107: 2207264473 | AE107: 2870826105 | AF107: 3733745010 | AG107: 4855865913 | AH107: 6637888367
C109: Investments
C110: Initial generation capex | D110: =Inputs!$E$8 -> NGN | J110: =J209 -> -30645936 | K110: 0 | L110: 0 | M110: 0 | N110: 0 | O110: 0 | P110: 0 | Q110: 0 | R110: 0 | S110: 0 | T110: 0 | U110: 0 | V110: 0 | W110: 0 | X110: 0 | Y110: 0 | Z110: 0 | AA110: 0 | AB110: 0 | AC110: 0 | AD110: 0 | AE110: 0 | AF110: 0 | AG110: 0 | AH110: 0
C111: Initial distribution capex | D111: =Inputs!$E$8 -> NGN | J111: =J216 -> -12276000 | K111: 0 | L111: 0 | M111: 0 | N111: 0 | O111: 0 | P111: 0 | Q111: 0 | R111: 0 | S111: 0 | T111: 0 | U111: 0 | V111: 0 | W111: 0 | X111: 0 | Y111: 0 | Z111: 0 | AA111: 0 | AB111: 0 | AC111: 0 | AD111: 0 | AE111: 0 | AF111: 0 | AG111: 0 | AH111: 0
C112: Project development costs | D112: =Inputs!$E$8 -> NGN | J112: =J225 -> 1300000 | K112: 0 | L112: 0 | M112: 0 | N112: 0 | O112: 0 | P112: 0 | Q112: 0 | R112: 0 | S112: 0 | T112: 0 | U112: 0 | V112: 0 | W112: 0 | X112: 0 | Y112: 0 | Z112: 0 | AA112: 0 | AB112: 0 | AC112: 0 | AD112: 0 | AE112: 0 | AF112: 0 | AG112: 0 | AH112: 0
C113: Ongoing generation capex | D113: =Inputs!$E$8 -> NGN | J113: =-J450 -> 0 | K113: 0 | L113: 0 | M113: 0 | N113: 0 | O113: 0 | P113: =-P450 -> 0 | Q113: -4107312 | R113: 0 | S113: 0 | T113: 0 | U113: 0 | V113: 0 | W113: 0 | X113: =-X450 -> -10937000 | Y113: 0 | Z113: 0 | AA113: 0 | AB113: 0 | AC113: 0 | AD113: 0 | AE113: 0 | AF113: 0 | AG113: 0 | AH113: -248000
C114: Ongoing distribution capex | D114: =Inputs!$E$8 -> NGN | J114: =-J458 -> 0 | K114: 0 | L114: 0 | M114: 0 | N114: 0 | O114: 0 | P114: 0 | Q114: 0 | R114: 0 | S114: 0 | T114: 0 | U114: 0 | V114: 0 | W114: 0 | X114: -100372.5 | Y114: 0 | Z114: 0 | AA114: 0 | AB114: 0 | AC114: 0 | AD114: 0 | AE114: 0 | AF114: 0 | AG114: 0 | AH114: -5555.5
C115: Customer connection capex | D115: =Inputs!$E$8 -> NGN | J115: =-J471 -> -3780000 | K115: =-K471 -> -1260000 | L115: -1260000 | M115: 0 | N115: 0 | O115: 0 | P115: 0 | Q115: 0 | R115: 0 | S115: 0 | T115: 0 | U115: 0 | V115: 0 | W115: 0 | X115: 0 | Y115: 0 | Z115: 0 | AA115: 0 | AB115: 0 | AC115: 0 | AD115: 0 | AE115: 0 | AF115: 0 | AG115: 0 | AH115: 0
C116: Total investments | D116: =Inputs!$E$8 -> NGN | J116: =SUM(J110:J115) -> -45401936 | K116: =SUM(K110:K115) -> -1260000 | L116: -1260000 | M116: 0 | N116: 0 | O116: 0 | P116: 0 | Q116: -4107312 | R116: 0 | S116: 0 | T116: 0 | U116: 0 | V116: 0 | W116: 0 | X116: -11037372.5 | Y116: 0 | Z116: 0 | AA116: 0 | AB116: 0 | AC116: 0 | AD116: 0 | AE116: 0 | AF116: 0 | AG116: 0 | AH116: -253555.5
C118: Use of MMRA | D118: =Inputs!$E$8 -> NGN | J118: =-IF(J107+J116<0,MAX(J107+J116,-J521),0) -> 0 | K118: 0 | L118: 0 | M118: 0 | N118: 0 | O118: 0 | P118: 0 | Q118: 0 | R118: 0 | S118: 0 | T118: 0 | U118: 0 | V118: 0 | W118: 0 | X118: 0 | Y118: 0 | Z118: 0 | AA118: 0 | AB118: 0 | AC118: 0 | AD118: 0 | AE118: 0 | AF118: 0 | AG118: 0 | AH118: 0
C120: Cash flow available for debt service (CFADS) | D120: =Inputs!$E$8 -> NGN | J120: =J107+J116+J118 -> 6526511.449 | K120: =K107+K116+K118 -> 10538596.82 | L120: 16893544.55 | M120: 22515713.12 | N120: 29981353.03 | O120: 38205752.29 | P120: 48966902.83 | Q120: 59229276.95 | R120: 81909172.36 | S120: 111671350.5 | T120: 144091570.1 | U120: 187277355 | V120: 243503947.9 | W120: 316694650.7 | X120: 422590581.9 | Y120: 563948846.8 | Z120: 733504715.7 | AA120: 953960866.6 | AB120: 1240891165 | AC120: 1697029035 | AD120: 2207264473 | AE120: 2870826105 | AF120: 3733745010 | AG120: 4855865913 | AH120: 6637634812
H121: Check | I121: =IF(SUM(J121:AH121)>0,1,0) -> 0 | J121: =IF(J120<0,1,0) -> 0 | K121: =IF(K120<0,1,0) -> 0 | L121: 0 | M121: 0 | N121: 0 | O121: 0 | P121: 0 | Q121: 0 | R121: 0 | S121: 0 | T121: 0 | U121: 0 | V121: 0 | W121: 0 | X121: 0 | Y121: 0 | Z121: 0 | AA121: 0 | AB121: 0 | AC121: 0 | AD121: 0 | AE121: 0 | AF121: 0 | AG121: 0 | AH121: 0
C122: Debt service
C123: Interest | D123: =Inputs!$E$8 -> NGN | J123: =IF(Inputs!$E$8="NGN", J499, J498) -> -1155000 | K123: =IF(Inputs!$E$8="NGN", K499, K498) -> -1212750 | L123: =IF(Inputs!$E$8="NGN", L499, L498) -> -1018710 | M123: =IF(Inputs!$E$8="NGN", M499, M498) -> -802234.125 | N123: =IF(Inputs!$E$8="NGN", N499, N498) -> -561563.8875 | O123: =IF(Inputs!$E$8="NGN", O499, O498) -> -294821.0409 | P123: =IF(Inputs!$E$8="NGN", P499, P498) -> 0 | Q123: =IF(Inputs!$E$8="NGN", Q499, Q498) -> 0 | R123: =IF(Inputs!$E$8="NGN", R499, R498) -> 0 | S123: =IF(Inputs!$E$8="NGN", S499, S498) -> 0 | T123: =IF(Inputs!$E$8="NGN", T499, T498) -> 0 | U123: =IF(Inputs!$E$8="NGN", U499, U498) -> 0 | V123: =IF(Inputs!$E$8="NGN", V499, V498) -> 0 | W123: =IF(Inputs!$E$8="NGN", W499, W498) -> 0 | X123: =IF(Inputs!$E$8="NGN", X499, X498) -> 0 | Y123: =IF(Inputs!$E$8="NGN", Y499, Y498) -> 0 | Z123: =IF(Inputs!$E$8="NGN", Z499, Z498) -> 0 | AA123: =IF(Inputs!$E$8="NGN", AA499, AA498) -> 0 | AB123: =IF(Inputs!$E$8="NGN", AB499, AB498) -> 0 | AC123: =IF(Inputs!$E$8="NGN", AC499, AC498) -> 0 | AD123: =IF(Inputs!$E$8="NGN", AD499, AD498) -> 0 | AE123: =IF(Inputs!$E$8="NGN", AE499, AE498) -> 0 | AF123: =IF(Inputs!$E$8="NGN", AF499, AF498) -> 0 | AG123: =IF(Inputs!$E$8="NGN", AG499, AG498) -> 0 | AH123: =IF(Inputs!$E$8="NGN", AH499, AH498) -> 0
C124: Principal | D124: =Inputs!$E$8 -> NGN | J124: =IF(Inputs!$E$8="NGN", J493, J488) -> 0 | K124: =IF(Inputs!$E$8="NGN", K493, K488) -> -4244625 | L124: =IF(Inputs!$E$8="NGN", L493, L488) -> -4456856.25 | M124: =IF(Inputs!$E$8="NGN", M493, M488) -> -4679699.063 | N124: =IF(Inputs!$E$8="NGN", N493, N488) -> -4913684.016 | O124: =IF(Inputs!$E$8="NGN", O493, O488) -> -5159368.216 | P124: =IF(Inputs!$E$8="NGN", P493, P488) -> 0 | Q124: =IF(Inputs!$E$8="NGN", Q493, Q488) -> 0 | R124: =IF(Inputs!$E$8="NGN", R493, R488) -> 0 | S124: =IF(Inputs!$E$8="NGN", S493, S488) -> 0 | T124: =IF(Inputs!$E$8="NGN", T493, T488) -> 0 | U124: =IF(Inputs!$E$8="NGN", U493, U488) -> 0 | V124: =IF(Inputs!$E$8="NGN", V493, V488) -> 0 | W124: =IF(Inputs!$E$8="NGN", W493, W488) -> 0 | X124: =IF(Inputs!$E$8="NGN", X493, X488) -> 0 | Y124: =IF(Inputs!$E$8="NGN", Y493, Y488) -> 0 | Z124: =IF(Inputs!$E$8="NGN", Z493, Z488) -> 0 | AA124: =IF(Inputs!$E$8="NGN", AA493, AA488) -> 0 | AB124: =IF(Inputs!$E$8="NGN", AB493, AB488) -> 0 | AC124: =IF(Inputs!$E$8="NGN", AC493, AC488) -> 0 | AD124: =IF(Inputs!$E$8="NGN", AD493, AD488) -> 0 | AE124: =IF(Inputs!$E$8="NGN", AE493, AE488) -> 0 | AF124: =IF(Inputs!$E$8="NGN", AF493, AF488) -> 0 | AG124: =IF(Inputs!$E$8="NGN", AG493, AG488) -> 0 | AH124: =IF(Inputs!$E$8="NGN", AH493, AH488) -> 0
C125: Total debt service | D125: =Inputs!$E$8 -> NGN | J125: =SUM(J123:J124) -> -1155000 | K125: -5457375 | L125: -5475566.25 | M125: -5481933.188 | N125: -5475247.903 | O125: -5454189.257 | P125: 0 | Q125: 0 | R125: 0 | S125: 0 | T125: 0 | U125: 0 | V125: 0 | W125: 0 | X125: 0 | Y125: 0 | Z125: 0 | AA125: 0 | AB125: 0 | AC125: 0 | AD125: 0 | AE125: 0 | AF125: 0 | AG125: 0 | AH125: 0
C127: Use of DSRA | D127: =Inputs!$E$8 -> NGN | J127: =-IF(J120+J125<0,MAX(J120+J125,-J505),0) -> 0 | K127: 0 | L127: 0 | M127: 0 | N127: 0 | O127: 0 | P127: 0 | Q127: 0 | R127: 0 | S127: 0 | T127: 0 | U127: 0 | V127: 0 | W127: 0 | X127: 0 | Y127: 0 | Z127: 0 | AA127: 0 | AB127: 0 | AC127: 0 | AD127: 0 | AE127: 0 | AF127: 0 | AG127: 0 | AH127: 0
C129: Cash flow available for DSRA | D129: =Inputs!$E$8 -> NGN | J129: =J120+J125+J127 -> 5371511.449 | K129: 5081221.818 | L129: 11417978.3 | M129: 17033779.93 | N129: 24506105.13 | O129: 32751563.03 | P129: 48966902.83 | Q129: 59229276.95 | R129: 81909172.36 | S129: 111671350.5 | T129: 144091570.1 | U129: 187277355 | V129: 243503947.9 | W129: 316694650.7 | X129: 422590581.9 | Y129: 563948846.8 | Z129: 733504715.7 | AA129: 953960866.6 | AB129: 1240891165 | AC129: 1697029035 | AD129: 2207264473 | AE129: 2870826105 | AF129: 3733745010 | AG129: 4855865913 | AH129: 6637634812
C131: Debt service reserve account
C132: DSRA draw | D132: =Inputs!$E$8 -> NGN | J132: =-J507 -> -5371511.449 | K132: =-K507 -> -104054.8014 | L132: =-L507 -> -6366.9375 | M132: 0 | N132: 0 | O132: 0 | P132: 0 | Q132: 0 | R132: 0 | S132: 0 | T132: 0 | U132: 0 | V132: 0 | W132: 0 | X132: 0 | Y132: 0 | Z132: 0 | AA132: 0 | AB132: 0 | AC132: 0 | AD132: 0 | AE132: 0 | AF132: 0 | AG132: 0 | AH132: 0
C133: DSRA release | D133: =Inputs!$E$8 -> NGN | J133: =-J508 -> 0 | K133: =-K508 -> 0 | L133: 0 | M133: =-M508 -> 6685.284375 | N133: 21058.64578 | O133: 5454189.257 | P133: 0 | Q133: 0 | R133: 0 | S133: 0 | T133: 0 | U133: 0 | V133: 0 | W133: 0 | X133: 0 | Y133: 0 | Z133: 0 | AA133: 0 | AB133: 0 | AC133: 0 | AD133: 0 | AE133: 0 | AF133: 0 | AG133: 0 | AH133: 0
C134: Total DSRA (draw)/release | D134: =Inputs!$E$8 -> NGN | J134: =SUM(J132:J133) -> -5371511.449 | K134: =SUM(K132:K133) -> -104054.8014 | L134: -6366.9375 | M134: 6685.284375 | N134: 21058.64578 | O134: 5454189.257 | P134: 0 | Q134: 0 | R134: 0 | S134: 0 | T134: 0 | U134: 0 | V134: 0 | W134: 0 | X134: 0 | Y134: 0 | Z134: 0 | AA134: 0 | AB134: 0 | AC134: 0 | AD134: 0 | AE134: 0 | AF134: 0 | AG134: 0 | AH134: 0
C136: Cash flow available for MMRA | D136: =Inputs!$E$8 -> NGN | J136: =J129+J134 -> 0 | K136: =K129+K134 -> 4977167.017 | L136: 11411611.36 | M136: 17040465.21 | N136: 24527163.77 | O136: 38205752.29 | P136: 48966902.83 | Q136: 59229276.95 | R136: 81909172.36 | S136: 111671350.5 | T136: 144091570.1 | U136: 187277355 | V136: 243503947.9 | W136: 316694650.7 | X136: 422590581.9 | Y136: 563948846.8 | Z136: 733504715.7 | AA136: 953960866.6 | AB136: 1240891165 | AC136: 1697029035 | AD136: 2207264473 | AE136: 2870826105 | AF136: 3733745010 | AG136: 4855865913 | AH136: 6637634812
C138: Major Maintenance reserve account
C139: MMRA draw | D139: =Inputs!$E$8 -> NGN | J139: =-J533 -> 0 | K139: =-K533 -> -1260000 | L139: 0 | M139: 0 | N139: 0 | O139: 0 | P139: -4107312 | Q139: 0 | R139: 0 | S139: 0 | T139: 0 | U139: 0 | V139: 0 | W139: -11037372.5 | X139: 0 | Y139: 0 | Z139: 0 | AA139: 0 | AB139: 0 | AC139: 0 | AD139: 0 | AE139: 0 | AF139: 0 | AG139: -253555.5 | AH139: 0
C140: MMRA release | D140: =Inputs!$E$8 -> NGN | J140: =-J534 -> 0 | K140: =-K534 -> 0 | L140: 1260000 | M140: 0 | N140: 0 | O140: 0 | P140: 0 | Q140: 4107312 | R140: 0 | S140: 0 | T140: 0 | U140: 0 | V140: 0 | W140: 0 | X140: 11037372.5 | Y140: 0 | Z140: 0 | AA140: 0 | AB140: 0 | AC140: 0 | AD140: 0 | AE140: 0 | AF140: 0 | AG140: 0 | AH140: 253555.5
C141: Total MMRA (draw)/release | D141: =Inputs!$E$8 -> NGN | J141: =SUM(J139:J140) -> 0 | K141: =SUM(K139:K140) -> -1260000 | L141: 1260000 | M141: 0 | N141: 0 | O141: 0 | P141: -4107312 | Q141: 4107312 | R141: 0 | S141: 0 | T141: 0 | U141: 0 | V141: 0 | W141: -11037372.5 | X141: 11037372.5 | Y141: 0 | Z141: 0 | AA141: 0 | AB141: 0 | AC141: 0 | AD141: 0 | AE141: 0 | AF141: 0 | AG141: -253555.5 | AH141: 253555.5
C143: Cash flow available for distribution | D143: =Inputs!$E$8 -> NGN | J143: =J136+J141 -> 0 | K143: =K136+K141 -> 3717167.017 | L143: 12671611.36 | M143: 17040465.21 | N143: 24527163.77 | O143: 38205752.29 | P143: 44859590.83 | Q143: 63336588.95 | R143: 81909172.36 | S143: 111671350.5 | T143: 144091570.1 | U143: 187277355 | V143: 243503947.9 | W143: 305657278.2 | X143: 433627954.4 | Y143: 563948846.8 | Z143: 733504715.7 | AA143: 953960866.6 | AB143: 1240891165 | AC143: 1697029035 | AD143: 2207264473 | AE143: 2870826105 | AF143: 3733745010 | AG143: 4855612358 | AH143: 6637888367
D144: Flag | H144: Check | I144: =IF(SUM(J144:AH144)>0,1,0) -> 0 | J144: =IF(AND(J143<0,J121=0),1,0) -> 0 | K144: =IF(AND(K143<0,K121=0),1,0) -> 0 | L144: 0 | M144: 0 | N144: 0 | O144: 0 | P144: 0 | Q144: 0 | R144: 0 | S144: 0 | T144: 0 | U144: 0 | V144: 0 | W144: 0 | X144: 0 | Y144: 0 | Z144: 0 | AA144: 0 | AB144: 0 | AC144: 0 | AD144: 0 | AE144: 0 | AF144: 0 | AG144: 0 | AH144: 0
C145: Distribution to equity
C146: Distribution to equity | D146: =Inputs!$E$8 -> NGN | J146: =J143 -> 0 | K146: 3717167.017 | L146: 12671611.36 | M146: 17040465.21 | N146: 24527163.77 | O146: 38205752.29 | P146: 44859590.83 | Q146: 63336588.95 | R146: 81909172.36 | S146: 111671350.5 | T146: 144091570.1 | U146: 187277355 | V146: 243503947.9 | W146: 305657278.2 | X146: 433627954.4 | Y146: 563948846.8 | Z146: 733504715.7 | AA146: 953960866.6 | AB146: 1240891165 | AC146: 1697029035 | AD146: 2207264473 | AE146: 2870826105 | AF146: 3733745010 | AG146: 4855612358 | AH146: 6637888367
H147: Check | I147: =IF(SUM(J147:AH147)>0,1,0) -> 0 | J147: =IF(J146<0,1,0) -> 0 | K147: =IF(K146<0,1,0) -> 0 | L147: 0 | M147: 0 | N147: 0 | O147: 0 | P147: 0 | Q147: 0 | R147: 0 | S147: 0 | T147: 0 | U147: 0 | V147: 0 | W147: 0 | X147: 0 | Y147: 0 | Z147: 0 | AA147: 0 | AB147: 0 | AC147: 0 | AD147: 0 | AE147: 0 | AF147: 0 | AG147: 0 | AH147: 0
C149: Net cash flow | D149: =Inputs!$E$8 -> NGN | J149: =J143-J146 -> 0 | K149: 0 | L149: 0 | M149: 0 | N149: 0 | O149: 0 | P149: 0 | Q149: 0 | R149: 0 | S149: 0 | T149: 0 | U149: 0 | V149: 0 | W149: 0 | X149: 0 | Y149: 0 | Z149: 0 | AA149: 0 | AB149: 0 | AC149: 0 | AD149: 0 | AE149: 0 | AF149: 0 | AG149: 0 | AH149: 0
A151: x | C151: Balance Sheet
C153: Current Assets
C154: Cash | D154: =Inputs!$E$8 -> NGN | J154: =J149 -> 0 | K154: =J154+K149 -> 0 | L154: =K154+L149 -> 0 | M154: 0 | N154: 0 | O154: 0 | P154: 0 | Q154: 0 | R154: 0 | S154: 0 | T154: 0 | U154: 0 | V154: 0 | W154: 0 | X154: 0 | Y154: 0 | Z154: 0 | AA154: 0 | AB154: 0 | AC154: 0 | AD154: 0 | AE154: 0 | AF154: 0 | AG154: 0 | AH154: 0
C155: MMRA | D155: =Inputs!$E$8 -> NGN | J155: =J525 -> 0 | K155: =K525 -> 1260000 | L155: 0 | M155: 0 | N155: 0 | O155: 0 | P155: 4107312 | Q155: 0 | R155: 0 | S155: 0 | T155: 0 | U155: 0 | V155: 0 | W155: 11037372.5 | X155: 0 | Y155: 0 | Z155: 0 | AA155: 0 | AB155: 0 | AC155: 0 | AD155: 0 | AE155: 0 | AF155: 0 | AG155: 253555.5 | AH155: 0
C156: DSRA | D156: =Inputs!$E$8 -> NGN | J156: =J509 -> 5371511.449 | K156: =K509 -> 5475566.25 | L156: =L509 -> 5481933.188 | M156: 5475247.903 | N156: 5454189.257 | O156: 0 | P156: 0 | Q156: 0 | R156: 0 | S156: 0 | T156: 0 | U156: 0 | V156: 0 | W156: 0 | X156: 0 | Y156: 0 | Z156: 0 | AA156: 0 | AB156: 0 | AC156: 0 | AD156: 0 | AE156: 0 | AF156: 0 | AG156: 0 | AH156: 0
C157: Total current assets | D157: =Inputs!$E$8 -> NGN | J157: =SUM(J154:J156) -> 5371511.449 | K157: =SUM(K154:K156) -> 6735566.25 | L157: 5481933.188 | M157: 5475247.903 | N157: 5454189.257 | O157: 0 | P157: 4107312 | Q157: 0 | R157: 0 | S157: 0 | T157: 0 | U157: 0 | V157: 0 | W157: 11037372.5 | X157: 0 | Y157: 0 | Z157: 0 | AA157: 0 | AB157: 0 | AC157: 0 | AD157: 0 | AE157: 0 | AF157: 0 | AG157: 253555.5 | AH157: 0
C159: Non-Current Assets
C160: Tangible assets | D160: =Inputs!$E$8 -> NGN | J160: =-SUM($J$116:J116)-SUM($J$83:J83) -> 43565009.41 | K160: =-SUM($J$116:K116)-SUM($J$83:K83) -> 42988082.83 | L160: =-SUM($J$116:L116)-SUM($J$83:L83) -> 42411156.24 | M160: =-SUM($J$116:M116)-SUM($J$83:M83) -> 40574229.66 | N160: =-SUM($J$116:N116)-SUM($J$83:N83) -> 38737303.07 | O160: =-SUM($J$116:O116)-SUM($J$83:O83) -> 36900376.49 | P160: =-SUM($J$116:P116)-SUM($J$83:P83) -> 35063449.9 | Q160: =-SUM($J$116:Q116)-SUM($J$83:Q83) -> 36820421.31 | R160: =-SUM($J$116:R116)-SUM($J$83:R83) -> 35357274.4 | S160: =-SUM($J$116:S116)-SUM($J$83:S83) -> 33894127.48 | T160: =-SUM($J$116:T116)-SUM($J$83:T83) -> 32430980.57 | U160: =-SUM($J$116:U116)-SUM($J$83:U83) -> 30967833.65 | V160: =-SUM($J$116:V116)-SUM($J$83:V83) -> 29504686.73 | W160: =-SUM($J$116:W116)-SUM($J$83:W83) -> 28041539.82 | X160: =-SUM($J$116:X116)-SUM($J$83:X83) -> 36879940.57 | Y160: =-SUM($J$116:Y116)-SUM($J$83:Y83) -> 35714498.07 | Z160: =-SUM($J$116:Z116)-SUM($J$83:Z83) -> 34549055.57 | AA160: =-SUM($J$116:AA116)-SUM($J$83:AA83) -> 33383613.07 | AB160: =-SUM($J$116:AB116)-SUM($J$83:AB83) -> 32218170.57 | AC160: =-SUM($J$116:AC116)-SUM($J$83:AC83) -> 31052728.07 | AD160: =-SUM($J$116:AD116)-SUM($J$83:AD83) -> 30070542.92 | AE160: =-SUM($J$116:AE116)-SUM($J$83:AE83) -> 29088357.77 | AF160: =-SUM($J$116:AF116)-SUM($J$83:AF83) -> 28106172.62 | AG160: =-SUM($J$116:AG116)-SUM($J$83:AG83) -> 27123987.47 | AH160: =-SUM($J$116:AH116)-SUM($J$83:AH83) -> 26385215.6
C161: Total non-current assets | D161: =Inputs!$E$8 -> NGN | J161: =SUM(J160:J160) -> 43565009.41 | K161: 42988082.83 | L161: 42411156.24 | M161: 40574229.66 | N161: 38737303.07 | O161: 36900376.49 | P161: 35063449.9 | Q161: 36820421.31 | R161: 35357274.4 | S161: 33894127.48 | T161: 32430980.57 | U161: 30967833.65 | V161: 29504686.73 | W161: 28041539.82 | X161: 36879940.57 | Y161: 35714498.07 | Z161: 34549055.57 | AA161: 33383613.07 | AB161: 32218170.57 | AC161: 31052728.07 | AD161: 30070542.92 | AE161: 29088357.77 | AF161: 28106172.62 | AG161: 27123987.47 | AH161: 26385215.6
C163: Liabilities
C164: Deferred tax | D164: =Inputs!$E$8 -> NGN | J164: =-J565 -> -190625.0146 | K164: =-K565 -> -381250.0292 | L164: =-L565 -> -571875.0438 | M164: -762500.0585 | N164: -953125.0731 | O164: -1143750.088 | P164: -1334375.102 | Q164: -1494195.277 | R164: -1920173.552 | S164: -2346151.828 | T164: -2030427.113 | U164: -1714702.398 | V164: -1398977.683 | W164: -1083252.969 | X164: -877901.9788 | Y164: -982609.764 | Z164: -1087317.549 | AA164: -1068805.975 | AB164: -1050294.4 | AC164: -1031782.825 | AD164: -1068248.455 | AE164: -1104714.085 | AF164: -1141179.715 | AG164: -1177645.345 | AH164: -887553.799
C165: Senior debt | D165: =Inputs!$E$8 -> NGN | J165: =-(IF(Inputs!$E$8="NGN",J494,J489)) -> -20212500 | K165: =-(IF(Inputs!$E$8="NGN",K494,K489)) -> -16978500 | L165: =-(IF(Inputs!$E$8="NGN",L494,L489)) -> -13370568.75 | M165: =-(IF(Inputs!$E$8="NGN",M494,M489)) -> -9359398.125 | N165: =-(IF(Inputs!$E$8="NGN",N494,N489)) -> -4913684.016 | O165: =-(IF(Inputs!$E$8="NGN",O494,O489)) -> 0 | P165: =-(IF(Inputs!$E$8="NGN",P494,P489)) -> 0 | Q165: =-(IF(Inputs!$E$8="NGN",Q494,Q489)) -> 0 | R165: =-(IF(Inputs!$E$8="NGN",R494,R489)) -> 0 | S165: =-(IF(Inputs!$E$8="NGN",S494,S489)) -> 0 | T165: =-(IF(Inputs!$E$8="NGN",T494,T489)) -> 0 | U165: =-(IF(Inputs!$E$8="NGN",U494,U489)) -> 0 | V165: =-(IF(Inputs!$E$8="NGN",V494,V489)) -> 0 | W165: =-(IF(Inputs!$E$8="NGN",W494,W489)) -> 0 | X165: =-(IF(Inputs!$E$8="NGN",X494,X489)) -> 0 | Y165: =-(IF(Inputs!$E$8="NGN",Y494,Y489)) -> 0 | Z165: =-(IF(Inputs!$E$8="NGN",Z494,Z489)) -> 0 | AA165: =-(IF(Inputs!$E$8="NGN",AA494,AA489)) -> 0 | AB165: =-(IF(Inputs!$E$8="NGN",AB494,AB489)) -> 0 | AC165: =-(IF(Inputs!$E$8="NGN",AC494,AC489)) -> 0 | AD165: =-(IF(Inputs!$E$8="NGN",AD494,AD489)) -> 0 | AE165: =-(IF(Inputs!$E$8="NGN",AE494,AE489)) -> 0 | AF165: =-(IF(Inputs!$E$8="NGN",AF494,AF489)) -> 0 | AG165: =-(IF(Inputs!$E$8="NGN",AG494,AG489)) -> 0 | AH165: =-(IF(Inputs!$E$8="NGN",AH494,AH489)) -> 0
C166: Total Liabilities | D166: =Inputs!$E$8 -> NGN | J166: =SUM(J164:J165) -> -20403125.01 | K166: -17359750.03 | L166: -13942443.79 | M166: -10121898.18 | N166: -5866809.089 | O166: -1143750.088 | P166: -1334375.102 | Q166: -1494195.277 | R166: -1920173.552 | S166: -2346151.828 | T166: -2030427.113 | U166: -1714702.398 | V166: -1398977.683 | W166: -1083252.969 | X166: -877901.9788 | Y166: -982609.764 | Z166: -1087317.549 | AA166: -1068805.975 | AB166: -1050294.4 | AC166: -1031782.825 | AD166: -1068248.455 | AE166: -1104714.085 | AF166: -1141179.715 | AG166: -1177645.345 | AH166: -887553.799
C168: Net assets | D168: =Inputs!$E$8 -> NGN | J168: =J157+J161+J166 -> 28533395.85 | K168: =K157+K161+K166 -> 32363899.05 | L168: 33950645.64 | M168: 35927579.38 | N168: 38324683.24 | O168: 35756626.4 | P168: 37836386.8 | Q168: 35326226.04 | R168: 33437100.85 | S168: 31547975.65 | T168: 30400553.45 | U168: 29253131.25 | V168: 28105709.05 | W168: 37995659.35 | X168: 36002038.59 | Y168: 34731888.31 | Z168: 33461738.02 | AA168: 32314807.1 | AB168: 31167876.17 | AC168: 30020945.25 | AD168: 29002294.47 | AE168: 27983643.69 | AF168: 26964992.91 | AG168: 26199897.63 | AH168: 25497661.8
C170: Equity
C171: Equity | D171: =Inputs!$E$8 -> NGN | H171: x | J171: =SUM($J$104:J104) -> 6901936 | K171: =SUM($J$104:K104) -> 6901936 | L171: =SUM($J$104:L104) -> 6901936 | M171: =SUM($J$104:M104) -> 6901936 | N171: =SUM($J$104:N104) -> 6901936 | O171: =SUM($J$104:O104) -> 6901936 | P171: =SUM($J$104:P104) -> 6901936 | Q171: =SUM($J$104:Q104) -> 6901936 | R171: =SUM($J$104:R104) -> 6901936 | S171: =SUM($J$104:S104) -> 6901936 | T171: =SUM($J$104:T104) -> 6901936 | U171: =SUM($J$104:U104) -> 6901936 | V171: =SUM($J$104:V104) -> 6901936 | W171: =SUM($J$104:W104) -> 6901936 | X171: =SUM($J$104:X104) -> 6901936 | Y171: =SUM($J$104:Y104) -> 6901936 | Z171: =SUM($J$104:Z104) -> 6901936 | AA171: =SUM($J$104:AA104) -> 6901936 | AB171: =SUM($J$104:AB104) -> 6901936 | AC171: =SUM($J$104:AC104) -> 6901936 | AD171: =SUM($J$104:AD104) -> 6901936 | AE171: =SUM($J$104:AE104) -> 6901936 | AF171: =SUM($J$104:AF104) -> 6901936 | AG171: =SUM($J$104:AG104) -> 6901936 | AH171: =SUM($J$104:AH104) -> 6901936
C172: Grant | D172: =Inputs!$E$8 -> NGN | H172: x | J172: =SUM($J$103:J103) -> 19250000 | K172: =SUM($J$103:K103) -> 19250000 | L172: =SUM($J$103:L103) -> 19250000 | M172: =SUM($J$103:M103) -> 19250000 | N172: =SUM($J$103:N103) -> 19250000 | O172: =SUM($J$103:O103) -> 19250000 | P172: =SUM($J$103:P103) -> 19250000 | Q172: =SUM($J$103:Q103) -> 19250000 | R172: =SUM($J$103:R103) -> 19250000 | S172: =SUM($J$103:S103) -> 19250000 | T172: =SUM($J$103:T103) -> 19250000 | U172: =SUM($J$103:U103) -> 19250000 | V172: =SUM($J$103:V103) -> 19250000 | W172: =SUM($J$103:W103) -> 19250000 | X172: =SUM($J$103:X103) -> 19250000 | Y172: =SUM($J$103:Y103) -> 19250000 | Z172: =SUM($J$103:Z103) -> 19250000 | AA172: =SUM($J$103:AA103) -> 19250000 | AB172: =SUM($J$103:AB103) -> 19250000 | AC172: =SUM($J$103:AC103) -> 19250000 | AD172: =SUM($J$103:AD103) -> 19250000 | AE172: =SUM($J$103:AE103) -> 19250000 | AF172: =SUM($J$103:AF103) -> 19250000 | AG172: =SUM($J$103:AG103) -> 19250000 | AH172: =SUM($J$103:AH103) -> 19250000
C173: Net Income | D173: =Inputs!$E$8 -> NGN | H173: x | J173: =J94 -> 2381459.848 | K173: 7547670.218 | L173: 14258357.95 | M173: 19017398.95 | N173: 26924267.64 | O173: 35637695.44 | P173: 46939351.23 | Q173: 60826428.19 | R173: 80020047.17 | S173: 109782225.3 | T173: 142944147.9 | U173: 186129932.8 | V173: 242356525.7 | W173: 315547228.5 | X173: 431634333.6 | Y173: 562678696.5 | Z173: 732234565.4 | AA173: 952813935.6 | AB173: 1239744234 | AC173: 1695882104 | AD173: 2206245823 | AE173: 2869807454 | AF173: 3732726359 | AG173: 4854847263 | AH173: 6637186132
C174: Retained earnings | D174: =Inputs!$E$8 -> NGN | H174: x | K174: =J173 -> 2381459.848 | L174: =K174+K173 -> 9929130.066 | M174: =L174+L173 -> 24187488.01 | N174: 43204886.97 | O174: 70129154.6 | P174: 105766850 | Q174: 152706201.3 | R174: 213532629.5 | S174: 293552676.6 | T174: 403334902 | U174: 546279049.9 | V174: 732408982.7 | W174: 974765508.3 | X174: 1290312737 | Y174: 1721947070 | Z174: 2284625767 | AA174: 3016860332 | AB174: 3969674268 | AC174: 5209418502 | AD174: 6905300606 | AE174: 9111546429 | AF174: 1.198135388e+10 | AG174: 1.571408024e+10 | AH174: 2.05689275e+10
C175: Cumulative distributions | D175: =Inputs!$E$8 -> NGN | H175: x | J175: =-SUM($J$146:J146) -> 0 | K175: =-SUM($J$146:K146) -> -3717167.017 | L175: =-SUM($J$146:L146) -> -16388778.38 | M175: =-SUM($J$146:M146) -> -33429243.59 | N175: =-SUM($J$146:N146) -> -57956407.36 | O175: =-SUM($J$146:O146) -> -96162159.65 | P175: =-SUM($J$146:P146) -> -141021750.5 | Q175: =-SUM($J$146:Q146) -> -204358339.4 | R175: =-SUM($J$146:R146) -> -286267511.8 | S175: =-SUM($J$146:S146) -> -397938862.3 | T175: =-SUM($J$146:T146) -> -542030432.4 | U175: =-SUM($J$146:U146) -> -729307787.4 | V175: =-SUM($J$146:V146) -> -972811735.3 | W175: =-SUM($J$146:W146) -> -1278469013 | X175: =-SUM($J$146:X146) -> -1712096968 | Y175: =-SUM($J$146:Y146) -> -2276045815 | Z175: =-SUM($J$146:Z146) -> -3009550530 | AA175: =-SUM($J$146:AA146) -> -3963511397 | AB175: =-SUM($J$146:AB146) -> -5204402562 | AC175: =-SUM($J$146:AC146) -> -6901431597 | AD175: =-SUM($J$146:AD146) -> -9108696071 | AE175: =-SUM($J$146:AE146) -> -1.197952218e+10 | AF175: =-SUM($J$146:AF146) -> -1.571326718e+10 | AG175: =-SUM($J$146:AG146) -> -2.056887954e+10 | AH175: =-SUM($J$146:AH146) -> -2.720676791e+10
C176: Total Equity | D176: =Inputs!$E$8 -> NGN | J176: =SUM(J171:J175) -> 28533395.85 | K176: 32363899.05 | L176: 33950645.64 | M176: 35927579.38 | N176: 38324683.24 | O176: 35756626.4 | P176: 37836386.8 | Q176: 35326226.04 | R176: 33437100.85 | S176: 31547975.65 | T176: 30400553.45 | U176: 29253131.25 | V176: 28105709.05 | W176: 37995659.35 | X176: 36002038.59 | Y176: 34731888.31 | Z176: 33461738.02 | AA176: 32314807.1 | AB176: 31167876.17 | AC176: 30020945.25 | AD176: 29002294.47 | AE176: 27983643.69 | AF176: 26964992.91 | AG176: 26199897.63 | AH176: 25497661.8
C178: Balance check | I178: =IF(ROUND(SUM(J178:AH178),1)<>0,1,0) -> 0 | J178: =J168-J176 -> 0 | K178: 0 | L178: 0 | M178: 0 | N178: 0 | O178: 0 | P178: 0 | Q178: 0 | R178: -3.725290298e-08 | S178: 0 | T178: -9.685754776e-08 | U178: -8.195638657e-08 | V178: -5.960464478e-08 | W178: -1.415610313e-07 | X178: 0 | Y178: 0 | Z178: -3.725290298e-08 | AA178: 2.905726433e-07 | AB178: 6.183981895e-07 | AC178: 0 | AD178: 1.069158316e-06 | AE178: 2.384185791e-06 | AF178: 1.788139343e-06 | AG178: 1.192092896e-06 | AH178: 5.401670933e-06
A180: x | C180: Performance and Returns
C182: Performance | H182: Average | I182: Minimum
C183: Operating profit margin | D183: % | H183: =AVERAGE(J183:AH183) -> 0.9358438255 | I183: =MIN(J183:AH183) -> 0.5264410668 | J183: =J85/J21 -> 0.5264410668 | K183: 0.7793710213 | L183: 0.8498542082 | M183: 0.8719827483 | N183: 0.8973159578 | O183: 0.9134504857 | P183: 0.9270195683 | Q183: 0.9328827755 | R183: 0.9510233405 | S183: 0.9602632066 | T183: 0.9660767229 | U183: 0.9709767632 | V183: 0.9751113017 | W183: 0.9786048025 | X183: 0.9812378202 | Y183: 0.9851581957 | Z183: 0.9870995152 | AA183: 0.9887579799 | AB183: 0.9901768207 | AC183: 0.991761729 | AD183: 0.9928114843 | AE183: 0.9936502096 | AF183: 0.9943726057 | AG183: 0.994995369 | AH183: 0.9956999391
C184: Debt Service Coverage Ratio (w/o DSRA) | D184: % | H184: =AVERAGE(J184:AH184) -> 4.542482484 | I184: =MIN(J184:AH184) -> 1.931074338 | J184: =IFERROR(-J120/J125,"") -> 5.650659263 | K184: 1.931074338 | L184: 3.085259821 | M184: 4.10725785 | N184: 5.475798276 | O184: 7.004845355
C185: Debt Service Coverage Ratio (w DSRA) | D185: % | H185: 5.373193569 | I185: =MIN(J185:AH185) -> 2.915340849 | J185: =IFERROR(-(J120+I156)/J125,"") -> 5.650659263 | K185: 2.915340849 | L185: 4.085259821 | M185: 5.10725785 | N185: 6.475798276 | O185: 8.004845355
C187: Returns
C188: IRR Period | D188: Flag | F188: =Dashboard!$E$32 -> 25 | J188: =IF(J3-Year<$F$188,1,0) -> 1 | K188: 1 | L188: 1 | M188: 1 | N188: 1 | O188: 1 | P188: 1 | Q188: 1 | R188: 1 | S188: 1 | T188: 1 | U188: 1 | V188: 1 | W188: 1 | X188: 1 | Y188: 1 | Z188: 1 | AA188: 1 | AB188: 1 | AC188: 1 | AD188: 1 | AE188: 1 | AF188: 1 | AG188: 1 | AH188: 1
C190: Equity
C191: Equity cashflows over IRR period | D191: =Inputs!$E$8 -> NGN | I191: =-J104 -> -6901936 | J191: =J188*(J146) -> 0 | K191: =K188*(K146-K104) -> 3717167.017 | L191: 12671611.36 | M191: 17040465.21 | N191: 24527163.77 | O191: 38205752.29 | P191: 44859590.83 | Q191: 63336588.95 | R191: 81909172.36 | S191: 111671350.5 | T191: 144091570.1 | U191: 187277355 | V191: 243503947.9 | W191: 305657278.2 | X191: 433627954.4 | Y191: 563948846.8 | Z191: 733504715.7 | AA191: 953960866.6 | AB191: 1240891165 | AC191: 1697029035 | AD191: 2207264473 | AE191: 2870826105 | AF191: 3733745010 | AG191: 4855612358 | AH191: 6637888367
C192: Equity IRR | D192: % | F192: =XIRR(I191:AH191,$I$5:$AH$5) -> 0.9425541282
C193: Payback flag | D193: Flag | J193: =IF(SUM($I$193:I193)>0,0,IF(SUM($J$191:J191)>0,1,0)) -> 0 | K193: =IF(SUM($I$193:J193)>0,0,IF(SUM($J$191:K191)>0,1,0)) -> 1 | L193: =IF(SUM($I$193:K193)>0,0,IF(SUM($J$191:L191)>0,1,0)) -> 0 | M193: =IF(SUM($I$193:L193)>0,0,IF(SUM($J$191:M191)>0,1,0)) -> 0 | N193: =IF(SUM($I$193:M193)>0,0,IF(SUM($J$191:N191)>0,1,0)) -> 0 | O193: =IF(SUM($I$193:N193)>0,0,IF(SUM($J$191:O191)>0,1,0)) -> 0 | P193: =IF(SUM($I$193:O193)>0,0,IF(SUM($J$191:P191)>0,1,0)) -> 0 | Q193: =IF(SUM($I$193:P193)>0,0,IF(SUM($J$191:Q191)>0,1,0)) -> 0 | R193: =IF(SUM($I$193:Q193)>0,0,IF(SUM($J$191:R191)>0,1,0)) -> 0 | S193: =IF(SUM($I$193:R193)>0,0,IF(SUM($J$191:S191)>0,1,0)) -> 0 | T193: =IF(SUM($I$193:S193)>0,0,IF(SUM($J$191:T191)>0,1,0)) -> 0 | U193: =IF(SUM($I$193:T193)>0,0,IF(SUM($J$191:U191)>0,1,0)) -> 0 | V193: =IF(SUM($I$193:U193)>0,0,IF(SUM($J$191:V191)>0,1,0)) -> 0 | W193: =IF(SUM($I$193:V193)>0,0,IF(SUM($J$191:W191)>0,1,0)) -> 0 | X193: =IF(SUM($I$193:W193)>0,0,IF(SUM($J$191:X191)>0,1,0)) -> 0 | Y193: =IF(SUM($I$193:X193)>0,0,IF(SUM($J$191:Y191)>0,1,0)) -> 0 | Z193: =IF(SUM($I$193:Y193)>0,0,IF(SUM($J$191:Z191)>0,1,0)) -> 0 | AA193: =IF(SUM($I$193:Z193)>0,0,IF(SUM($J$191:AA191)>0,1,0)) -> 0 | AB193: =IF(SUM($I$193:AA193)>0,0,IF(SUM($J$191:AB191)>0,1,0)) -> 0 | AC193: =IF(SUM($I$193:AB193)>0,0,IF(SUM($J$191:AC191)>0,1,0)) -> 0 | AD193: =IF(SUM($I$193:AC193)>0,0,IF(SUM($J$191:AD191)>0,1,0)) -> 0 | AE193: =IF(SUM($I$193:AD193)>0,0,IF(SUM($J$191:AE191)>0,1,0)) -> 0 | AF193: =IF(SUM($I$193:AE193)>0,0,IF(SUM($J$191:AF191)>0,1,0)) -> 0 | AG193: =IF(SUM($I$193:AF193)>0,0,IF(SUM($J$191:AG191)>0,1,0)) -> 0 | AH193: =IF(SUM($I$193:AG193)>0,0,IF(SUM($J$191:AH191)>0,1,0)) -> 0
C194: Equity payback | D194: years | F194: =INDEX($J$3:$AH$3,,MATCH(1,$J$193:$AH$193,0))-Year+1 -> 2
C196: Project
C197: Project cashflows over IRR period | D197: =Inputs!$E$8 -> NGN | J197: =J188*(J120-J105) -> -38875424.55 | K197: =K188*(K120-K105) -> 10538596.82 | L197: 16893544.55 | M197: 22515713.12 | N197: 29981353.03 | O197: 38205752.29 | P197: 48966902.83 | Q197: 59229276.95 | R197: 81909172.36 | S197: 111671350.5 | T197: 144091570.1 | U197: 187277355 | V197: 243503947.9 | W197: 316694650.7 | X197: 422590581.9 | Y197: 563948846.8 | Z197: 733504715.7 | AA197: 953960866.6 | AB197: 1240891165 | AC197: 1697029035 | AD197: 2207264473 | AE197: 2870826105 | AF197: 3733745010 | AG197: 4855865913 | AH197: 6637634812
C198: Project IRR | D198: % | F198: =XIRR(J197:AH197,$J$5:$AH$5) -> 0.6262682259
C199: NPV | E199: =Inputs!E303 -> 0.1101441974 | F199: =XNPV(E199,$J$197:$AH$197,$J$5:$AH$5) -> 3317956593
A201: x | C201: Initial Funding
C203: Uses
C204: Production Capex Investments | E204: Sites | F204: Capex/site
C205: =$C$10 -> Site 1 | D205: =Inputs!$E$8 -> NGN | E205: =$F$10 -> 1 | F205: =Inputs!G66 -> 30645936 | J205: =-IF(J10=1,$E205*$F205,0) -> -30645936 | K205: 0 | L205: 0 | M205: 0 | N205: 0 | O205: 0 | P205: 0 | Q205: 0 | R205: 0 | S205: 0 | T205: 0 | U205: 0 | V205: 0 | W205: 0 | X205: 0 | Y205: 0 | Z205: 0 | AA205: 0 | AB205: 0 | AC205: 0 | AD205: 0 | AE205: 0 | AF205: 0 | AG205: 0 | AH205: 0
C206: =$C$11 -> Site 2 | D206: =Inputs!$E$8 -> NGN | E206: =$F$11 -> 0 | F206: =Inputs!G67 -> 0 | J206: =-IF(J11=1,$E206*$F206,0) -> 0 | K206: 0 | L206: 0 | M206: 0 | N206: 0 | O206: 0 | P206: 0 | Q206: 0 | R206: 0 | S206: 0 | T206: 0 | U206: 0 | V206: 0 | W206: 0 | X206: 0 | Y206: 0 | Z206: 0 | AA206: 0 | AB206: 0 | AC206: 0 | AD206: 0 | AE206: 0 | AF206: 0 | AG206: 0 | AH206: 0
C207: =$C$12 -> Site 3 | D207: =Inputs!$E$8 -> NGN | E207: =$F$12 -> 0 | F207: =Inputs!G68 -> 0 | J207: =-IF(J12=1,$E207*$F207,0) -> 0 | K207: 0 | L207: 0 | M207: 0 | N207: 0 | O207: 0 | P207: 0 | Q207: 0 | R207: 0 | S207: 0 | T207: 0 | U207: 0 | V207: 0 | W207: 0 | X207: 0 | Y207: 0 | Z207: 0 | AA207: 0 | AB207: 0 | AC207: 0 | AD207: 0 | AE207: 0 | AF207: 0 | AG207: 0 | AH207: 0
C208: =$C$13 -> Site 4 | D208: =Inputs!$E$8 -> NGN | E208: =$F$13 -> 0 | F208: =Inputs!G69 -> 0 | J208: =-IF(J13=1,$E208*$F208,0) -> 0 | K208: 0 | L208: 0 | M208: 0 | N208: 0 | O208: 0 | P208: 0 | Q208: 0 | R208: 0 | S208: 0 | T208: 0 | U208: 0 | V208: 0 | W208: 0 | X208: 0 | Y208: 0 | Z208: 0 | AA208: 0 | AB208: 0 | AC208: 0 | AD208: 0 | AE208: 0 | AF208: 0 | AG208: 0 | AH208: 0
C209: Total production capex | D209: =Inputs!$E$8 -> NGN | I209: =SUM(J209:N209) -> -30645936 | J209: =SUM(J205:J208) -> -30645936 | K209: 0 | L209: 0 | M209: 0 | N209: 0 | O209: 0 | P209: 0 | Q209: 0 | R209: 0 | S209: 0 | T209: 0 | U209: 0 | V209: 0 | W209: 0 | X209: 0 | Y209: 0 | Z209: 0 | AA209: 0 | AB209: 0 | AC209: 0 | AD209: 0 | AE209: 0 | AF209: 0 | AG209: 0 | AH209: 0
C211: Distribution Capex Investments | F211: Capex/site
C212: =$C$10 -> Site 1 | D212: =Inputs!$E$8 -> NGN | F212: =Inputs!G72 -> 12276000 | J212: =-IF(J10=1,$E205*$F212,0) -> -12276000 | K212: 0 | L212: 0 | M212: 0 | N212: 0 | O212: 0 | P212: 0 | Q212: 0 | R212: 0 | S212: 0 | T212: 0 | U212: 0 | V212: 0 | W212: 0 | X212: 0 | Y212: 0 | Z212: 0 | AA212: 0 | AB212: 0 | AC212: 0 | AD212: 0 | AE212: 0 | AF212: 0 | AG212: 0 | AH212: 0
C213: =$C$11 -> Site 2 | D213: =Inputs!$E$8 -> NGN | F213: =Inputs!G73 -> 0 | J213: =-IF(J11=1,$E206*$F213,0) -> 0 | K213: 0 | L213: 0 | M213: 0 | N213: 0 | O213: 0 | P213: 0 | Q213: 0 | R213: 0 | S213: 0 | T213: 0 | U213: 0 | V213: 0 | W213: 0 | X213: 0 | Y213: 0 | Z213: 0 | AA213: 0 | AB213: 0 | AC213: 0 | AD213: 0 | AE213: 0 | AF213: 0 | AG213: 0 | AH213: 0
C214: =$C$12 -> Site 3 | D214: =Inputs!$E$8 -> NGN | F214: =Inputs!G74 -> 0 | J214: =-IF(J12=1,$E207*$F214,0) -> 0 | K214: 0 | L214: 0 | M214: 0 | N214: 0 | O214: 0 | P214: 0 | Q214: 0 | R214: 0 | S214: 0 | T214: 0 | U214: 0 | V214: 0 | W214: 0 | X214: 0 | Y214: 0 | Z214: 0 | AA214: 0 | AB214: 0 | AC214: 0 | AD214: 0 | AE214: 0 | AF214: 0 | AG214: 0 | AH214: 0
C215: =$C$13 -> Site 4 | D215: =Inputs!$E$8 -> NGN | F215: =Inputs!G75 -> 0 | J215: =-IF(J13=1,$E208*$F215,0) -> 0 | K215: 0 | L215: 0 | M215: 0 | N215: 0 | O215: 0 | P215: 0 | Q215: 0 | R215: 0 | S215: 0 | T215: 0 | U215: 0 | V215: 0 | W215: 0 | X215: 0 | Y215: 0 | Z215: 0 | AA215: 0 | AB215: 0 | AC215: 0 | AD215: 0 | AE215: 0 | AF215: 0 | AG215: 0 | AH215: 0
C216: Total distribution capex | D216: =Inputs!$E$8 -> NGN | I216: =SUM(J216:N216) -> -12276000 | J216: =SUM(J212:J215) -> -12276000 | K216: 0 | L216: 0 | M216: 0 | N216: 0 | O216: 0 | P216: 0 | Q216: 0 | R216: 0 | S216: 0 | T216: 0 | U216: 0 | V216: 0 | W216: 0 | X216: 0 | Y216: 0 | Z216: 0 | AA216: 0 | AB216: 0 | AC216: 0 | AD216: 0 | AE216: 0 | AF216: 0 | AG216: 0 | AH216: 0
C218: Customer connection investments
C219: Customer connection capex | J219: =-J471*J$9 -> -3780000 | K219: 0 | L219: 0 | M219: 0 | N219: 0 | O219: 0 | P219: 0 | Q219: 0 | R219: 0 | S219: 0 | T219: 0 | U219: 0 | V219: 0 | W219: 0 | X219: 0 | Y219: 0 | Z219: 0 | AA219: 0 | AB219: 0 | AC219: 0 | AD219: 0 | AE219: 0 | AF219: 0 | AG219: 0 | AH219: 0
C220: Total customer connection capex | D220: =Inputs!$E$8 -> NGN | I220: =SUM(J220:N220) -> -3780000 | J220: =SUM(J219) -> -3780000 | K220: 0 | L220: 0 | M220: 0 | N220: 0 | O220: 0 | P220: 0 | Q220: 0 | R220: 0 | S220: 0 | T220: 0 | U220: 0 | V220: 0 | W220: 0 | X220: 0 | Y220: 0 | Z220: 0 | AA220: 0 | AB220: 0 | AC220: 0 | AD220: 0 | AE220: 0 | AF220: 0 | AG220: 0 | AH220: 0
C222: Project Development costs
C223: Dependent on number of sites | D223: =Inputs!$E$8 -> NGN | J223: =Inputs!E85 -> 1300000
C224: Not dependent on number of sites | D224: =Inputs!$E$8 -> NGN | J224: =Inputs!E91 -> 0
C225: Total poject development capex | D225: =Inputs!$E$8 -> NGN | I225: =SUM(J225:N225) -> 1300000 | J225: =SUM(J223:J224) -> 1300000 | K225: =SUM(K223:K223) -> 0 | L225: 0 | M225: 0 | N225: 0 | O225: 0 | P225: 0 | Q225: 0 | R225: 0 | S225: 0 | T225: 0 | U225: 0 | V225: 0 | W225: 0 | X225: 0 | Y225: 0 | Z225: 0 | AA225: 0 | AB225: 0 | AC225: 0 | AD225: 0 | AE225: 0 | AF225: 0 | AG225: 0 | AH225: 0
C227: Total uses | D227: =Inputs!$E$8 -> NGN | I227: =SUM(J227:N227) -> -45401936 | J227: =J225+J220+J216+J209 -> -45401936 | K227: =K225+K220+K216+K209 -> 0 | L227: 0 | M227: 0 | N227: 0 | O227: 0 | P227: 0 | Q227: 0 | R227: 0 | S227: 0 | T227: 0 | U227: 0 | V227: 0 | W227: 0 | X227: 0 | Y227: 0 | Z227: 0 | AA227: 0 | AB227: 0 | AC227: 0 | AD227: 0 | AE227: 0 | AF227: 0 | AG227: 0 | AH227: 0
C229: Sources
C230: Grants for assets | D230: =Inputs!$E$8 -> NGN | F230: =Inputs!E281 -> 0.4239907303 | I230: =SUM(J230:N230) -> 19250000 | J230: =-J227*$F$230 -> 19250000 | K230: 0 | L230: 0 | M230: 0 | N230: 0 | O230: 0 | P230: 0 | Q230: 0 | R230: 0 | S230: 0 | T230: 0 | U230: 0 | V230: 0 | W230: 0 | X230: 0 | Y230: 0 | Z230: 0 | AA230: 0 | AB230: 0 | AC230: 0 | AD230: 0 | AE230: 0 | AF230: 0 | AG230: 0 | AH230: 0
C231: Funding required after grant | D231: =Inputs!$E$8 -> NGN | J231: =J227+J230 -> -26151936 | K231: 0 | L231: 0 | M231: 0 | N231: 0 | O231: 0 | P231: 0 | Q231: 0 | R231: 0 | S231: 0 | T231: 0 | U231: 0 | V231: 0 | W231: 0 | X231: 0 | Y231: 0 | Z231: 0 | AA231: 0 | AB231: 0 | AC231: 0 | AD231: 0 | AE231: 0 | AF231: 0 | AG231: 0 | AH231: 0
C233: Senior Debt | D233: =Inputs!$E$8 -> NGN | E233: Drawdown | F233: Limit | I233: =SUM(J233:N233) -> 19250000 | J233: =-J231*$E234 -> 19250000 | K233: =-K231*$E234 -> 0 | L233: 0 | M233: 0 | N233: 0 | O233: 0 | P233: 0 | Q233: 0 | R233: 0 | S233: 0 | T233: 0 | U233: 0 | V233: 0 | W233: 0 | X233: 0 | Y233: 0 | Z233: 0 | AA233: 0 | AB233: 0 | AC233: 0 | AD233: 0 | AE233: 0 | AF233: 0 | AG233: 0 | AH233: 0
C234: Funding required after senior debt | D234: =Inputs!$E$8 -> NGN | E234: =Inputs!G299 -> 0.7360831718 | F234: =Inputs!E295 -> 19250000 | H234: Check | I234: =IF(I233=F234,0,1) -> 0 | J234: =J231+J233 -> -6901936 | K234: =K231+K233 -> 0 | L234: 0 | M234: 0 | N234: 0 | O234: 0 | P234: 0 | Q234: 0 | R234: 0 | S234: 0 | T234: 0 | U234: 0 | V234: 0 | W234: 0 | X234: 0 | Y234: 0 | Z234: 0 | AA234: 0 | AB234: 0 | AC234: 0 | AD234: 0 | AE234: 0 | AF234: 0 | AG234: 0 | AH234: 0
C236: Equity | D236: =Inputs!$E$8 -> NGN | F236: =Inputs!G295 -> 6901936 | I236: =SUM(J236:N236) -> 6901936 | J236: =IF(SUM($J$233:J233)<$F$234,-J234,$F236) -> 6901936 | K236: =IF(SUM($J$233:K233)<$F$234,-K234,$F236-SUM($J$236:J236)) -> 0 | L236: =IF(SUM($J$233:L233)<$F$234,-L234,$F236-SUM($J$236:K236)) -> 0 | M236: =IF(SUM($J$233:M233)<$F$234,-M234,$F236-SUM($J$236:L236)) -> 0 | N236: =IF(SUM($J$233:N233)<$F$234,-N234,$F236-SUM($J$236:M236)) -> 0 | O236: =IF(SUM($J$233:O233)<$F$234,-O234,$F236-SUM($J$236:N236)) -> 0 | P236: =IF(SUM($J$233:P233)<$F$234,-P234,$F236-SUM($J$236:O236)) -> 0 | Q236: =IF(SUM($J$233:Q233)<$F$234,-Q234,$F236-SUM($J$236:P236)) -> 0 | R236: =IF(SUM($J$233:R233)<$F$234,-R234,$F236-SUM($J$236:Q236)) -> 0 | S236: =IF(SUM($J$233:S233)<$F$234,-S234,$F236-SUM($J$236:R236)) -> 0 | T236: =IF(SUM($J$233:T233)<$F$234,-T234,$F236-SUM($J$236:S236)) -> 0 | U236: =IF(SUM($J$233:U233)<$F$234,-U234,$F236-SUM($J$236:T236)) -> 0 | V236: =IF(SUM($J$233:V233)<$F$234,-V234,$F236-SUM($J$236:U236)) -> 0 | W236: =IF(SUM($J$233:W233)<$F$234,-W234,$F236-SUM($J$236:V236)) -> 0 | X236: =IF(SUM($J$233:X233)<$F$234,-X234,$F236-SUM($J$236:W236)) -> 0 | Y236: =IF(SUM($J$233:Y233)<$F$234,-Y234,$F236-SUM($J$236:X236)) -> 0 | Z236: =IF(SUM($J$233:Z233)<$F$234,-Z234,$F236-SUM($J$236:Y236)) -> 0 | AA236: =IF(SUM($J$233:AA233)<$F$234,-AA234,$F236-SUM($J$236:Z236)) -> 0 | AB236: =IF(SUM($J$233:AB233)<$F$234,-AB234,$F236-SUM($J$236:AA236)) -> 0 | AC236: =IF(SUM($J$233:AC233)<$F$234,-AC234,$F236-SUM($J$236:AB236)) -> 0 | AD236: =IF(SUM($J$233:AD233)<$F$234,-AD234,$F236-SUM($J$236:AC236)) -> 0 | AE236: =IF(SUM($J$233:AE233)<$F$234,-AE234,$F236-SUM($J$236:AD236)) -> 0 | AF236: =IF(SUM($J$233:AF233)<$F$234,-AF234,$F236-SUM($J$236:AE236)) -> 0 | AG236: =IF(SUM($J$233:AG233)<$F$234,-AG234,$F236-SUM($J$236:AF236)) -> 0 | AH236: =IF(SUM($J$233:AH233)<$F$234,-AH234,$F236-SUM($J$236:AG236)) -> 0
C237: Funding required after equity | D237: =Inputs!$E$8 -> NGN | J237: =J234+J236 -> 0 | K237: 0 | L237: 0 | M237: 0 | N237: 0 | O237: 0 | P237: 0 | Q237: 0 | R237: 0 | S237: 0 | T237: 0 | U237: 0 | V237: 0 | W237: 0 | X237: 0 | Y237: 0 | Z237: 0 | AA237: 0 | AB237: 0 | AC237: 0 | AD237: 0 | AE237: 0 | AF237: 0 | AG237: 0 | AH237: 0
C239: Total sources | I239: =SUM(J239:N239) -> 45401936 | J239: =J236+J233+J230 -> 45401936 | K239: =K236+K233+K230 -> 0 | L239: 0 | M239: 0 | N239: 0 | O239: 0 | P239: 0 | Q239: 0 | R239: 0 | S239: 0 | T239: 0 | U239: 0 | V239: 0 | W239: 0 | X239: 0 | Y239: 0 | Z239: 0 | AA239: 0 | AB239: 0 | AC239: 0 | AD239: 0 | AE239: 0 | AF239: 0 | AG239: 0 | AH239: 0
H240: Check | I240: =IF(I239+I227=0,0,1) -> 0
A242: x | C242: Consumption
C244: Phase 1 consumption
C245: Annual consumption | F245: =Inputs!$D$13 -> Operational
C246: =Inputs!$C$23 -> Site 1 | D246: kWh/year | F246: =$F$10 -> 1 | J246: =(INDEX(Inputs!$H$179:$AG$179,,Model!J10+1)*INDEX(Inputs!$H$164:$AG$164,,Model!J10+1))*12 -> 48960 | K246: =(INDEX(Inputs!$H$179:$AG$179,,Model!K10+1)*INDEX(Inputs!$H$164:$AG$164,,Model!K10+1))*12 -> 84864 | L246: =(INDEX(Inputs!$H$179:$AG$179,,Model!L10+1)*INDEX(Inputs!$H$164:$AG$164,,Model!L10+1))*12 -> 137904 | M246: =(INDEX(Inputs!$H$179:$AG$179,,Model!M10+1)*INDEX(Inputs!$H$164:$AG$164,,Model!M10+1))*12 -> 179275.2 | N246: =(INDEX(Inputs!$H$179:$AG$179,,Model!N10+1)*INDEX(Inputs!$H$164:$AG$164,,Model!N10+1))*12 -> 233057.76 | O246: =(INDEX(Inputs!$H$179:$AG$179,,Model!O10+1)*INDEX(Inputs!$H$164:$AG$164,,Model!O10+1))*12 -> 302975.088 | P246: =(INDEX(Inputs!$H$179:$AG$179,,Model!P10+1)*INDEX(Inputs!$H$164:$AG$164,,Model!P10+1))*12 -> 393867.6144 | Q246: =(INDEX(Inputs!$H$179:$AG$179,,Model!Q10+1)*INDEX(Inputs!$H$164:$AG$164,,Model!Q10+1))*12 -> 512027.8987 | R246: =(INDEX(Inputs!$H$179:$AG$179,,Model!R10+1)*INDEX(Inputs!$H$164:$AG$164,,Model!R10+1))*12 -> 665636.2683 | S246: =(INDEX(Inputs!$H$179:$AG$179,,Model!S10+1)*INDEX(Inputs!$H$164:$AG$164,,Model!S10+1))*12 -> 865327.1488 | T246: =(INDEX(Inputs!$H$179:$AG$179,,Model!T10+1)*INDEX(Inputs!$H$164:$AG$164,,Model!T10+1))*12 -> 1124925.293 | U246: =(INDEX(Inputs!$H$179:$AG$179,,Model!U10+1)*INDEX(Inputs!$H$164:$AG$164,,Model!U10+1))*12 -> 1462402.882 | V246: =(INDEX(Inputs!$H$179:$AG$179,,Model!V10+1)*INDEX(Inputs!$H$164:$AG$164,,Model!V10+1))*12 -> 1901123.746 | W246: =(INDEX(Inputs!$H$179:$AG$179,,Model!W10+1)*INDEX(Inputs!$H$164:$AG$164,,Model!W10+1))*12 -> 2471460.87 | X246: =(INDEX(Inputs!$H$179:$AG$179,,Model!X10+1)*INDEX(Inputs!$H$164:$AG$164,,Model!X10+1))*12 -> 3212899.131 | Y246: =(INDEX(Inputs!$H$179:$AG$179,,Model!Y10+1)*INDEX(Inputs!$H$164:$AG$164,,Model!Y10+1))*12 -> 4176768.87 | Z246: =(INDEX(Inputs!$H$179:$AG$179,,Model!Z10+1)*INDEX(Inputs!$H$164:$AG$164,,Model!Z10+1))*12 -> 5429799.531 | AA246: =(INDEX(Inputs!$H$179:$AG$179,,Model!AA10+1)*INDEX(Inputs!$H$164:$AG$164,,Model!AA10+1))*12 -> 7058739.39 | AB246: =(INDEX(Inputs!$H$179:$AG$179,,Model!AB10+1)*INDEX(Inputs!$H$164:$AG$164,,Model!AB10+1))*12 -> 9176361.207 | AC246: =(INDEX(Inputs!$H$179:$AG$179,,Model!AC10+1)*INDEX(Inputs!$H$164:$AG$164,,Model!AC10+1))*12 -> 11929269.57 | AD246: =(INDEX(Inputs!$H$179:$AG$179,,Model!AD10+1)*INDEX(Inputs!$H$164:$AG$164,,Model!AD10+1))*12 -> 15508050.44 | AE246: =(INDEX(Inputs!$H$179:$AG$179,,Model!AE10+1)*INDEX(Inputs!$H$164:$AG$164,,Model!AE10+1))*12 -> 20160465.57 | AF246: =(INDEX(Inputs!$H$179:$AG$179,,Model!AF10+1)*INDEX(Inputs!$H$164:$AG$164,,Model!AF10+1))*12 -> 26208605.24 | AG246: =(INDEX(Inputs!$H$179:$AG$179,,Model!AG10+1)*INDEX(Inputs!$H$164:$AG$164,,Model!AG10+1))*12 -> 34071186.82 | AH246: =(INDEX(Inputs!$H$179:$AG$179,,Model!AH10+1)*INDEX(Inputs!$H$164:$AG$164,,Model!AH10+1))*12 -> 44292542.86
C247: =Inputs!$C$24 -> Site 2 | D247: kWh/year | F247: =$F$11 -> 0 | J247: =(INDEX(Inputs!$H$179:$AG$179,,Model!J11+1)*INDEX(Inputs!$H$164:$AG$164,,Model!J11+1))*12 -> 0 | K247: =(INDEX(Inputs!$H$179:$AG$179,,Model!K11+1)*INDEX(Inputs!$H$164:$AG$164,,Model!K11+1))*12 -> 0 | L247: =(INDEX(Inputs!$H$179:$AG$179,,Model!L11+1)*INDEX(Inputs!$H$164:$AG$164,,Model!L11+1))*12 -> 0 | M247: =(INDEX(Inputs!$H$179:$AG$179,,Model!M11+1)*INDEX(Inputs!$H$164:$AG$164,,Model!M11+1))*12 -> 0 | N247: =(INDEX(Inputs!$H$179:$AG$179,,Model!N11+1)*INDEX(Inputs!$H$164:$AG$164,,Model!N11+1))*12 -> 0 | O247: =(INDEX(Inputs!$H$179:$AG$179,,Model!O11+1)*INDEX(Inputs!$H$164:$AG$164,,Model!O11+1))*12 -> 0 | P247: =(INDEX(Inputs!$H$179:$AG$179,,Model!P11+1)*INDEX(Inputs!$H$164:$AG$164,,Model!P11+1))*12 -> 0 | Q247: =(INDEX(Inputs!$H$179:$AG$179,,Model!Q11+1)*INDEX(Inputs!$H$164:$AG$164,,Model!Q11+1))*12 -> 0 | R247: =(INDEX(Inputs!$H$179:$AG$179,,Model!R11+1)*INDEX(Inputs!$H$164:$AG$164,,Model!R11+1))*12 -> 0 | S247: =(INDEX(Inputs!$H$179:$AG$179,,Model!S11+1)*INDEX(Inputs!$H$164:$AG$164,,Model!S11+1))*12 -> 0 | T247: =(INDEX(Inputs!$H$179:$AG$179,,Model!T11+1)*INDEX(Inputs!$H$164:$AG$164,,Model!T11+1))*12 -> 0 | U247: =(INDEX(Inputs!$H$179:$AG$179,,Model!U11+1)*INDEX(Inputs!$H$164:$AG$164,,Model!U11+1))*12 -> 0 | V247: =(INDEX(Inputs!$H$179:$AG$179,,Model!V11+1)*INDEX(Inputs!$H$164:$AG$164,,Model!V11+1))*12 -> 0 | W247: =(INDEX(Inputs!$H$179:$AG$179,,Model!W11+1)*INDEX(Inputs!$H$164:$AG$164,,Model!W11+1))*12 -> 0 | X247: =(INDEX(Inputs!$H$179:$AG$179,,Model!X11+1)*INDEX(Inputs!$H$164:$AG$164,,Model!X11+1))*12 -> 0 | Y247: =(INDEX(Inputs!$H$179:$AG$179,,Model!Y11+1)*INDEX(Inputs!$H$164:$AG$164,,Model!Y11+1))*12 -> 0 | Z247: =(INDEX(Inputs!$H$179:$AG$179,,Model!Z11+1)*INDEX(Inputs!$H$164:$AG$164,,Model!Z11+1))*12 -> 0 | AA247: =(INDEX(Inputs!$H$179:$AG$179,,Model!AA11+1)*INDEX(Inputs!$H$164:$AG$164,,Model!AA11+1))*12 -> 0 | AB247: =(INDEX(Inputs!$H$179:$AG$179,,Model!AB11+1)*INDEX(Inputs!$H$164:$AG$164,,Model!AB11+1))*12 -> 0 | AC247: =(INDEX(Inputs!$H$179:$AG$179,,Model!AC11+1)*INDEX(Inputs!$H$164:$AG$164,,Model!AC11+1))*12 -> 0 | AD247: =(INDEX(Inputs!$H$179:$AG$179,,Model!AD11+1)*INDEX(Inputs!$H$164:$AG$164,,Model!AD11+1))*12 -> 0 | AE247: =(INDEX(Inputs!$H$179:$AG$179,,Model!AE11+1)*INDEX(Inputs!$H$164:$AG$164,,Model!AE11+1))*12 -> 0 | AF247: =(INDEX(Inputs!$H$179:$AG$179,,Model!AF11+1)*INDEX(Inputs!$H$164:$AG$164,,Model!AF11+1))*12 -> 0 | AG247: =(INDEX(Inputs!$H$179:$AG$179,,Model!AG11+1)*INDEX(Inputs!$H$164:$AG$164,,Model!AG11+1))*12 -> 0 | AH247: =(INDEX(Inputs!$H$179:$AG$179,,Model!AH11+1)*INDEX(Inputs!$H$164:$AG$164,,Model!AH11+1))*12 -> 0
C248: =Inputs!$C$25 -> Site 3 | D248: kWh/year | F248: =$F$12 -> 0 | J248: =(INDEX(Inputs!$H$179:$AG$179,,Model!J12+1)*INDEX(Inputs!$H$164:$AG$164,,Model!J12+1))*12 -> 0 | K248: =(INDEX(Inputs!$H$179:$AG$179,,Model!K12+1)*INDEX(Inputs!$H$164:$AG$164,,Model!K12+1))*12 -> 0 | L248: =(INDEX(Inputs!$H$179:$AG$179,,Model!L12+1)*INDEX(Inputs!$H$164:$AG$164,,Model!L12+1))*12 -> 0 | M248: =(INDEX(Inputs!$H$179:$AG$179,,Model!M12+1)*INDEX(Inputs!$H$164:$AG$164,,Model!M12+1))*12 -> 0 | N248: =(INDEX(Inputs!$H$179:$AG$179,,Model!N12+1)*INDEX(Inputs!$H$164:$AG$164,,Model!N12+1))*12 -> 0 | O248: =(INDEX(Inputs!$H$179:$AG$179,,Model!O12+1)*INDEX(Inputs!$H$164:$AG$164,,Model!O12+1))*12 -> 0 | P248: =(INDEX(Inputs!$H$179:$AG$179,,Model!P12+1)*INDEX(Inputs!$H$164:$AG$164,,Model!P12+1))*12 -> 0 | Q248: =(INDEX(Inputs!$H$179:$AG$179,,Model!Q12+1)*INDEX(Inputs!$H$164:$AG$164,,Model!Q12+1))*12 -> 0 | R248: =(INDEX(Inputs!$H$179:$AG$179,,Model!R12+1)*INDEX(Inputs!$H$164:$AG$164,,Model!R12+1))*12 -> 0 | S248: =(INDEX(Inputs!$H$179:$AG$179,,Model!S12+1)*INDEX(Inputs!$H$164:$AG$164,,Model!S12+1))*12 -> 0 | T248: =(INDEX(Inputs!$H$179:$AG$179,,Model!T12+1)*INDEX(Inputs!$H$164:$AG$164,,Model!T12+1))*12 -> 0 | U248: =(INDEX(Inputs!$H$179:$AG$179,,Model!U12+1)*INDEX(Inputs!$H$164:$AG$164,,Model!U12+1))*12 -> 0 | V248: =(INDEX(Inputs!$H$179:$AG$179,,Model!V12+1)*INDEX(Inputs!$H$164:$AG$164,,Model!V12+1))*12 -> 0 | W248: =(INDEX(Inputs!$H$179:$AG$179,,Model!W12+1)*INDEX(Inputs!$H$164:$AG$164,,Model!W12+1))*12 -> 0 | X248: =(INDEX(Inputs!$H$179:$AG$179,,Model!X12+1)*INDEX(Inputs!$H$164:$AG$164,,Model!X12+1))*12 -> 0 | Y248: =(INDEX(Inputs!$H$179:$AG$179,,Model!Y12+1)*INDEX(Inputs!$H$164:$AG$164,,Model!Y12+1))*12 -> 0 | Z248: =(INDEX(Inputs!$H$179:$AG$179,,Model!Z12+1)*INDEX(Inputs!$H$164:$AG$164,,Model!Z12+1))*12 -> 0 | AA248: =(INDEX(Inputs!$H$179:$AG$179,,Model!AA12+1)*INDEX(Inputs!$H$164:$AG$164,,Model!AA12+1))*12 -> 0 | AB248: =(INDEX(Inputs!$H$179:$AG$179,,Model!AB12+1)*INDEX(Inputs!$H$164:$AG$164,,Model!AB12+1))*12 -> 0 | AC248: =(INDEX(Inputs!$H$179:$AG$179,,Model!AC12+1)*INDEX(Inputs!$H$164:$AG$164,,Model!AC12+1))*12 -> 0 | AD248: =(INDEX(Inputs!$H$179:$AG$179,,Model!AD12+1)*INDEX(Inputs!$H$164:$AG$164,,Model!AD12+1))*12 -> 0 | AE248: =(INDEX(Inputs!$H$179:$AG$179,,Model!AE12+1)*INDEX(Inputs!$H$164:$AG$164,,Model!AE12+1))*12 -> 0 | AF248: =(INDEX(Inputs!$H$179:$AG$179,,Model!AF12+1)*INDEX(Inputs!$H$164:$AG$164,,Model!AF12+1))*12 -> 0 | AG248: =(INDEX(Inputs!$H$179:$AG$179,,Model!AG12+1)*INDEX(Inputs!$H$164:$AG$164,,Model!AG12+1))*12 -> 0 | AH248: =(INDEX(Inputs!$H$179:$AG$179,,Model!AH12+1)*INDEX(Inputs!$H$164:$AG$164,,Model!AH12+1))*12 -> 0
C249: =Inputs!$C$26 -> Site 4 | D249: kWh/year | F249: =$F$13 -> 0 | J249: =(INDEX(Inputs!$H$179:$AG$179,,Model!J13+1)*INDEX(Inputs!$H$164:$AG$164,,Model!J13+1))*12 -> 0 | K249: =(INDEX(Inputs!$H$179:$AG$179,,Model!K13+1)*INDEX(Inputs!$H$164:$AG$164,,Model!K13+1))*12 -> 0 | L249: =(INDEX(Inputs!$H$179:$AG$179,,Model!L13+1)*INDEX(Inputs!$H$164:$AG$164,,Model!L13+1))*12 -> 0 | M249: =(INDEX(Inputs!$H$179:$AG$179,,Model!M13+1)*INDEX(Inputs!$H$164:$AG$164,,Model!M13+1))*12 -> 0 | N249: =(INDEX(Inputs!$H$179:$AG$179,,Model!N13+1)*INDEX(Inputs!$H$164:$AG$164,,Model!N13+1))*12 -> 0 | O249: =(INDEX(Inputs!$H$179:$AG$179,,Model!O13+1)*INDEX(Inputs!$H$164:$AG$164,,Model!O13+1))*12 -> 0 | P249: =(INDEX(Inputs!$H$179:$AG$179,,Model!P13+1)*INDEX(Inputs!$H$164:$AG$164,,Model!P13+1))*12 -> 0 | Q249: =(INDEX(Inputs!$H$179:$AG$179,,Model!Q13+1)*INDEX(Inputs!$H$164:$AG$164,,Model!Q13+1))*12 -> 0 | R249: =(INDEX(Inputs!$H$179:$AG$179,,Model!R13+1)*INDEX(Inputs!$H$164:$AG$164,,Model!R13+1))*12 -> 0 | S249: =(INDEX(Inputs!$H$179:$AG$179,,Model!S13+1)*INDEX(Inputs!$H$164:$AG$164,,Model!S13+1))*12 -> 0 | T249: =(INDEX(Inputs!$H$179:$AG$179,,Model!T13+1)*INDEX(Inputs!$H$164:$AG$164,,Model!T13+1))*12 -> 0 | U249: =(INDEX(Inputs!$H$179:$AG$179,,Model!U13+1)*INDEX(Inputs!$H$164:$AG$164,,Model!U13+1))*12 -> 0 | V249: =(INDEX(Inputs!$H$179:$AG$179,,Model!V13+1)*INDEX(Inputs!$H$164:$AG$164,,Model!V13+1))*12 -> 0 | W249: =(INDEX(Inputs!$H$179:$AG$179,,Model!W13+1)*INDEX(Inputs!$H$164:$AG$164,,Model!W13+1))*12 -> 0 | X249: =(INDEX(Inputs!$H$179:$AG$179,,Model!X13+1)*INDEX(Inputs!$H$164:$AG$164,,Model!X13+1))*12 -> 0 | Y249: =(INDEX(Inputs!$H$179:$AG$179,,Model!Y13+1)*INDEX(Inputs!$H$164:$AG$164,,Model!Y13+1))*12 -> 0 | Z249: =(INDEX(Inputs!$H$179:$AG$179,,Model!Z13+1)*INDEX(Inputs!$H$164:$AG$164,,Model!Z13+1))*12 -> 0 | AA249: =(INDEX(Inputs!$H$179:$AG$179,,Model!AA13+1)*INDEX(Inputs!$H$164:$AG$164,,Model!AA13+1))*12 -> 0 | AB249: =(INDEX(Inputs!$H$179:$AG$179,,Model!AB13+1)*INDEX(Inputs!$H$164:$AG$164,,Model!AB13+1))*12 -> 0 | AC249: =(INDEX(Inputs!$H$179:$AG$179,,Model!AC13+1)*INDEX(Inputs!$H$164:$AG$164,,Model!AC13+1))*12 -> 0 | AD249: =(INDEX(Inputs!$H$179:$AG$179,,Model!AD13+1)*INDEX(Inputs!$H$164:$AG$164,,Model!AD13+1))*12 -> 0 | AE249: =(INDEX(Inputs!$H$179:$AG$179,,Model!AE13+1)*INDEX(Inputs!$H$164:$AG$164,,Model!AE13+1))*12 -> 0 | AF249: =(INDEX(Inputs!$H$179:$AG$179,,Model!AF13+1)*INDEX(Inputs!$H$164:$AG$164,,Model!AF13+1))*12 -> 0 | AG249: =(INDEX(Inputs!$H$179:$AG$179,,Model!AG13+1)*INDEX(Inputs!$H$164:$AG$164,,Model!AG13+1))*12 -> 0 | AH249: =(INDEX(Inputs!$H$179:$AG$179,,Model!AH13+1)*INDEX(Inputs!$H$164:$AG$164,,Model!AH13+1))*12 -> 0
C250: Total | D250: kWh/year | J250: =SUM(J246:J249) -> 48960 | K250: =SUM(K246:K249) -> 84864 | L250: 137904 | M250: 179275.2 | N250: 233057.76 | O250: 302975.088 | P250: 393867.6144 | Q250: 512027.8987 | R250: 665636.2683 | S250: 865327.1488 | T250: 1124925.293 | U250: 1462402.882 | V250: 1901123.746 | W250: 2471460.87 | X250: 3212899.131 | Y250: 4176768.87 | Z250: 5429799.531 | AA250: 7058739.39 | AB250: 9176361.207 | AC250: 11929269.57 | AD250: 15508050.44 | AE250: 20160465.57 | AF250: 26208605.24 | AG250: 34071186.82 | AH250: 44292542.86
C252: Consumption by tariff
C253: Day Tariff | D253: kWh/year | J253: =J$250*Inputs!$E187 -> 26928 | K253: =K$250*Inputs!$E187 -> 46675.2 | L253: =L$250*Inputs!$E187 -> 75847.2 | M253: =M$250*Inputs!$E187 -> 98601.36 | N253: =N$250*Inputs!$E187 -> 128181.768 | O253: =O$250*Inputs!$E187 -> 166636.2984 | P253: =P$250*Inputs!$E187 -> 216627.1879 | Q253: =Q$250*Inputs!$E187 -> 281615.3443 | R253: =R$250*Inputs!$E187 -> 366099.9476 | S253: =S$250*Inputs!$E187 -> 475929.9319 | T253: =T$250*Inputs!$E187 -> 618708.9114 | U253: =U$250*Inputs!$E187 -> 804321.5848 | V253: =V$250*Inputs!$E187 -> 1045618.06 | W253: =W$250*Inputs!$E187 -> 1359303.478 | X253: =X$250*Inputs!$E187 -> 1767094.522 | Y253: =Y$250*Inputs!$E187 -> 2297222.878 | Z253: =Z$250*Inputs!$E187 -> 2986389.742 | AA253: =AA$250*Inputs!$E187 -> 3882306.665 | AB253: =AB$250*Inputs!$E187 -> 5046998.664 | AC253: =AC$250*Inputs!$E187 -> 6561098.263 | AD253: =AD$250*Inputs!$E187 -> 8529427.742 | AE253: =AE$250*Inputs!$E187 -> 11088256.06 | AF253: =AF$250*Inputs!$E187 -> 14414732.88 | AG253: =AG$250*Inputs!$E187 -> 18739152.75 | AH253: =AH$250*Inputs!$E187 -> 24360898.57
C254: Night Tariff | D254: kWh/year | J254: =J$250*Inputs!$E188 -> 22032 | K254: =K$250*Inputs!$E188 -> 38188.8 | L254: =L$250*Inputs!$E188 -> 62056.8 | M254: =M$250*Inputs!$E188 -> 80673.84 | N254: =N$250*Inputs!$E188 -> 104875.992 | O254: =O$250*Inputs!$E188 -> 136338.7896 | P254: =P$250*Inputs!$E188 -> 177240.4265 | Q254: =Q$250*Inputs!$E188 -> 230412.5544 | R254: =R$250*Inputs!$E188 -> 299536.3208 | S254: =S$250*Inputs!$E188 -> 389397.217 | T254: =T$250*Inputs!$E188 -> 506216.3821 | U254: =U$250*Inputs!$E188 -> 658081.2967 | V254: =V$250*Inputs!$E188 -> 855505.6857 | W254: =W$250*Inputs!$E188 -> 1112157.391 | X254: =X$250*Inputs!$E188 -> 1445804.609 | Y254: =Y$250*Inputs!$E188 -> 1879545.991 | Z254: =Z$250*Inputs!$E188 -> 2443409.789 | AA254: =AA$250*Inputs!$E188 -> 3176432.726 | AB254: =AB$250*Inputs!$E188 -> 4129362.543 | AC254: =AC$250*Inputs!$E188 -> 5368171.306 | AD254: =AD$250*Inputs!$E188 -> 6978622.698 | AE254: =AE$250*Inputs!$E188 -> 9072209.508 | AF254: =AF$250*Inputs!$E188 -> 11793872.36 | AG254: =AG$250*Inputs!$E188 -> 15332034.07 | AH254: =AH$250*Inputs!$E188 -> 19931644.29
A257: x | C257: Revenue
... 256 more rows

Sheet Graph calc
A1: Graph Calculations
A2: =Name_Model -> FGN 5M Solar Connections Facility - Mini-Grid
J3: =Model!J3 -> 2020 | K3: =Model!K3 -> 2021 | L3: =Model!L3 -> 2022 | M3: =Model!M3 -> 2023 | N3: =Model!N3 -> 2024 | O3: =Model!O3 -> 2025 | P3: =Model!P3 -> 2026 | Q3: =Model!Q3 -> 2027 | R3: =Model!R3 -> 2028 | S3: =Model!S3 -> 2029 | T3: =Model!T3 -> 2030 | U3: =Model!U3 -> 2031 | V3: =Model!V3 -> 2032 | W3: =Model!W3 -> 2033 | X3: =Model!X3 -> 2034 | Y3: =Model!Y3 -> 2035 | Z3: =Model!Z3 -> 2036 | AA3: =Model!AA3 -> 2037 | AB3: =Model!AB3 -> 2038 | AC3: =Model!AC3 -> 2039 | AD3: =Model!AD3 -> 2040 | AE3: =Model!AE3 -> 2041 | AF3: =Model!AF3 -> 2042 | AG3: =Model!AG3 -> 2043 | AH3: =Model!AH3 -> 2044
C4: Period Start | D4: Date | J4: =Model!J4 -> 2020-11-01 | K4: =Model!K4 -> 2021-11-01 | L4: =Model!L4 -> 2022-11-01 | M4: =Model!M4 -> 2023-11-01 | N4: =Model!N4 -> 2024-11-01 | O4: =Model!O4 -> 2025-11-01 | P4: =Model!P4 -> 2026-11-01 | Q4: =Model!Q4 -> 2027-11-01 | R4: =Model!R4 -> 2028-11-01 | S4: =Model!S4 -> 2029-11-01 | T4: =Model!T4 -> 2030-11-01 | U4: =Model!U4 -> 2031-11-01 | V4: =Model!V4 -> 2032-11-01 | W4: =Model!W4 -> 2033-11-01 | X4: =Model!X4 -> 2034-11-01 | Y4: =Model!Y4 -> 2035-11-01 | Z4: =Model!Z4 -> 2036-11-01 | AA4: =Model!AA4 -> 2037-11-01 | AB4: =Model!AB4 -> 2038-11-01 | AC4: =Model!AC4 -> 2039-11-01 | AD4: =Model!AD4 -> 2040-11-01 | AE4: =Model!AE4 -> 2041-11-01 | AF4: =Model!AF4 -> 2042-11-01 | AG4: =Model!AG4 -> 2043-11-01 | AH4: =Model!AH4 -> 2044-11-01
C5: Period End | D5: Date | J5: =Model!J5 -> 2021-10-31 | K5: =Model!K5 -> 2022-10-31 | L5: =Model!L5 -> 2023-10-31 | M5: =Model!M5 -> 2024-10-31 | N5: =Model!N5 -> 2025-10-31 | O5: =Model!O5 -> 2026-10-31 | P5: =Model!P5 -> 2027-10-31 | Q5: =Model!Q5 -> 2028-10-31 | R5: =Model!R5 -> 2029-10-31 | S5: =Model!S5 -> 2030-10-31 | T5: =Model!T5 -> 2031-10-31 | U5: =Model!U5 -> 2032-10-31 | V5: =Model!V5 -> 2033-10-31 | W5: =Model!W5 -> 2034-10-31 | X5: =Model!X5 -> 2035-10-31 | Y5: =Model!Y5 -> 2036-10-31 | Z5: =Model!Z5 -> 2037-10-31 | AA5: =Model!AA5 -> 2038-10-31 | AB5: =Model!AB5 -> 2039-10-31 | AC5: =Model!AC5 -> 2040-10-31 | AD5: =Model!AD5 -> 2041-10-31 | AE5: =Model!AE5 -> 2042-10-31 | AF5: =Model!AF5 -> 2043-10-31 | AG5: =Model!AG5 -> 2044-10-31 | AH5: =Model!AH5 -> 2045-10-31
C6: General cost inflation | J6: =Inputs!I308 -> 1 | K6: =Inputs!J308 -> 1.13 | L6: =Inputs!K308 -> 1.2769 | M6: =Inputs!L308 -> 1.442897 | N6: =Inputs!M308 -> 1.63047361 | O6: =Inputs!N308 -> 1.842435179 | P6: =Inputs!O308 -> 2.081951753 | Q6: =Inputs!P308 -> 2.35260548 | R6: =Inputs!Q308 -> 2.658444193 | S6: =Inputs!R308 -> 3.004041938 | T6: =Inputs!S308 -> 3.39456739 | U6: =Inputs!T308 -> 3.835861151 | V6: =Inputs!U308 -> 4.3345231 | W6: =Inputs!V308 -> 4.898011103 | X6: =Inputs!W308 -> 5.534752547 | Y6: =Inputs!X308 -> 6.254270378 | Z6: =Inputs!Y308 -> 7.067325527 | AA6: =Inputs!Z308 -> 7.986077845 | AB6: =Inputs!AA308 -> 9.024267965 | AC6: =Inputs!AB308 -> 10.1974228 | AD6: =Inputs!AC308 -> 11.52308776 | AE6: =Inputs!AD308 -> 13.02108917 | AF6: =Inputs!AE308 -> 14.71383077 | AG6: =Inputs!AF308 -> 16.62662877 | AH6: =Inputs!AG308 -> 18.78809051
C8: Construction flag & operations year
C9: Construction period | D9: Flag | F9: =Inputs!$D$13 -> Operational | J9: =Model!J9 -> 1 | K9: =Model!K9 -> 0 | L9: =Model!L9 -> 0 | M9: =Model!M9 -> 0 | N9: =Model!N9 -> 0 | O9: =Model!O9 -> 0 | P9: =Model!P9 -> 0 | Q9: =Model!Q9 -> 0 | R9: =Model!R9 -> 0 | S9: =Model!S9 -> 0 | T9: =Model!T9 -> 0 | U9: =Model!U9 -> 0 | V9: =Model!V9 -> 0 | W9: =Model!W9 -> 0 | X9: =Model!X9 -> 0 | Y9: =Model!Y9 -> 0 | Z9: =Model!Z9 -> 0 | AA9: =Model!AA9 -> 0 | AB9: =Model!AB9 -> 0 | AC9: =Model!AC9 -> 0 | AD9: =Model!AD9 -> 0 | AE9: =Model!AE9 -> 0 | AF9: =Model!AF9 -> 0 | AG9: =Model!AG9 -> 0 | AH9: =Model!AH9 -> 0
C10: =Inputs!$C$23 -> Site 1 | D10: # | F10: =Model!F10 -> 1 | J10: =Model!J10 -> 1 | K10: =Model!K10 -> 2 | L10: =Model!L10 -> 3 | M10: =Model!M10 -> 4 | N10: =Model!N10 -> 5 | O10: =Model!O10 -> 6 | P10: =Model!P10 -> 7 | Q10: =Model!Q10 -> 8 | R10: =Model!R10 -> 9 | S10: =Model!S10 -> 10 | T10: =Model!T10 -> 11 | U10: =Model!U10 -> 12 | V10: =Model!V10 -> 13 | W10: =Model!W10 -> 14 | X10: =Model!X10 -> 15 | Y10: =Model!Y10 -> 16 | Z10: =Model!Z10 -> 17 | AA10: =Model!AA10 -> 18 | AB10: =Model!AB10 -> 19 | AC10: =Model!AC10 -> 20 | AD10: =Model!AD10 -> 21 | AE10: =Model!AE10 -> 22 | AF10: =Model!AF10 -> 23 | AG10: =Model!AG10 -> 24 | AH10: =Model!AH10 -> 25
C11: =Inputs!$C$24 -> Site 2 | D11: # | F11: =Model!F11 -> 0 | J11: =Model!J11 -> 0 | K11: =Model!K11 -> 0 | L11: =Model!L11 -> 0 | M11: =Model!M11 -> 0 | N11: =Model!N11 -> 0 | O11: =Model!O11 -> 0 | P11: =Model!P11 -> 0 | Q11: =Model!Q11 -> 0 | R11: =Model!R11 -> 0 | S11: =Model!S11 -> 0 | T11: =Model!T11 -> 0 | U11: =Model!U11 -> 0 | V11: =Model!V11 -> 0 | W11: =Model!W11 -> 0 | X11: =Model!X11 -> 0 | Y11: =Model!Y11 -> 0 | Z11: =Model!Z11 -> 0 | AA11: =Model!AA11 -> 0 | AB11: =Model!AB11 -> 0 | AC11: =Model!AC11 -> 0 | AD11: =Model!AD11 -> 0 | AE11: =Model!AE11 -> 0 | AF11: =Model!AF11 -> 0 | AG11: =Model!AG11 -> 0 | AH11: =Model!AH11 -> 0
C12: =Inputs!$C$25 -> Site 3 | D12: # | F12: =Model!F12 -> 0 | J12: =Model!J12 -> 0 | K12: =Model!K12 -> 0 | L12: =Model!L12 -> 0 | M12: =Model!M12 -> 0 | N12: =Model!N12 -> 0 | O12: =Model!O12 -> 0 | P12: =Model!P12 -> 0 | Q12: =Model!Q12 -> 0 | R12: =Model!R12 -> 0 | S12: =Model!S12 -> 0 | T12: =Model!T12 -> 0 | U12: =Model!U12 -> 0 | V12: =Model!V12 -> 0 | W12: =Model!W12 -> 0 | X12: =Model!X12 -> 0 | Y12: =Model!Y12 -> 0 | Z12: =Model!Z12 -> 0 | AA12: =Model!AA12 -> 0 | AB12: =Model!AB12 -> 0 | AC12: =Model!AC12 -> 0 | AD12: =Model!AD12 -> 0 | AE12: =Model!AE12 -> 0 | AF12: =Model!AF12 -> 0 | AG12: =Model!AG12 -> 0 | AH12: =Model!AH12 -> 0
C13: =Inputs!$C$26 -> Site 4 | D13: # | F13: =Model!F13 -> 0 | J13: =Model!J13 -> 0 | K13: =Model!K13 -> 0 | L13: =Model!L13 -> 0 | M13: =Model!M13 -> 0 | N13: =Model!N13 -> 0 | O13: =Model!O13 -> 0 | P13: =Model!P13 -> 0 | Q13: =Model!Q13 -> 0 | R13: =Model!R13 -> 0 | S13: =Model!S13 -> 0 | T13: =Model!T13 -> 0 | U13: =Model!U13 -> 0 | V13: =Model!V13 -> 0 | W13: =Model!W13 -> 0 | X13: =Model!X13 -> 0 | Y13: =Model!Y13 -> 0 | Z13: =Model!Z13 -> 0 | AA13: =Model!AA13 -> 0 | AB13: =Model!AB13 -> 0 | AC13: =Model!AC13 -> 0 | AD13: =Model!AD13 -> 0 | AE13: =Model!AE13 -> 0 | AF13: =Model!AF13 -> 0 | AG13: =Model!AG13 -> 0 | AH13: =Model!AH13 -> 0
C15: Graphs
C17: Cash flow graph
C18: Revenue | D18: =Inputs!$E$8 -> NGN | J18: =Model!J21 -> 10484716.8 | K18: =Model!K21 -> 16687509.12 | L18: =Model!L21 -> 26165332.32 | M18: =Model!M21 -> 32842938.02 | N18: =Model!N21 -> 44012115.17 | O18: =Model!O21 -> 56326532.79 | P18: =Model!P21 -> 72335275.69 | Q18: =Model!Q21 -> 93146641.46 | R18: =Model!R21 -> 120201417 | S18: =Model!S21 -> 163321628.3 | T18: =Model!T21 -> 211376509.5 | U18: =Model!U21 -> 273847855.1 | V18: =Model!V21 -> 355060604.4 | W18: =Model!W21 -> 460637178.4 | X18: =Model!X21 -> 628410833.6 | Y18: =Model!Y21 -> 815936681.9 | Z18: =Model!Z21 -> 1059720285 | AA18: =Model!AA21 -> 1376638968 | AB18: =Model!AB21 -> 1788633257 | AC18: =Model!AC21 -> 2442813278 | AD18: =Model!AD21 -> 3174600411 | AE18: =Model!AE21 -> 4125923684 | AF18: =Model!AF21 -> 5362643939 | AG18: =Model!AG21 -> 6970380271 | AH18: =Model!AH21 -> 9522642416
C19: Opex | D19: =Inputs!$E$8 -> NGN | J19: =Model!J79+Model!J34 -> 3128204.717 | K19: =Model!K79+Model!K34 -> 1844821.509 | L19: =Model!L79+Model!L34 -> 2091687.952 | M19: =Model!M79+Model!M34 -> 2367536.078 | N19: =Model!N79+Model!N34 -> 2682415.307 | O19: =Model!O79+Model!O34 -> 3038107.467 | P19: =Model!P79+Model!P34 -> 3442133.058 | Q19: =Model!Q79+Model!Q34 -> 3901403.463 | R19: =Model!R79+Model!R34 -> 4423916.953 | S19: =Model!S79+Model!S34 -> 5026730.877 | T19: =Model!T79+Model!T34 -> 5707436.99 | U19: =Model!U79+Model!U34 -> 6484804.228 | V19: =Model!V79+Model!V34 -> 7373849.336 | W19: =Model!W79+Model!W34 -> 8392276.475 | X19: =Model!X79+Model!X34 -> 9591385.286 | Y19: =Model!Y79+Model!Y34 -> 10944530.02 | Z19: =Model!Z79+Model!Z34 -> 12505462.97 | AA19: =Model!AA79+Model!AA34 -> 14310760.4 | AB19: =Model!AB79+Model!AB34 -> 16404622.69 | AC19: =Model!AC79+Model!AC34 -> 18959115.38 | AD19: =Model!AD79+Model!AD34 -> 21838479.76 | AE19: =Model!AE79+Model!AE34 -> 25216565.31 | AF19: =Model!AF79+Model!AF34 -> 29195526.95 | AG19: =Model!AG79+Model!AG34 -> 33901996.04 | AH19: =Model!AH79+Model!AH34 -> 39955614.96
C20: Ongoing Capex | D20: =Inputs!$E$8 -> NGN | J20: =-SUM(Model!J113:J114,-Model!J461) -> 0 | K20: =-SUM(Model!K113:K114,-Model!K461) -> 1260000 | L20: =-SUM(Model!L113:L114,-Model!L461) -> 1260000 | M20: =-SUM(Model!M113:M114,-Model!M461) -> 0 | N20: =-SUM(Model!N113:N114,-Model!N461) -> 0 | O20: =-SUM(Model!O113:O114,-Model!O461) -> 0 | P20: =-SUM(Model!P113:P114,-Model!P461) -> 0 | Q20: =-SUM(Model!Q113:Q114,-Model!Q461) -> 4107312 | R20: =-SUM(Model!R113:R114,-Model!R461) -> 0 | S20: =-SUM(Model!S113:S114,-Model!S461) -> 0 | T20: =-SUM(Model!T113:T114,-Model!T461) -> 0 | U20: =-SUM(Model!U113:U114,-Model!U461) -> 0 | V20: =-SUM(Model!V113:V114,-Model!V461) -> 0 | W20: =-SUM(Model!W113:W114,-Model!W461) -> 0 | X20: =-SUM(Model!X113:X114,-Model!X461) -> 11037372.5 | Y20: =-SUM(Model!Y113:Y114,-Model!Y461) -> 0 | Z20: =-SUM(Model!Z113:Z114,-Model!Z461) -> 0 | AA20: =-SUM(Model!AA113:AA114,-Model!AA461) -> 0 | AB20: =-SUM(Model!AB113:AB114,-Model!AB461) -> 0 | AC20: =-SUM(Model!AC113:AC114,-Model!AC461) -> 0 | AD20: =-SUM(Model!AD113:AD114,-Model!AD461) -> 0 | AE20: =-SUM(Model!AE113:AE114,-Model!AE461) -> 0 | AF20: =-SUM(Model!AF113:AF114,-Model!AF461) -> 0 | AG20: =-SUM(Model!AG113:AG114,-Model!AG461) -> 0 | AH20: =-SUM(Model!AH113:AH114,-Model!AH461) -> 253555.5
C21: Tax | D21: =Inputs!$E$8 -> NGN | J21: =Model!J98 -> 830000.6346 | K21: =Model!K98 -> 3044090.793 | L21: =Model!L98 -> 5920099.82 | M21: =Model!M98 -> 7959688.822 | N21: =Model!N98 -> 11348346.83 | O21: =Model!O98 -> 15082673.03 | P21: =Model!P98 -> 19926239.8 | Q21: =Model!Q98 -> 25908649.05 | R21: =Model!R98 -> 33868327.65 | S21: =Model!S98 -> 46623546.87 | T21: =Model!T98 -> 61577502.39 | U21: =Model!U98 -> 80085695.9 | V21: =Model!V98 -> 104182807.1 | W21: =Model!W98 -> 135550251.2 | X21: =Model!X98 -> 185191494 | Y21: =Model!Y98 -> 241043305 | Z21: =Model!Z98 -> 313710105.9 | AA21: =Model!AA98 -> 408367341.1 | AB21: =Model!AB98 -> 531337469 | AC21: =Model!AC98 -> 726825127.8 | AD21: =Model!AD98 -> 945497458.3 | AE21: =Model!AE98 -> 1229881015 | AF21: =Model!AF98 -> 1599703403 | AG21: =Model!AG98 -> 2080612361 | AH21: =Model!AH98 -> 2844798434
C22: Debt service | D22: =Inputs!$E$8 -> NGN | J22: =-Model!J125 -> 1155000 | K22: =-Model!K125 -> 5457375 | L22: =-Model!L125 -> 5475566.25 | M22: =-Model!M125 -> 5481933.188 | N22: =-Model!N125 -> 5475247.903 | O22: =-Model!O125 -> 5454189.257 | P22: =-Model!P125 -> 0 | Q22: =-Model!Q125 -> 0 | R22: =-Model!R125 -> 0 | S22: =-Model!S125 -> 0 | T22: =-Model!T125 -> 0 | U22: =-Model!U125 -> 0 | V22: =-Model!V125 -> 0 | W22: =-Model!W125 -> 0 | X22: =-Model!X125 -> 0 | Y22: =-Model!Y125 -> 0 | Z22: =-Model!Z125 -> 0 | AA22: =-Model!AA125 -> 0 | AB22: =-Model!AB125 -> 0 | AC22: =-Model!AC125 -> 0 | AD22: =-Model!AD125 -> 0 | AE22: =-Model!AE125 -> 0 | AF22: =-Model!AF125 -> 0 | AG22: =-Model!AG125 -> 0 | AH22: =-Model!AH125 -> 0
C23: Reserve funding | D23: =Inputs!$E$8 -> NGN | J23: =-Model!J132-Model!J139 -> 5371511.449 | K23: =-Model!K132-Model!K139 -> 1364054.801 | L23: =-Model!L132-Model!L139 -> 6366.9375 | M23: =-Model!M132-Model!M139 -> 0 | N23: =-Model!N132-Model!N139 -> 0 | O23: =-Model!O132-Model!O139 -> 0 | P23: =-Model!P132-Model!P139 -> 4107312 | Q23: =-Model!Q132-Model!Q139 -> 0 | R23: =-Model!R132-Model!R139 -> 0 | S23: =-Model!S132-Model!S139 -> 0 | T23: =-Model!T132-Model!T139 -> 0 | U23: =-Model!U132-Model!U139 -> 0 | V23: =-Model!V132-Model!V139 -> 0 | W23: =-Model!W132-Model!W139 -> 11037372.5 | X23: =-Model!X132-Model!X139 -> 0 | Y23: =-Model!Y132-Model!Y139 -> 0 | Z23: =-Model!Z132-Model!Z139 -> 0 | AA23: =-Model!AA132-Model!AA139 -> 0 | AB23: =-Model!AB132-Model!AB139 -> 0 | AC23: =-Model!AC132-Model!AC139 -> 0 | AD23: =-Model!AD132-Model!AD139 -> 0 | AE23: =-Model!AE132-Model!AE139 -> 0 | AF23: =-Model!AF132-Model!AF139 -> 0 | AG23: =-Model!AG132-Model!AG139 -> 253555.5 | AH23: =-Model!AH132-Model!AH139 -> 0
C24: Distributions | D24: =Inputs!$E$8 -> NGN | J24: =MAX(0,Model!J146) -> 0 | K24: =MAX(0,Model!K146) -> 3717167.017 | L24: =MAX(0,Model!L146) -> 12671611.36 | M24: =MAX(0,Model!M146) -> 17040465.21 | N24: =MAX(0,Model!N146) -> 24527163.77 | O24: =MAX(0,Model!O146) -> 38205752.29 | P24: =MAX(0,Model!P146) -> 44859590.83 | Q24: =MAX(0,Model!Q146) -> 63336588.95 | R24: =MAX(0,Model!R146) -> 81909172.36 | S24: =MAX(0,Model!S146) -> 111671350.5 | T24: =MAX(0,Model!T146) -> 144091570.1 | U24: =MAX(0,Model!U146) -> 187277355 | V24: =MAX(0,Model!V146) -> 243503947.9 | W24: =MAX(0,Model!W146) -> 305657278.2 | X24: =MAX(0,Model!X146) -> 433627954.4 | Y24: =MAX(0,Model!Y146) -> 563948846.8 | Z24: =MAX(0,Model!Z146) -> 733504715.7 | AA24: =MAX(0,Model!AA146) -> 953960866.6 | AB24: =MAX(0,Model!AB146) -> 1240891165 | AC24: =MAX(0,Model!AC146) -> 1697029035 | AD24: =MAX(0,Model!AD146) -> 2207264473 | AE24: =MAX(0,Model!AE146) -> 2870826105 | AF24: =MAX(0,Model!AF146) -> 3733745010 | AG24: =MAX(0,Model!AG146) -> 4855612358 | AH24: =MAX(0,Model!AH146) -> 6637888367
C26: Inflation adjusted
C27: Revenue | D27: =Inputs!$E$8 -> NGN | J27: =J18/J$6 -> 10484716.8 | K27: 14767707.19 | L27: 20491293.23 | M27: 22761803.52 | N27: 26993454.48 | O27: 30571785.33 | P27: 34743973.1 | Q27: 39592971.38 | R27: 45214948.39 | S27: 54367293.02 | T27: 62269056.77 | U27: 71391493.16 | V27: 81914571.95 | W27: 94045760.35 | X27: 113539101.9 | Y27: 130460730.4 | Z27: 149946437.4 | AA27: 172379858.4 | AB27: 198202587 | AC27: 239552024.7 | AD27: 275499108.9 | AE27: 316864713 | AF27: 364462798.6 | AG27: 419229921.4 | AH27: 506844610.6
C28: Opex | D28: =Inputs!$E$8 -> NGN | J28: 3128204.717 | K28: 1632585.406 | L28: 1638098.483 | M28: 1640821.263 | N28: 1645175.543 | O28: 1648963.014 | P28: 1653320.282 | Q28: 1658333.068 | R28: 1664099.989 | S28: 1673322.47 | T28: 1681344.435 | U28: 1690573.244 | V28: 1701190.457 | W28: 1713404.951 | X28: 1732938.412 | Y28: 1749929.146 | Z28: 1769476.009 | AA28: 1791963.55 | AB28: 1817834.172 | AC28: 1859206.561 | AD28: 1895193.389 | AE28: 1936594.165 | AF28: 1984223.375 | AG28: 2039018.042 | AH28: 2126645.863
C29: Ongoing Capex | D29: =Inputs!$E$8 -> NGN | J29: =J20/J$6 -> 0 | K29: 1115044.248 | L29: 986764.8211 | M29: 0 | N29: 0 | O29: 0 | P29: 0 | Q29: 1745856.683 | R29: 0 | S29: 0 | T29: 0 | U29: 0 | V29: 0 | W29: 0 | X29: 1994194.394 | Y29: 0 | Z29: 0 | AA29: 0 | AB29: 0 | AC29: 0 | AD29: 0 | AE29: 0 | AF29: 0 | AG29: 0 | AH29: 13495.54389
C30: Tax | D30: =Inputs!$E$8 -> NGN | J30: =J21/J$6 -> 830000.6346 | K30: 2693885.657 | L30: 4636306.539 | M30: 5516463.63 | N30: 6960153.639 | O30: 8186270.65 | P30: 9570942.157 | Q30: 11012747.04 | R30: 12739905.45 | S30: 15520271.63 | T30: 18140014.71 | U30: 20878152.98 | V30: 24035587.02 | W30: 27674549.6 | X30: 33459760.38 | Y30: 38540595.54 | Z30: 44388800.93 | AA30: 51134906.15 | AB30: 58878733.55 | AC30: 71275374.37 | AD30: 82052439.21 | AE30: 94453006.05 | AF30: 108721068.5 | AG30: 125137355.9 | AH30: 151414984.5
C31: Debt service | D31: =Inputs!$E$8 -> NGN | J31: =J22/J$6 -> 1155000 | K31: 4829535.398 | L31: 4288171.548 | M31: 3799254.685 | N31: 3358072.078 | O31: 2960315.412 | P31: 0 | Q31: 0 | R31: 0 | S31: 0 | T31: 0 | U31: 0 | V31: 0 | W31: 0 | X31: 0 | Y31: 0 | Z31: 0 | AA31: 0 | AB31: 0 | AC31: 0 | AD31: 0 | AE31: 0 | AF31: 0 | AG31: 0 | AH31: 0
C32: Reserve funding | D32: =Inputs!$E$8 -> NGN | J32: =J23/J$6 -> 5371511.449 | K32: 1207128.143 | L32: 4986.245986 | M32: 0 | N32: 0 | O32: 0 | P32: 1972818.052 | Q32: 0 | R32: 0 | S32: 0 | T32: 0 | U32: 0 | V32: 0 | W32: 2253439.665 | X32: 0 | Y32: 0 | Z32: 0 | AA32: 0 | AB32: 0 | AC32: 0 | AD32: 0 | AE32: 0 | AF32: 0 | AG32: 15249.96459 | AH32: 0
C33: Distributions | D33: =Inputs!$E$8 -> NGN | J33: =J24/J$6 -> 0 | K33: 3289528.333 | L33: 9923730.41 | M33: 11809897.18 | N33: 15042968.88 | O33: 20736551.67 | P33: 21546892.61 | Q33: 26921891.27 | R33: 30810942.95 | S33: 37173698.92 | T33: 42447697.62 | U33: 48822766.94 | V33: 56177794.48 | W33: 62404366.13 | X33: 78346403.15 | Y33: 90170205.76 | Z33: 103788160.4 | AA33: 119452988.7 | AB33: 137506019.3 | AC33: 166417443.8 | AD33: 191551476.3 | AE33: 220475112.8 | AF33: 253757506.7 | AG33: 292038297.5 | AH33: 353302980.2
C35: ARPU Graph
C36: Connections
C37: Phase 1 | D37: # | J37: =INDEX(Inputs!$H$164:$AG$164,,J10+1)*'Graph calc'!$F$10+INDEX(Inputs!$H$165:$AG$165,,J11+1)*'Graph calc'!$F$11+INDEX(Inputs!$H$166:$AG$166,,J12+1)*'Graph calc'!$F$12+INDEX(Inputs!$H$167:$AG$167,,J13+1)*'Graph calc'!$F$13 -> 120 | K37: =INDEX(Inputs!$H$164:$AG$164,,K10+1)*'Graph calc'!$F$10+INDEX(Inputs!$H$165:$AG$165,,K11+1)*'Graph calc'!$F$11+INDEX(Inputs!$H$166:$AG$166,,K12+1)*'Graph calc'!$F$12+INDEX(Inputs!$H$167:$AG$167,,K13+1)*'Graph calc'!$F$13 -> 160 | L37: =INDEX(Inputs!$H$164:$AG$164,,L10+1)*'Graph calc'!$F$10+INDEX(Inputs!$H$165:$AG$165,,L11+1)*'Graph calc'!$F$11+INDEX(Inputs!$H$166:$AG$166,,L12+1)*'Graph calc'!$F$12+INDEX(Inputs!$H$167:$AG$167,,L13+1)*'Graph calc'!$F$13 -> 200 | M37: =INDEX(Inputs!$H$164:$AG$164,,M10+1)*'Graph calc'!$F$10+INDEX(Inputs!$H$165:$AG$165,,M11+1)*'Graph calc'!$F$11+INDEX(Inputs!$H$166:$AG$166,,M12+1)*'Graph calc'!$F$12+INDEX(Inputs!$H$167:$AG$167,,M13+1)*'Graph calc'!$F$13 -> 200 | N37: =INDEX(Inputs!$H$164:$AG$164,,N10+1)*'Graph calc'!$F$10+INDEX(Inputs!$H$165:$AG$165,,N11+1)*'Graph calc'!$F$11+INDEX(Inputs!$H$166:$AG$166,,N12+1)*'Graph calc'!$F$12+INDEX(Inputs!$H$167:$AG$167,,N13+1)*'Graph calc'!$F$13 -> 200 | O37: =INDEX(Inputs!$H$164:$AG$164,,O10+1)*'Graph calc'!$F$10+INDEX(Inputs!$H$165:$AG$165,,O11+1)*'Graph calc'!$F$11+INDEX(Inputs!$H$166:$AG$166,,O12+1)*'Graph calc'!$F$12+INDEX(Inputs!$H$167:$AG$167,,O13+1)*'Graph calc'!$F$13 -> 200 | P37: =INDEX(Inputs!$H$164:$AG$164,,P10+1)*'Graph calc'!$F$10+INDEX(Inputs!$H$165:$AG$165,,P11+1)*'Graph calc'!$F$11+INDEX(Inputs!$H$166:$AG$166,,P12+1)*'Graph calc'!$F$12+INDEX(Inputs!$H$167:$AG$167,,P13+1)*'Graph calc'!$F$13 -> 200 | Q37: =INDEX(Inputs!$H$164:$AG$164,,Q10+1)*'Graph calc'!$F$10+INDEX(Inputs!$H$165:$AG$165,,Q11+1)*'Graph calc'!$F$11+INDEX(Inputs!$H$166:$AG$166,,Q12+1)*'Graph calc'!$F$12+INDEX(Inputs!$H$167:$AG$167,,Q13+1)*'Graph calc'!$F$13 -> 200 | R37: =INDEX(Inputs!$H$164:$AG$164,,R10+1)*'Graph calc'!$F$10+INDEX(Inputs!$H$165:$AG$165,,R11+1)*'Graph calc'!$F$11+INDEX(Inputs!$H$166:$AG$166,,R12+1)*'Graph calc'!$F$12+INDEX(Inputs!$H$167:$AG$167,,R13+1)*'Graph calc'!$F$13 -> 200 | S37: =INDEX(Inputs!$H$164:$AG$164,,S10+1)*'Graph calc'!$F$10+INDEX(Inputs!$H$165:$AG$165,,S11+1)*'Graph calc'!$F$11+INDEX(Inputs!$H$166:$AG$166,,S12+1)*'Graph calc'!$F$12+INDEX(Inputs!$H$167:$AG$167,,S13+1)*'Graph calc'!$F$13 -> 200 | T37: =INDEX(Inputs!$H$164:$AG$164,,T10+1)*'Graph calc'!$F$10+INDEX(Inputs!$H$165:$AG$165,,T11+1)*'Graph calc'!$F$11+INDEX(Inputs!$H$166:$AG$166,,T12+1)*'Graph calc'!$F$12+INDEX(Inputs!$H$167:$AG$167,,T13+1)*'Graph calc'!$F$13 -> 200 | U37: =INDEX(Inputs!$H$164:$AG$164,,U10+1)*'Graph calc'!$F$10+INDEX(Inputs!$H$165:$AG$165,,U11+1)*'Graph calc'!$F$11+INDEX(Inputs!$H$166:$AG$166,,U12+1)*'Graph calc'!$F$12+INDEX(Inputs!$H$167:$AG$167,,U13+1)*'Graph calc'!$F$13 -> 200 | V37: =INDEX(Inputs!$H$164:$AG$164,,V10+1)*'Graph calc'!$F$10+INDEX(Inputs!$H$165:$AG$165,,V11+1)*'Graph calc'!$F$11+INDEX(Inputs!$H$166:$AG$166,,V12+1)*'Graph calc'!$F$12+INDEX(Inputs!$H$167:$AG$167,,V13+1)*'Graph calc'!$F$13 -> 200 | W37: =INDEX(Inputs!$H$164:$AG$164,,W10+1)*'Graph calc'!$F$10+INDEX(Inputs!$H$165:$AG$165,,W11+1)*'Graph calc'!$F$11+INDEX(Inputs!$H$166:$AG$166,,W12+1)*'Graph calc'!$F$12+INDEX(Inputs!$H$167:$AG$167,,W13+1)*'Graph calc'!$F$13 -> 200 | X37: =INDEX(Inputs!$H$164:$AG$164,,X10+1)*'Graph calc'!$F$10+INDEX(Inputs!$H$165:$AG$165,,X11+1)*'Graph calc'!$F$11+INDEX(Inputs!$H$166:$AG$166,,X12+1)*'Graph calc'!$F$12+INDEX(Inputs!$H$167:$AG$167,,X13+1)*'Graph calc'!$F$13 -> 200 | Y37: =INDEX(Inputs!$H$164:$AG$164,,Y10+1)*'Graph calc'!$F$10+INDEX(Inputs!$H$165:$AG$165,,Y11+1)*'Graph calc'!$F$11+INDEX(Inputs!$H$166:$AG$166,,Y12+1)*'Graph calc'!$F$12+INDEX(Inputs!$H$167:$AG$167,,Y13+1)*'Graph calc'!$F$13 -> 200 | Z37: =INDEX(Inputs!$H$164:$AG$164,,Z10+1)*'Graph calc'!$F$10+INDEX(Inputs!$H$165:$AG$165,,Z11+1)*'Graph calc'!$F$11+INDEX(Inputs!$H$166:$AG$166,,Z12+1)*'Graph calc'!$F$12+INDEX(Inputs!$H$167:$AG$167,,Z13+1)*'Graph calc'!$F$13 -> 200 | AA37: =INDEX(Inputs!$H$164:$AG$164,,AA10+1)*'Graph calc'!$F$10+INDEX(Inputs!$H$165:$AG$165,,AA11+1)*'Graph calc'!$F$11+INDEX(Inputs!$H$166:$AG$166,,AA12+1)*'Graph calc'!$F$12+INDEX(Inputs!$H$167:$AG$167,,AA13+1)*'Graph calc'!$F$13 -> 200 | AB37: =INDEX(Inputs!$H$164:$AG$164,,AB10+1)*'Graph calc'!$F$10+INDEX(Inputs!$H$165:$AG$165,,AB11+1)*'Graph calc'!$F$11+INDEX(Inputs!$H$166:$AG$166,,AB12+1)*'Graph calc'!$F$12+INDEX(Inputs!$H$167:$AG$167,,AB13+1)*'Graph calc'!$F$13 -> 200 | AC37: =INDEX(Inputs!$H$164:$AG$164,,AC10+1)*'Graph calc'!$F$10+INDEX(Inputs!$H$165:$AG$165,,AC11+1)*'Graph calc'!$F$11+INDEX(Inputs!$H$166:$AG$166,,AC12+1)*'Graph calc'!$F$12+INDEX(Inputs!$H$167:$AG$167,,AC13+1)*'Graph calc'!$F$13 -> 200 | AD37: =INDEX(Inputs!$H$164:$AG$164,,AD10+1)*'Graph calc'!$F$10+INDEX(Inputs!$H$165:$AG$165,,AD11+1)*'Graph calc'!$F$11+INDEX(Inputs!$H$166:$AG$166,,AD12+1)*'Graph calc'!$F$12+INDEX(Inputs!$H$167:$AG$167,,AD13+1)*'Graph calc'!$F$13 -> 200 | AE37: =INDEX(Inputs!$H$164:$AG$164,,AE10+1)*'Graph calc'!$F$10+INDEX(Inputs!$H$165:$AG$165,,AE11+1)*'Graph calc'!$F$11+INDEX(Inputs!$H$166:$AG$166,,AE12+1)*'Graph calc'!$F$12+INDEX(Inputs!$H$167:$AG$167,,AE13+1)*'Graph calc'!$F$13 -> 200 | AF37: =INDEX(Inputs!$H$164:$AG$164,,AF10+1)*'Graph calc'!$F$10+INDEX(Inputs!$H$165:$AG$165,,AF11+1)*'Graph calc'!$F$11+INDEX(Inputs!$H$166:$AG$166,,AF12+1)*'Graph calc'!$F$12+INDEX(Inputs!$H$167:$AG$167,,AF13+1)*'Graph calc'!$F$13 -> 200 | AG37: =INDEX(Inputs!$H$164:$AG$164,,AG10+1)*'Graph calc'!$F$10+INDEX(Inputs!$H$165:$AG$165,,AG11+1)*'Graph calc'!$F$11+INDEX(Inputs!$H$166:$AG$166,,AG12+1)*'Graph calc'!$F$12+INDEX(Inputs!$H$167:$AG$167,,AG13+1)*'Graph calc'!$F$13 -> 200 | AH37: =INDEX(Inputs!$H$164:$AG$164,,AH10+1)*'Graph calc'!$F$10+INDEX(Inputs!$H$165:$AG$165,,AH11+1)*'Graph calc'!$F$11+INDEX(Inputs!$H$166:$AG$166,,AH12+1)*'Graph calc'!$F$12+INDEX(Inputs!$H$167:$AG$167,,AH13+1)*'Graph calc'!$F$13 -> 200
C39: Revenue
C40: Phase 1 | D40: =Inputs!$E$8 -> NGN | J40: =SUM(Model!J18:J20) -> 10484716.8 | K40: =SUM(Model!K18:K20) -> 16687509.12 | L40: =SUM(Model!L18:L20) -> 26165332.32 | M40: =SUM(Model!M18:M20) -> 32842938.02 | N40: =SUM(Model!N18:N20) -> 44012115.17 | O40: =SUM(Model!O18:O20) -> 56326532.79 | P40: =SUM(Model!P18:P20) -> 72335275.69 | Q40: =SUM(Model!Q18:Q20) -> 93146641.46 | R40: =SUM(Model!R18:R20) -> 120201417 | S40: =SUM(Model!S18:S20) -> 163321628.3 | T40: =SUM(Model!T18:T20) -> 211376509.5 | U40: =SUM(Model!U18:U20) -> 273847855.1 | V40: =SUM(Model!V18:V20) -> 355060604.4 | W40: =SUM(Model!W18:W20) -> 460637178.4 | X40: =SUM(Model!X18:X20) -> 628410833.6 | Y40: =SUM(Model!Y18:Y20) -> 815936681.9 | Z40: =SUM(Model!Z18:Z20) -> 1059720285 | AA40: =SUM(Model!AA18:AA20) -> 1376638968 | AB40: =SUM(Model!AB18:AB20) -> 1788633257 | AC40: =SUM(Model!AC18:AC20) -> 2442813278 | AD40: =SUM(Model!AD18:AD20) -> 3174600411 | AE40: =SUM(Model!AE18:AE20) -> 4125923684 | AF40: =SUM(Model!AF18:AF20) -> 5362643939 | AG40: =SUM(Model!AG18:AG20) -> 6970380271 | AH40: =SUM(Model!AH18:AH20) -> 9522642416
C41: Phase 1 - USD | D41: USD | J41: =IF(Inputs!$E$8="NGN", (J40/Inputs!I$314), 'Graph calc'!J40) -> 27022.46598 | K41: =IF(Inputs!$E$8="NGN", (K40/Inputs!J$314), 'Graph calc'!K40) -> 40960.9944 | L41: =IF(Inputs!$E$8="NGN", (L40/Inputs!K$314), 'Graph calc'!L40) -> 61166.82404 | M41: =IF(Inputs!$E$8="NGN", (M40/Inputs!L$314), 'Graph calc'!M40) -> 73121.04305 | N41: =IF(Inputs!$E$8="NGN", (N40/Inputs!M$314), 'Graph calc'!N40) -> 93321.84554 | O41: =IF(Inputs!$E$8="NGN", (O40/Inputs!N$314), 'Graph calc'!O40) -> 113745.6503 | P41: =IF(Inputs!$E$8="NGN", (P40/Inputs!O$314), 'Graph calc'!P40) -> 139117.7743 | Q41: =IF(Inputs!$E$8="NGN", (Q40/Inputs!P$314), 'Graph calc'!Q40) -> 170612.3171 | R41: =IF(Inputs!$E$8="NGN", (R40/Inputs!Q$314), 'Graph calc'!R40) -> 209683.1195 | S41: =IF(Inputs!$E$8="NGN", (S40/Inputs!R$314), 'Graph calc'!S40) -> 271336.5407 | T41: =IF(Inputs!$E$8="NGN", (T40/Inputs!S$314), 'Graph calc'!T40) -> 334450.6203 | U41: =IF(Inputs!$E$8="NGN", (U40/Inputs!T$314), 'Graph calc'!U40) -> 412662.8073 | V41: =IF(Inputs!$E$8="NGN", (V40/Inputs!U$314), 'Graph calc'!V40) -> 509564.5109 | W41: =IF(Inputs!$E$8="NGN", (W40/Inputs!V$314), 'Graph calc'!W40) -> 629602.3985 | X41: =IF(Inputs!$E$8="NGN", (X40/Inputs!W$314), 'Graph calc'!X40) -> 818015.9108 | Y41: =IF(Inputs!$E$8="NGN", (Y40/Inputs!X$314), 'Graph calc'!Y40) -> 1011545.09 | Z41: =IF(Inputs!$E$8="NGN", (Z40/Inputs!Y$314), 'Graph calc'!Z40) -> 1251211.527 | AA41: =IF(Inputs!$E$8="NGN", (AA40/Inputs!Z$314), 'Graph calc'!AA40) -> 1547997.479 | AB41: =IF(Inputs!$E$8="NGN", (AB40/Inputs!AA$314), 'Graph calc'!AB40) -> 1915500.16 | AC41: =IF(Inputs!$E$8="NGN", (AC40/Inputs!AB$314), 'Graph calc'!AC40) -> 2491505.58 | AD41: =IF(Inputs!$E$8="NGN", (AD40/Inputs!AC$314), 'Graph calc'!AD40) -> 3083694.607 | AE41: =IF(Inputs!$E$8="NGN", (AE40/Inputs!AD$314), 'Graph calc'!AE40) -> 3816929.906 | AF41: =IF(Inputs!$E$8="NGN", (AF40/Inputs!AE$314), 'Graph calc'!AF40) -> 4724791.596 | AG41: =IF(Inputs!$E$8="NGN", (AG40/Inputs!AF$314), 'Graph calc'!AG40) -> 5848855.172 | AH41: =IF(Inputs!$E$8="NGN", (AH40/Inputs!AG$314), 'Graph calc'!AH40) -> 7609963.491
C42: Total - USD | D42: USD | J42: =SUM(J41:J41) -> 27022.46598 | K42: 40960.9944 | L42: 61166.82404 | M42: 73121.04305 | N42: 93321.84554 | O42: 113745.6503 | P42: 139117.7743 | Q42: 170612.3171 | R42: 209683.1195 | S42: 271336.5407 | T42: 334450.6203 | U42: 412662.8073 | V42: 509564.5109 | W42: 629602.3985 | X42: 818015.9108 | Y42: 1011545.09 | Z42: 1251211.527 | AA42: 1547997.479 | AB42: 1915500.16 | AC42: 2491505.58 | AD42: 3083694.607 | AE42: 3816929.906 | AF42: 4724791.596 | AG42: 5848855.172 | AH42: 7609963.491
C44: Phase 1 Monthly ARPU
C45: Phase 1 - NGN | D45: =Inputs!$E$8 -> NGN | J45: =J40/J37/12 -> 7281.053333 | K45: 8691.411 | L45: 10902.2218 | M45: 13684.55751 | N45: 18338.38132 | O45: 23469.38866 | P45: 30139.6982 | Q45: 38811.10061 | R45: 50083.92374 | S45: 68050.67845 | T45: 88073.54563 | U45: 114103.273 | V45: 147941.9185 | W45: 191932.1577 | X45: 261837.8473 | Y45: 339973.6174 | Z45: 441550.1186 | AA45: 573599.57 | AB45: 745263.857 | AC45: 1017838.866 | AD45: 1322750.171 | AE45: 1719134.869 | AF45: 2234434.975 | AG45: 2904325.113 | AH45: 3967767.673
C46: Phase 1 - NGN, inflation adjusted | D46: =Inputs!$E$8 -> NGN | J46: =J45/J$6 -> 7281.053333 | K46: 7691.514159 | L46: 8538.038844 | M46: 9484.084801 | N46: 11247.2727 | O46: 12738.24389 | P46: 14476.65546 | Q46: 16497.07141 | R46: 18839.56183 | S46: 22653.03876 | T46: 25945.44032 | U46: 29746.45548 | V46: 34131.07165 | W46: 39185.73348 | X46: 47307.95914 | Y46: 54358.63768 | Z46: 62477.68224 | AA46: 71824.941 | AB46: 82584.41126 | AC46: 99813.34362 | AD46: 114791.2954 | AE46: 132026.9638 | AF46: 151859.4994 | AG46: 174679.1339 | AH46: 211185.2544
C47: Phase 1 - USD | D47: USD | J47: =IF(Inputs!$E$8="NGN",(J45/Inputs!I$314),('Graph calc'!J45)) -> 18.76560137 | K47: =IF(Inputs!$E$8="NGN",(K45/Inputs!J$314),('Graph calc'!K45)) -> 21.33385125 | L47: =IF(Inputs!$E$8="NGN",(L45/Inputs!K$314),('Graph calc'!L45)) -> 25.48617668 | M47: =IF(Inputs!$E$8="NGN",(M45/Inputs!L$314),('Graph calc'!M45)) -> 30.46710127 | N47: =IF(Inputs!$E$8="NGN",(N45/Inputs!M$314),('Graph calc'!N45)) -> 38.88410231 | O47: =IF(Inputs!$E$8="NGN",(O45/Inputs!N$314),('Graph calc'!O45)) -> 47.39402094 | P47: =IF(Inputs!$E$8="NGN",(P45/Inputs!O$314),('Graph calc'!P45)) -> 57.9657393 | Q47: =IF(Inputs!$E$8="NGN",(Q45/Inputs!P$314),('Graph calc'!Q45)) -> 71.08846548 | R47: =IF(Inputs!$E$8="NGN",(R45/Inputs!Q$314),('Graph calc'!R45)) -> 87.36796647 | S47: =IF(Inputs!$E$8="NGN",(S45/Inputs!R$314),('Graph calc'!S45)) -> 113.056892 | T47: =IF(Inputs!$E$8="NGN",(T45/Inputs!S$314),('Graph calc'!T45)) -> 139.3544251 | U47: =IF(Inputs!$E$8="NGN",(U45/Inputs!T$314),('Graph calc'!U45)) -> 171.9428364 | V47: =IF(Inputs!$E$8="NGN",(V45/Inputs!U$314),('Graph calc'!V45)) -> 212.3185462 | W47: =IF(Inputs!$E$8="NGN",(W45/Inputs!V$314),('Graph calc'!W45)) -> 262.3343327 | X47: =IF(Inputs!$E$8="NGN",(X45/Inputs!W$314),('Graph calc'!X45)) -> 340.8399628 | Y47: =IF(Inputs!$E$8="NGN",(Y45/Inputs!X$314),('Graph calc'!Y45)) -> 421.4771209 | Z47: =IF(Inputs!$E$8="NGN",(Z45/Inputs!Y$314),('Graph calc'!Z45)) -> 521.3381362 | AA47: =IF(Inputs!$E$8="NGN",(AA45/Inputs!Z$314),('Graph calc'!AA45)) -> 644.9989495 | AB47: =IF(Inputs!$E$8="NGN",(AB45/Inputs!AA$314),('Graph calc'!AB45)) -> 798.1250667 | AC47: =IF(Inputs!$E$8="NGN",(AC45/Inputs!AB$314),('Graph calc'!AC45)) -> 1038.127325 | AD47: =IF(Inputs!$E$8="NGN",(AD45/Inputs!AC$314),('Graph calc'!AD45)) -> 1284.872753 | AE47: =IF(Inputs!$E$8="NGN",(AE45/Inputs!AD$314),('Graph calc'!AE45)) -> 1590.387461 | AF47: =IF(Inputs!$E$8="NGN",(AF45/Inputs!AE$314),('Graph calc'!AF45)) -> 1968.663165 | AG47: =IF(Inputs!$E$8="NGN",(AG45/Inputs!AF$314),('Graph calc'!AG45)) -> 2437.022988 | AH47: =IF(Inputs!$E$8="NGN",(AH45/Inputs!AG$314),('Graph calc'!AH45)) -> 3170.818121
C48: Phase 1 - USD, inflation adjusted | D48: USD | J48: =IF(Inputs!$E$8="NGN",(J46/Inputs!I$314),('Graph calc'!J46)) -> 18.76560137 | K48: =IF(Inputs!$E$8="NGN",(K46/Inputs!J$314),('Graph calc'!K46)) -> 18.87951438 | L48: =IF(Inputs!$E$8="NGN",(L46/Inputs!K$314),('Graph calc'!L46)) -> 19.95941474 | M48: =IF(Inputs!$E$8="NGN",(M46/Inputs!L$314),('Graph calc'!M46)) -> 21.11522948 | N48: =IF(Inputs!$E$8="NGN",(N46/Inputs!M$314),('Graph calc'!N46)) -> 23.84834815 | O48: =IF(Inputs!$E$8="NGN",(O46/Inputs!N$314),('Graph calc'!O46)) -> 25.72357577 | P48: =IF(Inputs!$E$8="NGN",(P46/Inputs!O$314),('Graph calc'!P46)) -> 27.84201854 | Q48: =IF(Inputs!$E$8="NGN",(Q46/Inputs!P$314),('Graph calc'!Q46)) -> 30.2169089 | R48: =IF(Inputs!$E$8="NGN",(R46/Inputs!Q$314),('Graph calc'!R46)) -> 32.86432219 | S48: =IF(Inputs!$E$8="NGN",(S46/Inputs!R$314),('Graph calc'!S46)) -> 37.63492465 | T48: =IF(Inputs!$E$8="NGN",(T46/Inputs!S$314),('Graph calc'!T46)) -> 41.0521899 | U48: =IF(Inputs!$E$8="NGN",(U46/Inputs!T$314),('Graph calc'!U46)) -> 44.82509393 | V48: =IF(Inputs!$E$8="NGN",(V46/Inputs!U$314),('Graph calc'!V46)) -> 48.9831387 | W48: =IF(Inputs!$E$8="NGN",(W46/Inputs!V$314),('Graph calc'!W46)) -> 53.55935852 | X48: =IF(Inputs!$E$8="NGN",(X46/Inputs!W$314),('Graph calc'!X46)) -> 61.58178888 | Y48: =IF(Inputs!$E$8="NGN",(Y46/Inputs!X$314),('Graph calc'!Y46)) -> 67.39029421 | Z48: =IF(Inputs!$E$8="NGN",(Z46/Inputs!Y$314),('Graph calc'!Z46)) -> 73.76738686 | AA48: =IF(Inputs!$E$8="NGN",(AA46/Inputs!Z$314),('Graph calc'!AA46)) -> 80.76542228 | AB48: =IF(Inputs!$E$8="NGN",(AB46/Inputs!AA$314),('Graph calc'!AB46)) -> 88.44208415 | AC48: =IF(Inputs!$E$8="NGN",(AC46/Inputs!AB$314),('Graph calc'!AC46)) -> 101.8029109 | AD48: =IF(Inputs!$E$8="NGN",(AD46/Inputs!AC$314),('Graph calc'!AD46)) -> 111.5042061 | AE48: =IF(Inputs!$E$8="NGN",(AE46/Inputs!AD$314),('Graph calc'!AE46)) -> 122.1393571 | AF48: =IF(Inputs!$E$8="NGN",(AF46/Inputs!AE$314),('Graph calc'!AF46)) -> 133.7967791 | AG48: =IF(Inputs!$E$8="NGN",(AG46/Inputs!AF$314),('Graph calc'!AG46)) -> 146.573489 | AH48: =IF(Inputs!$E$8="NGN",(AH46/Inputs!AG$314),('Graph calc'!AH46)) -> 168.7674498
C50: Equity distribution graph
C51: Cumulative distributions to equity | D51: =Inputs!$E$8 -> NGN | J51: =SUM(Model!$J$146:J146) -> 0 | K51: =SUM(Model!$J$146:K146) -> 3717167.017 | L51: =SUM(Model!$J$146:L146) -> 16388778.38 | M51: =SUM(Model!$J$146:M146) -> 33429243.59 | N51: =SUM(Model!$J$146:N146) -> 57956407.36 | O51: =SUM(Model!$J$146:O146) -> 96162159.65 | P51: =SUM(Model!$J$146:P146) -> 141021750.5 | Q51: =SUM(Model!$J$146:Q146) -> 204358339.4 | R51: =SUM(Model!$J$146:R146) -> 286267511.8 | S51: =SUM(Model!$J$146:S146) -> 397938862.3 | T51: =SUM(Model!$J$146:T146) -> 542030432.4 | U51: =SUM(Model!$J$146:U146) -> 729307787.4 | V51: =SUM(Model!$J$146:V146) -> 972811735.3 | W51: =SUM(Model!$J$146:W146) -> 1278469013 | X51: =SUM(Model!$J$146:X146) -> 1712096968 | Y51: =SUM(Model!$J$146:Y146) -> 2276045815 | Z51: =SUM(Model!$J$146:Z146) -> 3009550530 | AA51: =SUM(Model!$J$146:AA146) -> 3963511397 | AB51: =SUM(Model!$J$146:AB146) -> 5204402562 | AC51: =SUM(Model!$J$146:AC146) -> 6901431597 | AD51: =SUM(Model!$J$146:AD146) -> 9108696071 | AE51: =SUM(Model!$J$146:AE146) -> 1.197952218e+10 | AF51: =SUM(Model!$J$146:AF146) -> 1.571326718e+10 | AG51: =SUM(Model!$J$146:AG146) -> 2.056887954e+10 | AH51: =SUM(Model!$J$146:AH146) -> 2.720676791e+10
C52: Equity invested | D52: =Inputs!$E$8 -> NGN | J52: =SUM(Model!$J$104:J104) -> 6901936 | K52: =SUM(Model!$J$104:K104) -> 6901936 | L52: =SUM(Model!$J$104:L104) -> 6901936 | M52: =SUM(Model!$J$104:M104) -> 6901936 | N52: =SUM(Model!$J$104:N104) -> 6901936 | O52: =SUM(Model!$J$104:O104) -> 6901936 | P52: =SUM(Model!$J$104:P104) -> 6901936 | Q52: =SUM(Model!$J$104:Q104) -> 6901936 | R52: =SUM(Model!$J$104:R104) -> 6901936 | S52: =SUM(Model!$J$104:S104) -> 6901936 | T52: =SUM(Model!$J$104:T104) -> 6901936 | U52: =SUM(Model!$J$104:U104) -> 6901936 | V52: =SUM(Model!$J$104:V104) -> 6901936 | W52: =SUM(Model!$J$104:W104) -> 6901936 | X52: =SUM(Model!$J$104:X104) -> 6901936 | Y52: =SUM(Model!$J$104:Y104) -> 6901936 | Z52: =SUM(Model!$J$104:Z104) -> 6901936 | AA52: =SUM(Model!$J$104:AA104) -> 6901936 | AB52: =SUM(Model!$J$104:AB104) -> 6901936 | AC52: =SUM(Model!$J$104:AC104) -> 6901936 | AD52: =SUM(Model!$J$104:AD104) -> 6901936 | AE52: =SUM(Model!$J$104:AE104) -> 6901936 | AF52: =SUM(Model!$J$104:AF104) -> 6901936 | AG52: =SUM(Model!$J$104:AG104) -> 6901936 | AH52: =SUM(Model!$J$104:AH104) -> 6901936
C54: DSCR graph
C55: DSCR | J55: =Model!J185 -> 5.650659263 | K55: =Model!K185 -> 2.915340849 | L55: =Model!L185 -> 4.085259821 | M55: =Model!M185 -> 5.10725785 | N55: =Model!N185 -> 6.475798276 | O55: =Model!O185 -> 8.004845355 | P55: =Model!P185 ->  | Q55: =Model!Q185 ->  | R55: =Model!R185 ->  | S55: =Model!S185 ->  | T55: =Model!T185 ->  | U55: =Model!U185 ->  | V55: =Model!V185 ->  | W55: =Model!W185 ->  | X55: =Model!X185 ->  | Y55: =Model!Y185 ->  | Z55: =Model!Z185 ->  | AA55: =Model!AA185 ->  | AB55: =Model!AB185 ->  | AC55: =Model!AC185 ->  | AD55: =Model!AD185 ->  | AE55: =Model!AE185 ->  | AF55: =Model!AF185 ->  | AG55: =Model!AG185 ->  | AH55: =Model!AH185 -> 
C56: Target min DSCR | D56: % | E56: 1.5 | J56: =$E$56 -> 1.5 | K56: =$E$56 -> 1.5 | L56: 1.5 | M56: 1.5 | N56: 1.5 | O56: 1.5 | P56: 1.5 | Q56: 1.5 | R56: 1.5 | S56: 1.5 | T56: 1.5 | U56: 1.5 | V56: 1.5 | W56: 1.5 | X56: 1.5 | Y56: 1.5 | Z56: 1.5 | AA56: 1.5 | AB56: 1.5 | AC56: 1.5 | AD56: 1.5 | AE56: 1.5 | AF56: 1.5 | AG56: 1.5 | AH56: 1.5
C60: Useful summaries
C62: Consumption & tariff
C63: Phase 1
C64: Consumption | D64: kWh/month | J64: =(Model!J253+Model!J254)/12 -> 4080 | K64: =(Model!K253+Model!K254)/12 -> 7072 | L64: =(Model!L253+Model!L254)/12 -> 11492 | M64: =(Model!M253+Model!M254)/12 -> 14939.6 | N64: =(Model!N253+Model!N254)/12 -> 19421.48 | O64: =(Model!O253+Model!O254)/12 -> 25247.924 | P64: =(Model!P253+Model!P254)/12 -> 32822.3012 | Q64: =(Model!Q253+Model!Q254)/12 -> 42668.99156 | R64: =(Model!R253+Model!R254)/12 -> 55469.68903 | S64: =(Model!S253+Model!S254)/12 -> 72110.59574 | T64: =(Model!T253+Model!T254)/12 -> 93743.77446 | U64: =(Model!U253+Model!U254)/12 -> 121866.9068 | V64: =(Model!V253+Model!V254)/12 -> 158426.9788 | W64: =(Model!W253+Model!W254)/12 -> 205955.0725 | X64: =(Model!X253+Model!X254)/12 -> 267741.5942 | Y64: =(Model!Y253+Model!Y254)/12 -> 348064.0725 | Z64: =(Model!Z253+Model!Z254)/12 -> 452483.2942 | AA64: =(Model!AA253+Model!AA254)/12 -> 588228.2825 | AB64: =(Model!AB253+Model!AB254)/12 -> 764696.7673 | AC64: =(Model!AC253+Model!AC254)/12 -> 994105.7975 | AD64: =(Model!AD253+Model!AD254)/12 -> 1292337.537 | AE64: =(Model!AE253+Model!AE254)/12 -> 1680038.798 | AF64: =(Model!AF253+Model!AF254)/12 -> 2184050.437 | AG64: =(Model!AG253+Model!AG254)/12 -> 2839265.568 | AH64: =(Model!AH253+Model!AH254)/12 -> 3691045.239
C65: Consumption/user | D65: kWh/month | J65: =J64/J37 -> 34 | K65: 44.2 | L65: 57.46 | M65: 74.698 | N65: 97.1074 | O65: 126.23962 | P65: 164.111506 | Q65: 213.3449578 | R65: 277.3484451 | S65: 360.5529787 | T65: 468.7188723 | U65: 609.334534 | V65: 792.1348942 | W65: 1029.775362 | X65: 1338.707971 | Y65: 1740.320362 | Z65: 2262.416471 | AA65: 2941.141413 | AB65: 3823.483836 | AC65: 4970.528987 | AD65: 6461.687683 | AE65: 8400.193988 | AF65: 10920.25219 | AG65: 14196.32784 | AH65: 18455.22619
C67: Total consumption | D67: kWh/year | J67: =J64*12 -> 48960 | K67: =K64*12 -> 84864 | L67: 137904 | M67: 179275.2 | N67: 233057.76 | O67: 302975.088 | P67: 393867.6144 | Q67: 512027.8987 | R67: 665636.2683 | S67: 865327.1488 | T67: 1124925.293 | U67: 1462402.882 | V67: 1901123.746 | W67: 2471460.87 | X67: 3212899.131 | Y67: 4176768.87 | Z67: 5429799.531 | AA67: 7058739.39 | AB67: 9176361.207 | AC67: 11929269.57 | AD67: 15508050.44 | AE67: 20160465.57 | AF67: 26208605.24 | AG67: 34071186.82 | AH67: 44292542.86
C68: Average tariff | D68: =Inputs!$E$8 -> NGN | J68: =Model!J18/J67 -> 167.58 | K68: =Model!K18/K67 -> 167.58 | L68: =Model!L18/L67 -> 167.58 | M68: =Model!M18/M67 -> 167.58 | N68: =Model!N18/N67 -> 176.1282642 | O68: =Model!O18/O67 -> 176.1282642 | P68: =Model!P18/P67 -> 176.1282642 | Q68: =Model!Q18/Q67 -> 176.1282642 | R68: =Model!R18/R67 -> 176.1282642 | S68: =Model!S18/S67 -> 185.1125758 | T68: =Model!T18/T67 -> 185.1125758 | U68: =Model!U18/U67 -> 185.1125758 | V68: =Model!V18/V67 -> 185.1125758 | W68: =Model!W18/W67 -> 185.1125758 | X68: =Model!X18/X67 -> 194.5551775 | Y68: =Model!Y18/Y67 -> 194.5551775 | Z68: =Model!Z18/Z67 -> 194.5551775 | AA68: =Model!AA18/AA67 -> 194.5551775 | AB68: =Model!AB18/AB67 -> 194.5551775 | AC68: =Model!AC18/AC67 -> 204.4794469 | AD68: =Model!AD18/AD67 -> 204.4794469 | AE68: =Model!AE18/AE67 -> 204.4794469 | AF68: =Model!AF18/AF67 -> 204.4794469 | AG68: =Model!AG18/AG67 -> 204.4794469 | AH68: =Model!AH18/AH67 -> 214.9099537
C69: Average tariff | D69: USD | J69: =IF(Inputs!$E$8="NGN", (J68/Inputs!I$314), ('Graph calc'!J68)) -> 0.4319072165 | K69: =IF(Inputs!$E$8="NGN", (K68/Inputs!J$314), ('Graph calc'!K68)) -> 0.4113402062 | L69: =IF(Inputs!$E$8="NGN", (L68/Inputs!K$314), ('Graph calc'!L68)) -> 0.3917525773 | M69: =IF(Inputs!$E$8="NGN", (M68/Inputs!L$314), ('Graph calc'!M68)) -> 0.3730976927 | N69: =IF(Inputs!$E$8="NGN", (N68/Inputs!M$314), ('Graph calc'!N68)) -> 0.3734565949 | O69: =IF(Inputs!$E$8="NGN", (O68/Inputs!N$314), ('Graph calc'!O68)) -> 0.3556729476 | P69: =IF(Inputs!$E$8="NGN", (P68/Inputs!O$314), ('Graph calc'!P68)) -> 0.3387361405 | Q69: =IF(Inputs!$E$8="NGN", (Q68/Inputs!P$314), ('Graph calc'!Q68)) -> 0.3226058481 | R69: =IF(Inputs!$E$8="NGN", (R68/Inputs!Q$314), ('Graph calc'!R68)) -> 0.3072436649 | S69: =IF(Inputs!$E$8="NGN", (S68/Inputs!R$314), ('Graph calc'!S68)) -> 0.3075392187 | T69: =IF(Inputs!$E$8="NGN", (T68/Inputs!S$314), ('Graph calc'!T68)) -> 0.292894494 | U69: =IF(Inputs!$E$8="NGN", (U68/Inputs!T$314), ('Graph calc'!U68)) -> 0.2789471371 | V69: =IF(Inputs!$E$8="NGN", (V68/Inputs!U$314), ('Graph calc'!V68)) -> 0.2656639401 | W69: =IF(Inputs!$E$8="NGN", (W68/Inputs!V$314), ('Graph calc'!W68)) -> 0.2530132763 | X69: =IF(Inputs!$E$8="NGN", (X68/Inputs!W$314), ('Graph calc'!X68)) -> 0.2532566631 | Y69: =IF(Inputs!$E$8="NGN", (Y68/Inputs!X$314), ('Graph calc'!Y68)) -> 0.241196822 | Z69: =IF(Inputs!$E$8="NGN", (Z68/Inputs!Y$314), ('Graph calc'!Z68)) -> 0.229711259 | AA69: =IF(Inputs!$E$8="NGN", (AA68/Inputs!Z$314), ('Graph calc'!AA68)) -> 0.2187726276 | AB69: =IF(Inputs!$E$8="NGN", (AB68/Inputs!AA$314), ('Graph calc'!AB68)) -> 0.2083548835 | AC69: =IF(Inputs!$E$8="NGN", (AC68/Inputs!AB$314), ('Graph calc'!AC68)) -> 0.2085553109 | AD69: =IF(Inputs!$E$8="NGN", (AD68/Inputs!AC$314), ('Graph calc'!AD68)) -> 0.1986241057 | AE69: =IF(Inputs!$E$8="NGN", (AE68/Inputs!AD$314), ('Graph calc'!AE68)) -> 0.1891658149 | AF69: =IF(Inputs!$E$8="NGN", (AF68/Inputs!AE$314), ('Graph calc'!AF68)) -> 0.180157919 | AG69: =IF(Inputs!$E$8="NGN", (AG68/Inputs!AF$314), ('Graph calc'!AG68)) -> 0.1715789704 | AH69: =IF(Inputs!$E$8="NGN", (AH68/Inputs!AG$314), ('Graph calc'!AH68)) -> 0.1717440213
C71: User summary | J71: =Names!$E$13 -> Site 1 | K71: =Names!$E$14 -> Site 2 | L71: =Names!$E$15 -> Site 3 | M71: =Names!$E$16 -> Site 4
C72: Category | J72: =Inputs!$D$14 -> 1 | K72: =Inputs!$D$15 -> 0 | L72: =Inputs!$D$16 -> 0 | M72: =Inputs!$D$17 -> 0
C73: Phase 1 population | D73: # | J73: =J72*Inputs!G23 -> 200 | K73: =K72*Inputs!G24 -> 0 | L73: =L72*Inputs!G25 -> 0 | M73: =M72*Inputs!G26 -> 0
C75: Levelized cost of electricity
C76: NGN
C77: Operating costs | D77: =Inputs!$E$8 -> NGN | F77: WACC | J77: =Model!J79+Model!J34 -> 3128204.717 | K77: =Model!K79+Model!K34 -> 1844821.509 | L77: =Model!L79+Model!L34 -> 2091687.952 | M77: =Model!M79+Model!M34 -> 2367536.078 | N77: =Model!N79+Model!N34 -> 2682415.307 | O77: =Model!O79+Model!O34 -> 3038107.467 | P77: =Model!P79+Model!P34 -> 3442133.058 | Q77: =Model!Q79+Model!Q34 -> 3901403.463 | R77: =Model!R79+Model!R34 -> 4423916.953 | S77: =Model!S79+Model!S34 -> 5026730.877 | T77: =Model!T79+Model!T34 -> 5707436.99 | U77: =Model!U79+Model!U34 -> 6484804.228 | V77: =Model!V79+Model!V34 -> 7373849.336 | W77: =Model!W79+Model!W34 -> 8392276.475 | X77: =Model!X79+Model!X34 -> 9591385.286 | Y77: =Model!Y79+Model!Y34 -> 10944530.02 | Z77: =Model!Z79+Model!Z34 -> 12505462.97 | AA77: =Model!AA79+Model!AA34 -> 14310760.4 | AB77: =Model!AB79+Model!AB34 -> 16404622.69 | AC77: =Model!AC79+Model!AC34 -> 18959115.38 | AD77: =Model!AD79+Model!AD34 -> 21838479.76 | AE77: =Model!AE79+Model!AE34 -> 25216565.31 | AF77: =Model!AF79+Model!AF34 -> 29195526.95 | AG77: =Model!AG79+Model!AG34 -> 33901996.04 | AH77: =Model!AH79+Model!AH34 -> 39955614.96
C78: Capital expenditures | D78: =Inputs!$E$8 -> NGN | F78: =WACC -> 0.1101441974 | J78: =-Model!J116 -> 45401936 | K78: =-Model!K116 -> 1260000 | L78: =-Model!L116 -> 1260000 | M78: =-Model!M116 -> 0 | N78: =-Model!N116 -> 0 | O78: =-Model!O116 -> 0 | P78: =-Model!P116 -> 0 | Q78: =-Model!Q116 -> 4107312 | R78: =-Model!R116 -> 0 | S78: =-Model!S116 -> 0 | T78: =-Model!T116 -> 0 | U78: =-Model!U116 -> 0 | V78: =-Model!V116 -> 0 | W78: =-Model!W116 -> 0 | X78: =-Model!X116 -> 11037372.5 | Y78: =-Model!Y116 -> 0 | Z78: =-Model!Z116 -> 0 | AA78: =-Model!AA116 -> 0 | AB78: =-Model!AB116 -> 0 | AC78: =-Model!AC116 -> 0 | AD78: =-Model!AD116 -> 0 | AE78: =-Model!AE116 -> 0 | AF78: =-Model!AF116 -> 0 | AG78: =-Model!AG116 -> 0 | AH78: =-Model!AH116 -> 253555.5
C79: Total consumption | D79: kWh | J79: =SUM(Model!J253:J254) -> 48960 | K79: =SUM(Model!K253:K254) -> 84864 | L79: =SUM(Model!L253:L254) -> 137904 | M79: =SUM(Model!M253:M254) -> 179275.2 | N79: =SUM(Model!N253:N254) -> 233057.76 | O79: =SUM(Model!O253:O254) -> 302975.088 | P79: =SUM(Model!P253:P254) -> 393867.6144 | Q79: =SUM(Model!Q253:Q254) -> 512027.8987 | R79: =SUM(Model!R253:R254) -> 665636.2683 | S79: =SUM(Model!S253:S254) -> 865327.1488 | T79: =SUM(Model!T253:T254) -> 1124925.293 | U79: =SUM(Model!U253:U254) -> 1462402.882 | V79: =SUM(Model!V253:V254) -> 1901123.746 | W79: =SUM(Model!W253:W254) -> 2471460.87 | X79: =SUM(Model!X253:X254) -> 3212899.131 | Y79: =SUM(Model!Y253:Y254) -> 4176768.87 | Z79: =SUM(Model!Z253:Z254) -> 5429799.531 | AA79: =SUM(Model!AA253:AA254) -> 7058739.39 | AB79: =SUM(Model!AB253:AB254) -> 9176361.207 | AC79: =SUM(Model!AC253:AC254) -> 11929269.57 | AD79: =SUM(Model!AD253:AD254) -> 15508050.44 | AE79: =SUM(Model!AE253:AE254) -> 20160465.57 | AF79: =SUM(Model!AF253:AF254) -> 26208605.24 | AG79: =SUM(Model!AG253:AG254) -> 34071186.82 | AH79: =SUM(Model!AH253:AH254) -> 44292542.86
C80: LCOE | D80: =CONCATENATE(Inputs!$E$8,"/kWh") -> NGN/kWh | F80: =(NPV($F$78,J77:AH77)+NPV($F$78,J78:AH78))/NPV($F$78,J79:AH79) -> 4.507442758
C81: LCOE net of operating costs | D81: =CONCATENATE(Inputs!$E$8,"/kWh") -> NGN/kWh | F81: =NPV($F$78,J78:AH78)/NPV($F$78,J79:AH79) -> 2.155738482
C83: USD
C84: Operating costs | D84: USD | J84: =IF(Inputs!$E$8="NGN", (J77/Inputs!I$314), ('Graph calc'!J77)) -> 8062.383291 | K84: =IF(Inputs!$E$8="NGN", (K77/Inputs!J$314), ('Graph calc'!K77)) -> 4528.280582 | L84: =IF(Inputs!$E$8="NGN", (L77/Inputs!K$314), ('Graph calc'!L77)) -> 4889.749053 | M84: =IF(Inputs!$E$8="NGN", (M77/Inputs!L$314), ('Graph calc'!M77)) -> 5271.048145 | N84: =IF(Inputs!$E$8="NGN", (N77/Inputs!M$314), ('Graph calc'!N77)) -> 5687.705442 | O84: =IF(Inputs!$E$8="NGN", (O77/Inputs!N$314), ('Graph calc'!O77)) -> 6135.146126 | P84: =IF(Inputs!$E$8="NGN", (P77/Inputs!O$314), ('Graph calc'!P77)) -> 6620.032695 | Q84: =IF(Inputs!$E$8="NGN", (Q77/Inputs!P$314), ('Graph calc'!Q77)) -> 7146.017017 | R84: =IF(Inputs!$E$8="NGN", (R77/Inputs!Q$314), ('Graph calc'!R77)) -> 7717.219402 | S84: =IF(Inputs!$E$8="NGN", (S77/Inputs!R$314), ('Graph calc'!S77)) -> 8351.225626 | T84: =IF(Inputs!$E$8="NGN", (T77/Inputs!S$314), ('Graph calc'!T77)) -> 9030.595907 | U84: =IF(Inputs!$E$8="NGN", (U77/Inputs!T$314), ('Graph calc'!U77)) -> 9771.986407 | V84: =IF(Inputs!$E$8="NGN", (V77/Inputs!U$314), ('Graph calc'!V77)) -> 10582.56502 | W84: =IF(Inputs!$E$8="NGN", (W77/Inputs!V$314), ('Graph calc'!W77)) -> 11470.62731 | X84: =IF(Inputs!$E$8="NGN", (X77/Inputs!W$314), ('Graph calc'!X77)) -> 12485.31271 | Y84: =IF(Inputs!$E$8="NGN", (Y77/Inputs!X$314), ('Graph calc'!Y77)) -> 13568.31462 | Z84: =IF(Inputs!$E$8="NGN", (Z77/Inputs!Y$314), ('Graph calc'!Z77)) -> 14765.19761 | AA84: =IF(Inputs!$E$8="NGN", (AA77/Inputs!Z$314), ('Graph calc'!AA77)) -> 16092.1066 | AB84: =IF(Inputs!$E$8="NGN", (AB77/Inputs!AA$314), ('Graph calc'!AB77)) -> 17568.19475 | AC84: =IF(Inputs!$E$8="NGN", (AC77/Inputs!AB$314), ('Graph calc'!AC77)) -> 19337.02513 | AD84: =IF(Inputs!$E$8="NGN", (AD77/Inputs!AC$314), ('Graph calc'!AD77)) -> 21213.12717 | AE84: =IF(Inputs!$E$8="NGN", (AE77/Inputs!AD$314), ('Graph calc'!AE77)) -> 23328.07624 | AF84: =IF(Inputs!$E$8="NGN", (AF77/Inputs!AE$314), ('Graph calc'!AF77)) -> 25722.90496 | AG84: =IF(Inputs!$E$8="NGN", (AG77/Inputs!AF$314), ('Graph calc'!AG77)) -> 28447.20907 | AH84: =IF(Inputs!$E$8="NGN", (AH77/Inputs!AG$314), ('Graph calc'!AH77)) -> 31930.2939
C85: Capital expenditures | D85: USD | J85: =IF(Inputs!$E$8="NGN", (J78/Inputs!I$314), ('Graph calc'!J78)) -> 117015.299 | K85: =IF(Inputs!$E$8="NGN", (K78/Inputs!J$314), ('Graph calc'!K78)) -> 3092.783505 | L85: =IF(Inputs!$E$8="NGN", (L78/Inputs!K$314), ('Graph calc'!L78)) -> 2945.5081 | M85: =IF(Inputs!$E$8="NGN", (M78/Inputs!L$314), ('Graph calc'!M78)) -> 0 | N85: =IF(Inputs!$E$8="NGN", (N78/Inputs!M$314), ('Graph calc'!N78)) -> 0 | O85: =IF(Inputs!$E$8="NGN", (O78/Inputs!N$314), ('Graph calc'!O78)) -> 0 | P85: =IF(Inputs!$E$8="NGN", (P78/Inputs!O$314), ('Graph calc'!P78)) -> 0 | Q85: =IF(Inputs!$E$8="NGN", (Q78/Inputs!P$314), ('Graph calc'!Q78)) -> 7523.169988 | R85: =IF(Inputs!$E$8="NGN", (R78/Inputs!Q$314), ('Graph calc'!R78)) -> 0 | S85: =IF(Inputs!$E$8="NGN", (S78/Inputs!R$314), ('Graph calc'!S78)) -> 0 | T85: =IF(Inputs!$E$8="NGN", (T78/Inputs!S$314), ('Graph calc'!T78)) -> 0 | U85: =IF(Inputs!$E$8="NGN", (U78/Inputs!T$314), ('Graph calc'!U78)) -> 0 | V85: =IF(Inputs!$E$8="NGN", (V78/Inputs!U$314), ('Graph calc'!V78)) -> 0 | W85: =IF(Inputs!$E$8="NGN", (W78/Inputs!V$314), ('Graph calc'!W78)) -> 0 | X85: =IF(Inputs!$E$8="NGN", (X78/Inputs!W$314), ('Graph calc'!X78)) -> 14367.5854 | Y85: =IF(Inputs!$E$8="NGN", (Y78/Inputs!X$314), ('Graph calc'!Y78)) -> 0 | Z85: =IF(Inputs!$E$8="NGN", (Z78/Inputs!Y$314), ('Graph calc'!Z78)) -> 0 | AA85: =IF(Inputs!$E$8="NGN", (AA78/Inputs!Z$314), ('Graph calc'!AA78)) -> 0 | AB85: =IF(Inputs!$E$8="NGN", (AB78/Inputs!AA$314), ('Graph calc'!AB78)) -> 0 | AC85: =IF(Inputs!$E$8="NGN", (AC78/Inputs!AB$314), ('Graph calc'!AC78)) -> 0 | AD85: =IF(Inputs!$E$8="NGN", (AD78/Inputs!AC$314), ('Graph calc'!AD78)) -> 0 | AE85: =IF(Inputs!$E$8="NGN", (AE78/Inputs!AD$314), ('Graph calc'!AE78)) -> 0 | AF85: =IF(Inputs!$E$8="NGN", (AF78/Inputs!AE$314), ('Graph calc'!AF78)) -> 0 | AG85: =IF(Inputs!$E$8="NGN", (AG78/Inputs!AF$314), ('Graph calc'!AG78)) -> 0 | AH85: =IF(Inputs!$E$8="NGN", (AH78/Inputs!AG$314), ('Graph calc'!AH78)) -> 202.6273815
C86: LCOE | D86: USD/kWh | F86: =(NPV($F$78,J84:AH84)+NPV($F$78,J85:AH85))/NPV($F$78,J79:AH79) -> 0.008763863123
C87: LCOE net of operating costs | D87: USD/kWh | F87: =NPV($F$78,J85:AH85)/NPV($F$78,J79:AH79) -> 0.005342771412
C89: Levelized revenue | D89: USD/kWh | F89: =NPV($F$78,I42:AG42)/NPV($F$78,J79:AH79) -> 0.1880790706

Sheet Legend
C2: Style legend
C6: Style | E6: Design | G6: Comment
C8: Header1 | E8: Header1
C10: Header2 | E10: Header2
C12: Header3 | E12: Header3
C14: Assumption | E14: 100 | G14: A user driven input
C16: Technical_Input | E16: 100 | G16: A model input that should not be changed to protect the integrity of the model
C18: Empty_Cell | G18: A cell that is left intentionally blank to avoid the risk of error
C20: InSheet | E20: 100 | G20: A link within the worksheet or an interim calculation step
C22: OffSheet | E22: 100 | G22: A link to another worksheet to minimise the number of inter-worksheet references
C24: Line_SubTotal | E24: 100 | G24: The sum of elements in the table immediately above
C26: Line_Total | E26: 100 | G26: The sum of elements above, including sub-totals
C28: Unit / Info | E28: NGN | G28: Explanatory text showing helpful information and the units/dimensions of the calculations
C30: Line_Summary | E30: 100 | G30: The SUM() of everything to the right
C32: Table_Header | E32: Qtr | G32: Header of a table or of an off-sheet reference
C34: Flag | E34: 1 | G34: Binary flag - set up as a 'Style' and updated with conditional formatting
C36: Line_ClosingBal | E36: 100 | G36: The closing balance of a control account

Sheet Names
C2: Names and Lists
C5: Name | E5: Value
C7: Entity Names
C8: Model Name | E8: FGN 5M Solar Connections Facility - Mini-Grid
C9: Company Name | E9: [Insert Company Name]
C10: Project Name | E10: [Insert Project Name, Location]
C11: Contact Details
C13: Site grouping names - short | E13: Site 1
E14: Site 2
E15: Site 3
E16: Site 4
C18: Site grouping names - long | E18: Site 1
E19: Site 2
E20: Site 3
E21: Site 4
C23: Lists
C24: Construction period | E24: 1
E25: =E24+1 -> 2
E26: =E25+1 -> 3
E27: 4
E28: 5 | G28: `
C30: Tax depreciation toggle | E30: 1
E31: 0
